Workbook

Sheet Índice
B9: Banco Mercantil do Brasil S.A.
B11: Planilha de Séries Históricas
B13: Clique no título para acessar a respectiva planilha:
B15: 1. | C15: Balanço Patrimonial
B17: 2. | C17: DRE Contábil (Trimestral)
B19: 3. | C19: DRE Contábil (Anual)
B21: 4. | C21: Captação
B23: 5. | C23: Gerenciamento de Capital
B25: 6. | C25: Dividendos e JCP
B27: 7. | C27: Notas Explicativas
B33: Data da última atualização:
B35: Em caso de dúvidas, contate:

Sheet Balanço Patrimonial
A2: Banco Mercantil do Brasil SA
A4: Planilha de Séries Históricas
C6: Índice | R6: Índice
A7: Balanço Patrimonial Consolidado
A8: (R$ Mil)
B9: 2020-03-01 | C9: =EDATE(B9,3) -> 2020-06-01 | D9: =EDATE(C9,3) -> 2020-09-01 | E9: =EDATE(D9,3) -> 2020-12-01 | F9: 2021-03-01 | G9: 2021-06-01 | H9: 2021-09-01 | I9: 2021-12-01 | J9: 2022-03-01 | K9: 2022-06-01 | L9: 2022-09-01 | M9: 2022-12-01 | N9: 2023-03-01 | O9: 2023-06-01 | P9: 2023-09-01 | Q9: 2023-12-01 | R9: 2024-03-01 | S9: 2024-06-01 | T9: 2024-09-01 | U9: 2024-12-01 | V9: 2025-03-01 | W9: 2025-06-01 | X9: 2025-09-01 | Y9: 2025-12-01
A10: ATIVO
A12: ATIVO CIRCULANTE | B12: =B14+B16+B38 -> 5842797 | C12: 6260030 | D12: 5358099 | E12: 5298788 | F12: 5293130 | G12: =G14+G16+G38 -> 5556128 | H12: 5558180 | I12: 0 | J12: 0 | K12: 0 | L12: 0 | M12: 0 | N12: 0 | O12: 0 | P12: 0 | Q12: 0 | R12: 0 | S12: 0 | T12: 0 | U12: 0 | V12: 0 | W12: 0 | X12: 0 | Y12: 0
A14: DISPONIBILIDADES | B14: 792464 | C14: 1282130 | D14: 1361815 | E14: 1426303 | F14: ='[1]BP-BACEN-2021'!$H$12 -> 987478 | G14: ='[2]BP-BACEN-2021'!$G$12 -> 1248637 | H14: ='[3]BP-BACEN-2021'!$H$12 -> 1252750 | I14: 0 | J14: 0 | K14: 0 | L14: 0 | M14: 0 | N14: 0 | O14: 0 | P14: 0 | Q14: 0 | R14: 0 | S14: 0 | T14: 0 | U14: 0 | V14: 0 | W14: 0 | X14: 0 | Y14: 0
A16: INSTRUMENTOS FINANCEIROS | B16: =SUM(B17:B18)+B21+B22+B26+B28+B32 -> 4693170 | C16: =SUM(C17:C18)+C21+C22+C26+C28+C32 -> 4515049 | D16: 3531862 | E16: 3482874 | F16: 3848981 | G16: =SUM(G17:G18)+G21+G22+G26+G28+G32 -> 3783195 | H16: 4012776 | I16: 0 | J16: 0 | K16: 0 | L16: 0 | M16: 0 | N16: 0 | O16: 0 | P16: 0 | Q16: 0 | R16: 0 | S16: 0 | T16: 0 | U16: 0 | V16: 0 | W16: 0 | X16: 0 | Y16: 0
A17: Aplicações Interfinanceiras de Liquidez | B17: ='[4]BP-BACEN-2020'!$H$18+1573637 -> 1906329 | C17: ='[5]BP-BACEN-2020'!$H$18+1648088 -> 1784641 | D17: ='[6]BP-BACEN-2020'!$G$18+854090 -> 942276 | E17: ='[7]BP-BACEN-2020'!$H$16 -> 645977 | F17: ='[1]BP-BACEN-2021'!$H$15 -> 634519 | G17: ='[2]BP-BACEN-2021'!$G$15 -> 416267 | H17: ='[3]BP-BACEN-2021'!$H$15 -> 541563 | I17: 0 | J17: 0 | K17: 0 | L17: 0 | M17: 0 | N17: 0 | O17: 0 | P17: 0 | Q17: 0 | R17: 0 | S17: 0 | T17: 0 | U17: 0 | V17: 0 | W17: 0 | X17: 0 | Y17: 0
A18: Títulos e Valores Mobiliários | B18: =B19+B20 -> 231098 | C18: =C19+C20 -> 224165 | D18: 203150 | E18: 199716 | F18: 373118 | G18: 382482 | H18: 395728 | I18: 0 | J18: 0 | K18: 0 | L18: 0 | M18: 0 | N18: 0 | O18: 0 | P18: 0 | Q18: 0 | R18: 0 | S18: 0 | T18: 0 | U18: 0 | V18: 0 | W18: 0 | X18: 0 | Y18: 0
A19: Carteira Própria | B19: ='[4]BP-BACEN-2020'!$H$20 -> 189020 | C19: ='[5]BP-BACEN-2020'!$H$20 -> 166133 | D19: ='[6]BP-BACEN-2020'!$G$20 -> 185747 | E19: ='[7]BP-BACEN-2020'!$H$18 -> 175020 | F19: ='[1]BP-BACEN-2021'!$H$17 -> 326784 | G19: ='[2]BP-BACEN-2021'!$G$17 -> 337641 | H19: ='[3]BP-BACEN-2021'!$H$17 -> 380290
A20: Vinculados à Prestação de Garantias | B20: ='[4]BP-BACEN-2020'!$H$21 -> 42078 | C20: ='[5]BP-BACEN-2020'!$H$21 -> 58032 | D20: ='[6]BP-BACEN-2020'!$G$21 -> 17403 | E20: ='[7]BP-BACEN-2020'!$H$19 -> 24696 | F20: ='[1]BP-BACEN-2021'!$H$18 -> 46334 | G20: ='[2]BP-BACEN-2021'!$G$18 -> 44841 | H20: ='[3]BP-BACEN-2021'!$H$18 -> 15438
A21: Instrumentos Financeiros Derivativos | B21: ='[4]BP-BACEN-2020'!$H$22 -> 135370 | C21: ='[5]BP-BACEN-2020'!$H$22 -> 159498 | D21: ='[6]BP-BACEN-2020'!$G$22 -> 0 | E21: ='[7]BP-BACEN-2020'!$H$20 -> 0 | F21: 0 | G21: 0 | H21: 0
A22: Relações Interfinanceiras | B22: =B23+B24+B25 -> 52901 | C22: 69614 | D22: 75395 | E22: 82531 | F22: 101269 | G22: =G23+G24+G25 -> 127127 | H22: =H23+H24+H25 -> 91085 | I22: 0 | J22: 0 | K22: 0 | L22: 0 | M22: 0 | N22: 0 | O22: 0 | P22: 0 | Q22: 0 | R22: 0 | S22: 0 | T22: 0 | U22: 0 | V22: 0 | W22: 0 | X22: 0 | Y22: 0
A23: Pagamentos e Recebimentos a Liquidar | B23: ='[4]BP-BACEN-2020'!$H$24 -> 6876 | C23: ='[5]BP-BACEN-2020'!$H$24 -> 9950 | D23: ='[6]BP-BACEN-2020'!$G$24 -> 13119 | E23: ='[7]BP-BACEN-2020'!$H$22 -> 1 | F23: ='[1]BP-BACEN-2021'!$H$20 -> 15588 | G23: ='[2]BP-BACEN-2021'!$G$20 -> 15033 | H23: ='[3]BP-BACEN-2021'!$H$20 -> 14898
A24: Créditos Vinculados - Depósitos no Banco Central | B24: ='[4]BP-BACEN-2020'!$H$25 -> 46025 | C24: ='[5]BP-BACEN-2020'!$H$25 -> 59664 | D24: ='[6]BP-BACEN-2020'!$G$25 -> 62276 | E24: ='[7]BP-BACEN-2020'!$H$23 -> 82470 | F24: ='[1]BP-BACEN-2021'!$H$21 -> 85645 | G24: ='[2]BP-BACEN-2021'!$G$21 -> 112094 | H24: ='[3]BP-BACEN-2021'!$H$21 -> 76187
A25: Créditos Vinculados - SFH - Sistema Financeiro da Habitação | B25: 0 | C25: 0 | D25: 0 | E25: ='[7]BP-BACEN-2020'!$H$24 -> 60 | F25: ='[1]BP-BACEN-2021'!$H$22 -> 36 | G25: ='[2]BP-BACEN-2021'!$G$22 -> 0 | H25: 0
A26: Relações Interdependências | B26: =B27 -> 1331 | C26: =C27 -> 1865 | D26: 1186 | E26: 1984 | F26: 1174 | G26: 2736 | H26: 1267 | I26: 0 | J26: 0 | K26: 0 | L26: 0 | M26: 0 | N26: 0 | O26: 0 | P26: 0 | Q26: 0 | R26: 0 | S26: 0 | T26: 0 | U26: 0 | V26: 0 | W26: 0 | X26: 0 | Y26: 0
A27: Transferências Internas de Recursos | B27: ='[4]BP-BACEN-2020'!$H$27 -> 1331 | C27: ='[5]BP-BACEN-2020'!$H$27 -> 1865 | D27: ='[6]BP-BACEN-2020'!$G$27 -> 1186 | E27: ='[7]BP-BACEN-2020'!$H$26 -> 1984 | F27: ='[1]BP-BACEN-2021'!$H$24 -> 1174 | G27: ='[2]BP-BACEN-2021'!$G$24 -> 2736 | H27: ='[3]BP-BACEN-2021'!$H$24 -> 1267
A28: Operações de Crédito | B28: =SUM(B29:B31) -> 2314070 | C28: =SUM(C29:C31) -> 2236196 | D28: 2261512 | E28: 2483751 | F28: 2674942 | G28: 2777070 | H28: =SUM(H29:H31) -> 2895993 | I28: 0 | J28: 0 | K28: 0 | L28: 0 | M28: 0 | N28: 0 | O28: 0 | P28: 0 | Q28: 0 | R28: 0 | S28: 0 | T28: 0 | U28: 0 | V28: 0 | W28: 0 | X28: 0 | Y28: 0
A29: Setor Privado | B29: ='[4]BP-BACEN-2020'!$H$29 -> 2555182 | C29: ='[5]BP-BACEN-2020'!$H$29 -> 2447921 | D29: ='[6]BP-BACEN-2020'!$G$29 -> 2443352 | E29: ='[7]BP-BACEN-2020'!$H$28 -> 2659542 | F29: ='[1]BP-BACEN-2021'!$H$26 -> 2842817 | G29: ='[2]BP-BACEN-2021'!$G$26 -> 2930572 | H29: ='[3]BP-BACEN-2021'!$H$26 -> 3039726
A30: Operações de Crédito Vinculadas a Cessão | B30: ='[4]BP-BACEN-2020'!$H$30 -> 16291 | C30: ='[5]BP-BACEN-2020'!$H$30 -> 12467 | D30: ='[6]BP-BACEN-2020'!$G$30 -> 8584 | E30: ='[7]BP-BACEN-2020'!$H$29 -> 0 | F30: ='[7]BP-BACEN-2020'!$H$29 -> 0 | G30: 0 | H30: 0
A31: (Provisão para Operações de Crédito de Liquidação Duvidosa) | B31: ='[4]BP-BACEN-2020'!$H$31 -> -257403 | C31: ='[5]BP-BACEN-2020'!$H$31 -> -224192 | D31: ='[6]BP-BACEN-2020'!$G$31 -> -190424 | E31: ='[7]BP-BACEN-2020'!$H$30 -> -175791 | F31: ='[1]BP-BACEN-2021'!$H$27 -> -167875 | G31: ='[2]BP-BACEN-2021'!$G$27 -> -153502 | H31: ='[3]BP-BACEN-2021'!$H$27 -> -143733
A32: Outros Créditos | B32: =SUM(B33:B36) -> 52071 | C32: =SUM(C33:C36) -> 39070 | D32: 48343 | E32: 68915 | F32: 63959 | G32: 77513 | H32: 87140 | I32: 0 | J32: 0 | K32: 0 | L32: 0 | M32: 0 | N32: 0 | O32: 0 | P32: 0 | Q32: 0 | R32: 0 | S32: 0 | T32: 0 | U32: 0 | V32: 0 | W32: 0 | X32: 0 | Y32: 0
A33: Rendas a Receber de Adiantamentos Concedidos | B33: ='[4]BP-BACEN-2020'!$H$33 -> 12926 | C33: ='[5]BP-BACEN-2020'!$H$33 -> 15049 | D33: ='[6]BP-BACEN-2020'!$G$33 -> 16994 | E33: ='[7]BP-BACEN-2020'!$H$32 -> 17032 | F33: ='[1]BP-BACEN-2021'!$H$29 -> 20148 | G33: ='[2]BP-BACEN-2021'!$G$29 -> 19000 | H33: ='[3]BP-BACEN-2021'!$H$29 -> 22100
A34: Devedores por Compras de Valores e Bens | B34: ='[4]BP-BACEN-2020'!$H$34 -> 19746 | C34: ='[5]BP-BACEN-2020'!$H$34 -> 10468 | D34: ='[6]BP-BACEN-2020'!$G$34 -> 10049 | E34: ='[7]BP-BACEN-2020'!$H$33 -> 9020 | F34: ='[1]BP-BACEN-2021'!$H$30 -> 7707 | G34: ='[2]BP-BACEN-2021'!$G$30 -> 8137 | H34: ='[3]BP-BACEN-2021'!$H$30 -> 8322
A35: Valores a Receber Relativos a Transações de Pagamentos | B35: ='[4]BP-BACEN-2020'!$H$35 -> 67533 | C35: ='[5]BP-BACEN-2020'!$H$35 -> 64289 | D35: ='[6]BP-BACEN-2020'!$G$35 -> 71831 | E35: ='[7]BP-BACEN-2020'!$H$34 -> 92990 | F35: ='[1]BP-BACEN-2021'!$H$31 -> 89228 | G35: ='[2]BP-BACEN-2021'!$G$31 -> 103315 | H35: ='[3]BP-BACEN-2021'!$H$31 -> 107911
A36: (Provisão para Outros Créditos de Liquidação Duvidosa) | B36: ='[4]BP-BACEN-2020'!$H$36 -> -48134 | C36: ='[5]BP-BACEN-2020'!$H$36 -> -50736 | D36: ='[6]BP-BACEN-2020'!$G$36 -> -50531 | E36: ='[7]BP-BACEN-2020'!$H$35 -> -50127 | F36: ='[1]BP-BACEN-2021'!$H$32 -> -53124 | G36: ='[2]BP-BACEN-2021'!$G$32 -> -52939 | H36: ='[3]BP-BACEN-2021'!$H$32 -> -51193
A38: OUTROS ATIVOS | B38: =B39+B42+B43 -> 357163 | C38: =C39+C42+C43 -> 462851 | D38: 464422 | E38: 389611 | F38: 456671 | G38: 524296 | H38: 292654 | I38: 0 | J38: 0 | K38: 0 | L38: 0 | M38: 0 | N38: 0 | O38: 0 | P38: 0 | Q38: 0 | R38: 0 | S38: 0 | T38: 0 | U38: 0 | V38: 0 | W38: 0 | X38: 0 | Y38: 0
A39: Ativos Não Financeiros Mantidos para Venda | B39: =B40+B41 -> 133620 | C39: =C40+C41 -> 128535 | D39: 108904 | E39: 105443 | F39: 95245 | G39: 81582 | H39: 82277 | I39: 0 | J39: 0 | K39: 0 | L39: 0 | M39: 0 | N39: 0 | O39: 0 | P39: 0 | Q39: 0 | R39: 0 | S39: 0 | T39: 0 | U39: 0 | V39: 0 | W39: 0 | X39: 0 | Y39: 0
A40: Outros Valores e Bens | B40: ='[4]BP-BACEN-2020'!$H$41 -> 228162 | C40: ='[5]BP-BACEN-2020'!$H$40 -> 223023 | D40: ='[6]BP-BACEN-2020'!$G$41 -> 188205 | E40: ='[7]BP-BACEN-2020'!$H$39 -> 181647 | F40: ='[1]BP-BACEN-2021'!$H$37 -> 162695 | G40: ='[2]BP-BACEN-2021'!$G$37 -> 131002 | H40: ='[3]BP-BACEN-2021'!$H$37 -> 125787
A41: (Provisões para Desvalorizações) | B41: ='[4]BP-BACEN-2020'!$H$42 -> -94542 | C41: ='[5]BP-BACEN-2020'!$H$41 -> -94488 | D41: ='[6]BP-BACEN-2020'!$G$42 -> -79301 | E41: ='[7]BP-BACEN-2020'!$H$40 -> -76204 | F41: ='[1]BP-BACEN-2021'!$H$38 -> -67450 | G41: ='[2]BP-BACEN-2021'!$G$38 -> -49420 | H41: ='[3]BP-BACEN-2021'!$H$38 -> -43510
A42: Despesas Antecipadas | B42: ='[4]BP-BACEN-2020'!$H$43 -> 37952 | C42: ='[5]BP-BACEN-2020'!$H$42 -> 32185 | D42: ='[6]BP-BACEN-2020'!$G$43 -> 30021 | E42: ='[7]BP-BACEN-2020'!$H$41 -> 33545 | F42: ='[1]BP-BACEN-2021'!$H$39 -> 36142 | G42: ='[2]BP-BACEN-2021'!$G$39 -> 38225 | H42: ='[3]BP-BACEN-2021'!$H$39 -> 33849
A43: Outros Créditos | B43: =SUM(B44:B55) -> 185591 | C43: =SUM(C44:C55) -> 302131 | D43: =SUM(D44:D55) -> 325497 | E43: =SUM(E44:E55) -> 250623 | F43: =SUM(F44:F55) -> 325284 | G43: 404489 | H43: 176528 | I43: 0 | J43: 0 | K43: 0 | L43: 0 | M43: 0 | N43: 0 | O43: 0 | P43: 0 | Q43: 0 | R43: 0 | S43: 0 | T43: 0 | U43: 0 | V43: 0 | W43: 0 | X43: 0 | Y43: 0
A44: Câmbio Comprado a Liquidar | B44: ='[4]BP-BACEN-2020'!$H$45 -> 89745 | C44: ='[5]BP-BACEN-2020'!$H$44 -> 94807 | D44: ='[6]BP-BACEN-2020'!$G$45 -> 97377 | E44: ='[7]BP-BACEN-2020'!$H$43 -> 90075 | F44: ='[1]BP-BACEN-2021'!$H$41 -> 98354 | G44: ='[2]BP-BACEN-2021'!$G$41 -> 87853 | H44: ='[3]BP-BACEN-2021'!$H$41 -> 94173 | I44: 0 | J44: 0 | K44: 0 | L44: 0 | M44: 0 | N44: 0 | O44: 0 | P44: 0 | Q44: 0 | R44: 0 | S44: 0 | T44: 0 | U44: 0 | V44: 0 | W44: 0 | X44: 0 | Y44: 0
A45: Direitos sobre Venda de Câmbio | B45: 0 | C45: ='[5]BP-BACEN-2020'!$H$45 -> 543 | D45: 0 | E45: ='[7]BP-BACEN-2020'!$H$44 -> 414 | F45: ='[1]BP-BACEN-2021'!$H$42 -> 0 | G45: ='[2]BP-BACEN-2021'!$G$42 -> 1917 | H45: ='[3]BP-BACEN-2021'!$H$42 -> 271
A46: (Adiantamentos em Moeda Nacional Recebidos) | B46: 0 | C46: 0 | D46: 0 | E46: ='[7]BP-BACEN-2020'!$H$45 -> -52 | F46: ='[1]BP-BACEN-2021'!$H$43 -> 0 | G46: ='[2]BP-BACEN-2021'!$G$43 -> -221 | H46: ='[3]BP-BACEN-2021'!$H$43 -> 0
A47: Rendas a Receber | B47: ='[4]BP-BACEN-2020'!$H$46 -> 1151 | C47: ='[5]BP-BACEN-2020'!$H$46 -> 1105 | D47: ='[6]BP-BACEN-2020'!$G$46 -> 1109 | E47: ='[7]BP-BACEN-2020'!$H$46 -> 736 | F47: ='[1]BP-BACEN-2021'!$H$44 -> 1122 | G47: ='[2]BP-BACEN-2021'!$G$44 -> 1530 | H47: ='[3]BP-BACEN-2021'!$H$44 -> 2251 | I47: 0 | J47: 0 | K47: 0 | L47: 0 | M47: 0 | N47: 0 | O47: 0 | P47: 0 | Q47: 0 | R47: 0 | S47: 0 | T47: 0 | U47: 0 | V47: 0 | W47: 0 | X47: 0 | Y47: 0
A48: Negociação e Intermediação de Valores | B48: ='[4]BP-BACEN-2020'!$H$47 -> 995 | C48: ='[5]BP-BACEN-2020'!$H$47 -> 5233 | D48: ='[6]BP-BACEN-2020'!$G$47 -> 3270 | E48: ='[7]BP-BACEN-2020'!$H$47 -> 2289 | F48: ='[1]BP-BACEN-2021'!$H$45 -> 4480 | G48: ='[2]BP-BACEN-2021'!$G$45 -> 3178 | H48: ='[3]BP-BACEN-2021'!$H$45 -> 2991 | I48: 0 | J48: 0 | K48: 0 | L48: 0 | M48: 0 | N48: 0 | O48: 0 | P48: 0 | Q48: 0 | R48: 0 | S48: 0 | T48: 0 | U48: 0 | V48: 0 | W48: 0 | X48: 0 | Y48: 0
A49: Impostos a Compensar | B49: ='[4]BP-BACEN-2020'!$H$48 -> 23398 | C49: ='[5]BP-BACEN-2020'!$H$48 -> 23249 | D49: ='[6]BP-BACEN-2020'!$G$48 -> 24529 | E49: ='[7]BP-BACEN-2020'!$H$48 -> 3967 | F49: ='[1]BP-BACEN-2021'!$H$46 -> 3743 | G49: ='[2]BP-BACEN-2021'!$G$46 -> 4670 | H49: ='[3]BP-BACEN-2021'!$H$46 -> 4803
A50: Pagamentos a Ressarcir | B50: ='[4]BP-BACEN-2020'!$H$49 -> 300 | C50: ='[5]BP-BACEN-2020'!$H$49 -> 27 | D50: ='[6]BP-BACEN-2020'!$G$49 -> 230 | E50: ='[7]BP-BACEN-2020'!$H$49 -> 28 | F50: ='[1]BP-BACEN-2021'!$H$47 -> 39 | G50: ='[2]BP-BACEN-2021'!$G$47 -> 30 | H50: ='[3]BP-BACEN-2021'!$H$47 -> 70 | I50: 0 | J50: 0 | K50: 0 | L50: 0 | M50: 0 | N50: 0 | O50: 0 | P50: 0 | Q50: 0 | R50: 0 | S50: 0 | T50: 0 | U50: 0 | V50: 0 | W50: 0 | X50: 0 | Y50: 0
A51: Títulos e Créditos a Receber - Sem Característica de Crédito | B51: ='[4]BP-BACEN-2020'!$H$50 -> 19084 | C51: ='[5]BP-BACEN-2020'!$H$50 -> 142586 | D51: ='[6]BP-BACEN-2020'!$G$50 -> 165278 | E51: ='[7]BP-BACEN-2020'!$H$50 -> 101382 | F51: ='[1]BP-BACEN-2021'!$H$48 -> 166982 | G51: ='[2]BP-BACEN-2021'!$G$48 -> 266217 | H51: ='[3]BP-BACEN-2021'!$H$48 -> 12009 | I51: 0 | J51: 0 | K51: 0 | L51: 0 | M51: 0 | N51: 0 | O51: 0 | P51: 0 | Q51: 0 | R51: 0 | S51: 0 | T51: 0 | U51: 0 | V51: 0 | W51: 0 | X51: 0 | Y51: 0
A52: Adiantamentos e Antecipações Salariais | B52: ='[4]BP-BACEN-2020'!$H$51 -> 1091 | C52: ='[5]BP-BACEN-2020'!$H$51 -> 6133 | D52: ='[6]BP-BACEN-2020'!$G$51 -> 5964 | E52: ='[7]BP-BACEN-2020'!$H$51 -> 785 | F52: ='[1]BP-BACEN-2021'!$H$49 -> 1209 | G52: ='[2]BP-BACEN-2021'!$G$49 -> 6213 | H52: ='[3]BP-BACEN-2021'!$H$49 -> 5789 | I52: 0 | J52: 0 | K52: 0 | L52: 0 | M52: 0 | N52: 0 | O52: 0 | P52: 0 | Q52: 0 | R52: 0 | S52: 0 | T52: 0 | U52: 0 | V52: 0 | W52: 0 | X52: 0 | Y52: 0
A53: Devedores Diversos | B53: ='[4]BP-BACEN-2020'!$H$52 -> 47485 | C53: ='[5]BP-BACEN-2020'!$H$52 -> 23500 | D53: ='[6]BP-BACEN-2020'!$G$52 -> 22671 | E53: ='[7]BP-BACEN-2020'!$H$52 -> 43233 | F53: ='[1]BP-BACEN-2021'!$H$50 -> 42566 | G53: ='[2]BP-BACEN-2021'!$G$50 -> 25307 | H53: ='[3]BP-BACEN-2021'!$H$50 -> 41024 | I53: 0 | J53: 0 | K53: 0 | L53: 0 | M53: 0 | N53: 0 | O53: 0 | P53: 0 | Q53: 0 | R53: 0 | S53: 0 | T53: 0 | U53: 0 | V53: 0 | W53: 0 | X53: 0 | Y53: 0
A54: Outros | B54: ='[4]BP-BACEN-2020'!$H$53 -> 2342 | C54: ='[5]BP-BACEN-2020'!$H$53 -> 4948 | D54: ='[6]BP-BACEN-2020'!$G$53 -> 5069 | E54: ='[7]BP-BACEN-2020'!$H$53 -> 8460 | F54: ='[1]BP-BACEN-2021'!$H$51 -> 7789 | G54: ='[2]BP-BACEN-2021'!$G$51 -> 8795 | H54: ='[3]BP-BACEN-2021'!$H$51 -> 14147 | I54: 0 | J54: 0 | K54: 0 | L54: 0 | M54: 0 | N54: 0 | O54: 0 | P54: 0 | Q54: 0 | R54: 0 | S54: 0 | T54: 0 | U54: 0 | V54: 0 | W54: 0 | X54: 0 | Y54: 0
A55: (Provisão para Outros Créditos de Liquidação Duvidosa) | B55: 0 | C55: 0 | D55: 0 | E55: ='[7]BP-BACEN-2020'!$H$54 -> -694 | F55: ='[1]BP-BACEN-2021'!$H$52 -> -1000 | G55: ='[2]BP-BACEN-2021'!$G$52 -> -1000 | H55: ='[3]BP-BACEN-2021'!$H$52 -> -1000
A57: ATIVO NÃO CIRCULANTE | B57: =B59+B73+B76+B86+B92+B97 -> 4244730 | C57: =C59+C73+C76+C86+C92+C97 -> 4487136 | D57: 4799916 | E57: 5419575 | F57: 5437656 | G57: =G59+G73+G76+G86+G92+G97 -> 5974696 | H57: 6392784 | I57: 0 | J57: 0 | K57: 0 | L57: 0 | M57: 0 | N57: 0 | O57: 0 | P57: 0 | Q57: 0 | R57: 0 | S57: 0 | T57: 0 | U57: 0 | V57: 0 | W57: 0 | X57: 0 | Y57: 0
A59: INSTRUMENTOS FINANCEIROS | B59: =B60+B61+B65+B69 -> 3108104 | C59: =C60+C61+C65+C69 -> 3350689 | D59: 3685675 | E59: 4342263 | F59: 4368330 | G59: 4930267 | H59: 5350139 | I59: 0 | J59: 0 | K59: 0 | L59: 0 | M59: 0 | N59: 0 | O59: 0 | P59: 0 | Q59: 0 | R59: 0 | S59: 0 | T59: 0 | U59: 0 | V59: 0 | W59: 0 | X59: 0 | Y59: 0
A60: Aplicações Interfinanceiras de Liquidez | B60: ='[4]BP-BACEN-2020'!$H$69 -> 1972 | C60: ='[5]BP-BACEN-2020'!$H$69 -> 1577 | D60: ='[6]BP-BACEN-2020'!$G$69 -> 6252 | E60: ='[7]BP-BACEN-2020'!$H$70 -> 5047 | F60: ='[1]BP-BACEN-2021'!$H$68 -> 5086 | G60: ='[2]BP-BACEN-2021'!$G$68 -> 5140 | H60: ='[3]BP-BACEN-2021'!$H$68 -> 14824 | I60: 0 | J60: 0 | K60: 0 | L60: 0 | M60: 0 | N60: 0 | O60: 0 | P60: 0 | Q60: 0 | R60: 0 | S60: 0 | T60: 0 | U60: 0 | V60: 0 | W60: 0 | X60: 0 | Y60: 0
A61: Títulos e Valores Mobiliários | B61: =B62+B63+B64 -> 954469 | C61: =C62+C63+C64 -> 997786 | D61: =D62+D63+D64 -> 970194 | E61: =E62+E63+E64 -> 963404 | F61: =F62+F63+F64 -> 746012 | G61: 774265 | H61: =H62+H63+H64 -> 710534 | I61: 0 | J61: 0 | K61: 0 | L61: 0 | M61: 0 | N61: 0 | O61: 0 | P61: 0 | Q61: 0 | R61: 0 | S61: 0 | T61: 0 | U61: 0 | V61: 0 | W61: 0 | X61: 0 | Y61: 0
A62: Carteira Própria | B62: ='[4]BP-BACEN-2020'!$H$71 -> 546360 | C62: ='[5]BP-BACEN-2020'!$H$71 -> 833409 | D62: ='[6]BP-BACEN-2020'!$G$71 -> 836932 | E62: ='[7]BP-BACEN-2020'!$H$72 -> 822019 | F62: ='[1]BP-BACEN-2021'!$H$70 -> 633599 | G62: ='[2]BP-BACEN-2021'!$G$70 -> 601548 | H62: ='[3]BP-BACEN-2021'!$H$70 -> 550675
A63: Vinculados ao Banco Central | B63: 0 | C63: 0 | D63: 0 | E63: ='[7]BP-BACEN-2020'!$H$73 -> 4014 | F63: ='[1]BP-BACEN-2021'!$H$71 -> 2149 | G63: 0 | H63: 0
A64: Vinculados à Prestação de Garantias | B64: ='[4]BP-BACEN-2020'!$H$72 -> 408109 | C64: ='[5]BP-BACEN-2020'!$H$72 -> 164377 | D64: ='[6]BP-BACEN-2020'!$G$72 -> 133262 | E64: ='[7]BP-BACEN-2020'!$H$74 -> 137371 | F64: ='[1]BP-BACEN-2021'!$H$72 -> 110264 | G64: ='[2]BP-BACEN-2021'!$G$72 -> 172717 | H64: ='[3]BP-BACEN-2021'!$H$72 -> 159859
A65: Operações de Crédito | B65: =SUM(B66:B68) -> 2146177 | C65: =SUM(C66:C68) -> 2344782 | D65: 2703609 | E65: 3369339 | F65: 3612842 | G65: 4146551 | H65: 4624016 | I65: 0 | J65: 0 | K65: 0 | L65: 0 | M65: 0 | N65: 0 | O65: 0 | P65: 0 | Q65: 0 | R65: 0 | S65: 0 | T65: 0 | U65: 0 | V65: 0 | W65: 0 | X65: 0 | Y65: 0
A66: Setor Privado | B66: ='[4]BP-BACEN-2020'!$H$74 -> 2376970 | C66: ='[5]BP-BACEN-2020'!$H$74 -> 2575399 | D66: ='[6]BP-BACEN-2020'!$G$74 -> 2925897 | E66: ='[7]BP-BACEN-2020'!$H$76 -> 3604916 | F66: ='[1]BP-BACEN-2021'!$H$74 -> 3835683 | G66: ='[2]BP-BACEN-2021'!$G$74 -> 4371475 | H66: ='[3]BP-BACEN-2021'!$H$74 -> 4852476
A67: Operações de Crédito Vinculadas a Cessão | B67: ='[4]BP-BACEN-2020'!$H$75 -> 2246 | C67: ='[5]BP-BACEN-2020'!$H$75 -> 1068 | D67: ='[6]BP-BACEN-2020'!$G$75 -> 230 | E67: ='[7]BP-BACEN-2020'!$H$77 -> 0 | F67: 0 | G67: 0 | H67: 0
A68: (Provisão para Operações de Crédito de Liquidação Duvidosa) | B68: ='[4]BP-BACEN-2020'!$H$76 -> -233039 | C68: ='[5]BP-BACEN-2020'!$H$76 -> -231685 | D68: ='[6]BP-BACEN-2020'!$G$76 -> -222518 | E68: ='[7]BP-BACEN-2020'!$H$78 -> -235577 | F68: ='[1]BP-BACEN-2021'!$H$75 -> -222841 | G68: ='[2]BP-BACEN-2021'!$G$75 -> -224924 | H68: ='[3]BP-BACEN-2021'!$H$75 -> -228460
A69: Outros Créditos | B69: =SUM(B70:B71) -> 5486 | C69: =SUM(C70:C71) -> 6544 | D69: 5620 | E69: 4473 | F69: 4390 | G69: 4311 | H69: 765 | I69: 0 | J69: 0 | K69: 0 | L69: 0 | M69: 0 | N69: 0 | O69: 0 | P69: 0 | Q69: 0 | R69: 0 | S69: 0 | T69: 0 | U69: 0 | V69: 0 | W69: 0 | X69: 0 | Y69: 0
A70: Devedores por Compras de Valores e Bens | B70: ='[4]BP-BACEN-2020'!$H$78 -> 8371 | C70: ='[5]BP-BACEN-2020'!$H$78 -> 8248 | D70: ='[6]BP-BACEN-2020'!$G$78 -> 7437 | E70: ='[7]BP-BACEN-2020'!$H$80 -> 6831 | F70: ='[1]BP-BACEN-2021'!$H$77 -> 5886 | G70: ='[2]BP-BACEN-2021'!$G$77 -> 5200 | H70: ='[3]BP-BACEN-2021'!$H$77 -> 5647
A71: (Provisão para Outros Créditos de Liquidação Duvidosa) | B71: ='[4]BP-BACEN-2020'!$H$79 -> -2885 | C71: ='[5]BP-BACEN-2020'!$H$79 -> -1704 | D71: ='[6]BP-BACEN-2020'!$G$79 -> -1817 | E71: ='[7]BP-BACEN-2020'!$H$81 -> -2358 | F71: ='[1]BP-BACEN-2021'!$H$78 -> -1496 | G71: ='[2]BP-BACEN-2021'!$G$78 -> -889 | H71: ='[3]BP-BACEN-2021'!$H$78 -> -4882 | I71: 0 | J71: 0 | K71: 0 | L71: 0 | M71: 0 | N71: 0 | O71: 0 | P71: 0 | Q71: 0 | R71: 0 | S71: 0 | T71: 0 | U71: 0 | V71: 0 | W71: 0 | X71: 0 | Y71: 0
A73: TRIBUTOS DIFERIDOS | B73: =B74 -> 572581 | C73: =C74 -> 569654 | D73: 552821 | E73: 555377 | F73: 548804 | G73: 539540 | H73: 527439 | I73: 0 | J73: 0 | K73: 0 | L73: 0 | M73: 0 | N73: 0 | O73: 0 | P73: 0 | Q73: 0 | R73: 0 | S73: 0 | T73: 0 | U73: 0 | V73: 0 | W73: 0 | X73: 0 | Y73: 0
A74: Créditos Tributários | B74: ='[4]BP-BACEN-2020'!$H$82 -> 572581 | C74: ='[5]BP-BACEN-2020'!$H$82 -> 569654 | D74: ='[6]BP-BACEN-2020'!$G$82 -> 552821 | E74: ='[7]BP-BACEN-2020'!$H$84 -> 555377 | F74: ='[1]BP-BACEN-2021'!$H$81 -> 548804 | G74: ='[2]BP-BACEN-2021'!$G$81 -> 539540 | H74: ='[3]BP-BACEN-2021'!$H$81 -> 527439 | I74: 0 | J74: 0 | K74: 0 | L74: 0 | M74: 0 | N74: 0 | O74: 0 | P74: 0 | Q74: 0 | R74: 0 | S74: 0 | T74: 0 | U74: 0 | V74: 0 | W74: 0 | X74: 0 | Y74: 0
A76: OUTROS ATIVOS | B76: =B77+B78 -> 355347 | C76: =C77+C78 -> 329889 | D76: 319556 | E76: 274408 | F76: 268392 | G76: 249957 | H76: 251662 | I76: 0 | J76: 0 | K76: 0 | L76: 0 | M76: 0 | N76: 0 | O76: 0 | P76: 0 | Q76: 0 | R76: 0 | S76: 0 | T76: 0 | U76: 0 | V76: 0 | W76: 0 | X76: 0 | Y76: 0
A77: Despesas Antecipadas | B77: ='[4]BP-BACEN-2020'!$H$86 -> 63058 | C77: ='[5]BP-BACEN-2020'!$H$86 -> 48250 | D77: ='[6]BP-BACEN-2020'!$G$86 -> 42798 | E77: ='[7]BP-BACEN-2020'!$H$88 -> 37374 | F77: ='[1]BP-BACEN-2021'!$H$84 -> 31675 | G77: ='[2]BP-BACEN-2021'!$G$84 -> 27102 | H77: ='[3]BP-BACEN-2021'!$H$84 -> 26502
A78: Outros Créditos | B78: =SUM(B79:B84) -> 292289 | C78: =SUM(C79:C84) -> 281639 | D78: 276758 | E78: 237034 | F78: 236717 | G78: 222855 | H78: 225160 | I78: 0 | J78: 0 | K78: 0 | L78: 0 | M78: 0 | N78: 0 | O78: 0 | P78: 0 | Q78: 0 | R78: 0 | S78: 0 | T78: 0 | U78: 0 | V78: 0 | W78: 0 | X78: 0 | Y78: 0
A79: Rendas a Receber | B79: ='[4]BP-BACEN-2020'!$H$88 -> 7000 | C79: ='[5]BP-BACEN-2020'!$H$88 -> 7000 | D79: ='[6]BP-BACEN-2020'!$G$88 -> 7000 | E79: ='[7]BP-BACEN-2020'!$H$90 -> 7000 | F79: ='[1]BP-BACEN-2021'!$H$86 -> 7000 | G79: ='[2]BP-BACEN-2021'!$G$86 -> 0 | H79: ='[3]BP-BACEN-2021'!$H$86 -> 0
A80: Devedores por Depósitos em Garantia | B80: ='[4]BP-BACEN-2020'!$H$89 -> 225351 | C80: ='[5]BP-BACEN-2020'!$H$89 -> 220631 | D80: ='[6]BP-BACEN-2020'!$G$89 -> 217805 | E80: ='[7]BP-BACEN-2020'!$H$91 -> 175198 | F80: ='[1]BP-BACEN-2021'!$H$87 -> 179136 | G80: ='[2]BP-BACEN-2021'!$G$87 -> 174121 | H80: ='[3]BP-BACEN-2021'!$H$87 -> 170763
A81: Impostos a Compensar | B81: ='[4]BP-BACEN-2020'!$H$90 -> 12179 | C81: ='[5]BP-BACEN-2020'!$H$90 -> 11118 | D81: ='[6]BP-BACEN-2020'!$G$90 -> 11191 | E81: ='[7]BP-BACEN-2020'!$H$92 -> 10699 | F81: ='[1]BP-BACEN-2021'!$H$88 -> 11153 | G81: ='[2]BP-BACEN-2021'!$G$88 -> 11180 | H81: ='[3]BP-BACEN-2021'!$H$88 -> 11224
A82: Pagamentos a Ressarcir | B82: ='[4]BP-BACEN-2020'!$H$91 -> 1508 | C82: ='[5]BP-BACEN-2020'!$H$91 -> 1524 | D82: ='[6]BP-BACEN-2020'!$G$91 -> 1530 | E82: ='[7]BP-BACEN-2020'!$H$93 -> 1532 | F82: ='[1]BP-BACEN-2021'!$H$89 -> 1546 | G82: ='[2]BP-BACEN-2021'!$G$89 -> 1549 | H82: ='[3]BP-BACEN-2021'!$H$89 -> 1553
A83: Títulos e Créditos a Receber - Sem Característica de Crédito | B83: ='[4]BP-BACEN-2020'!$H$92 -> 55951 | C83: ='[5]BP-BACEN-2020'!$H$92 -> 51066 | D83: ='[6]BP-BACEN-2020'!$G$92 -> 48932 | E83: ='[7]BP-BACEN-2020'!$H$94 -> 52305 | F83: ='[1]BP-BACEN-2021'!$H$90 -> 47582 | G83: ='[2]BP-BACEN-2021'!$G$90 -> 45705 | H83: ='[3]BP-BACEN-2021'!$H$90 -> 51320
A84: (Provisão para Outros Créditos de Liquidação Duvidosa) | B84: ='[4]BP-BACEN-2020'!$H$93 -> -9700 | C84: ='[5]BP-BACEN-2020'!$H$93 -> -9700 | D84: ='[6]BP-BACEN-2020'!$G$93 -> -9700 | E84: ='[7]BP-BACEN-2020'!$H$95 -> -9700 | F84: ='[1]BP-BACEN-2021'!$H$91 -> -9700 | G84: ='[2]BP-BACEN-2021'!$G$91 -> -9700 | H84: ='[3]BP-BACEN-2021'!$H$91 -> -9700
A86: INVESTIMENTOS | B86: =SUM(B88:B90) -> 1524 | C86: =SUM(C88:C90) -> 1681 | D86: 1906 | E86: 2112 | F86: 2263 | G86: 2488 | H86: 2464 | I86: 0 | J86: 0 | K86: 0 | L86: 0 | M86: 0 | N86: 0 | O86: 0 | P86: 0 | Q86: 0 | R86: 0 | S86: 0 | T86: 0 | U86: 0 | V86: 0 | W86: 0 | X86: 0 | Y86: 0
A87: Participações em Coligadas e Controladas - No País:
A88: Controladas | B88: ='[4]BP-BACEN-2020'!$H$98 -> 0 | C88: 0 | D88: 0 | E88: 0 | F88: 0 | G88: 0 | H88: 0 | I88: 0 | J88: 0 | K88: 0 | L88: 0 | M88: 0 | N88: 0 | O88: 0 | P88: 0 | Q88: 0 | R88: 0 | S88: 0 | T88: 0 | U88: 0 | V88: 0 | W88: 0 | X88: 0 | Y88: 0
A89: Outros Investimentos | B89: ='[4]BP-BACEN-2020'!$H$99 -> 2917 | C89: ='[5]BP-BACEN-2020'!$H$99 -> 3041 | D89: ='[6]BP-BACEN-2020'!$G$99 -> 3276 | E89: ='[7]BP-BACEN-2020'!$H$101 -> 3496 | F89: ='[1]BP-BACEN-2021'!$H$95 -> 3629 | G89: ='[2]BP-BACEN-2021'!$G$95 -> 3881 | H89: ='[3]BP-BACEN-2021'!$H$95 -> 3864 | I89: 0 | J89: 0 | K89: 0 | L89: 0 | M89: 0 | N89: 0 | O89: 0 | P89: 0 | Q89: 0 | R89: 0 | S89: 0 | T89: 0 | U89: 0 | V89: 0 | W89: 0 | X89: 0 | Y89: 0
A90: (Provisões para Perdas) | B90: ='[4]BP-BACEN-2020'!$H$100 -> -1393 | C90: ='[5]BP-BACEN-2020'!$H$100 -> -1360 | D90: ='[6]BP-BACEN-2020'!$G$100 -> -1370 | E90: ='[7]BP-BACEN-2020'!$H$102 -> -1384 | F90: ='[1]BP-BACEN-2021'!$H$96 -> -1366 | G90: ='[2]BP-BACEN-2021'!$G$96 -> -1393 | H90: ='[3]BP-BACEN-2021'!$H$96 -> -1400 | I90: 0 | J90: 0 | K90: 0 | L90: 0 | M90: 0 | N90: 0 | O90: 0 | P90: 0 | Q90: 0 | R90: 0 | S90: 0 | T90: 0 | U90: 0 | V90: 0 | W90: 0 | X90: 0 | Y90: 0
A92: IMOBILIZADO | B92: =SUM(B93:B95) -> 150489 | C92: =SUM(C93:C95) -> 176318 | D92: 173063 | E92: 176153 | F92: 180076 | G92: 182778 | H92: 178895 | I92: 0 | J92: 0 | K92: 0 | L92: 0 | M92: 0 | N92: 0 | O92: 0 | P92: 0 | Q92: 0 | R92: 0 | S92: 0 | T92: 0 | U92: 0 | V92: 0 | W92: 0 | X92: 0 | Y92: 0
A93: Imóveis de Uso | B93: ='[4]BP-BACEN-2020'!$H$103 -> 25598 | C93: ='[5]BP-BACEN-2020'!$H$103 -> 29662 | D93: ='[6]BP-BACEN-2020'!$G$103 -> 25672 | E93: ='[7]BP-BACEN-2020'!$H$105 -> 23922 | F93: ='[1]BP-BACEN-2021'!$H$99 -> 27857 | G93: ='[2]BP-BACEN-2021'!$G$99 -> 27857 | H93: ='[3]BP-BACEN-2021'!$H$99 -> 27823 | I93: 0 | J93: 0 | K93: 0 | L93: 0 | M93: 0 | N93: 0 | O93: 0 | P93: 0 | Q93: 0 | R93: 0 | S93: 0 | T93: 0 | U93: 0 | V93: 0 | W93: 0 | X93: 0 | Y93: 0
A94: Outras Imobilizações de Uso | B94: ='[4]BP-BACEN-2020'!$H$104 -> 267861 | C94: ='[5]BP-BACEN-2020'!$H$104 -> 296556 | D94: ='[6]BP-BACEN-2020'!$G$104 -> 304258 | E94: ='[7]BP-BACEN-2020'!$H$106 -> 316807 | F94: ='[1]BP-BACEN-2021'!$H$100 -> 325295 | G94: ='[2]BP-BACEN-2021'!$G$100 -> 336850 | H94: ='[3]BP-BACEN-2021'!$H$100 -> 342553 | I94: 0 | J94: 0 | K94: 0 | L94: 0 | M94: 0 | N94: 0 | O94: 0 | P94: 0 | Q94: 0 | R94: 0 | S94: 0 | T94: 0 | U94: 0 | V94: 0 | W94: 0 | X94: 0 | Y94: 0
A95: (Depreciação Acumulada) | B95: ='[4]BP-BACEN-2020'!$H$105 -> -142970 | C95: ='[5]BP-BACEN-2020'!$H$105 -> -149900 | D95: ='[6]BP-BACEN-2020'!$G$105 -> -156867 | E95: ='[7]BP-BACEN-2020'!$H$107 -> -164576 | F95: ='[1]BP-BACEN-2021'!$H$101 -> -173076 | G95: ='[2]BP-BACEN-2021'!$G$101 -> -181929 | H95: ='[3]BP-BACEN-2021'!$H$101 -> -191481 | I95: 0 | J95: 0 | K95: 0 | L95: 0 | M95: 0 | N95: 0 | O95: 0 | P95: 0 | Q95: 0 | R95: 0 | S95: 0 | T95: 0 | U95: 0 | V95: 0 | W95: 0 | X95: 0 | Y95: 0
A97: INTANGÍVEL | B97: =SUM(B98:B99) -> 56685 | C97: =SUM(C98:C99) -> 58905 | D97: 66895 | E97: 69262 | F97: 69791 | G97: 69666 | H97: 82185 | I97: 0 | J97: 0 | K97: 0 | L97: 0 | M97: 0 | N97: 0 | O97: 0 | P97: 0 | Q97: 0 | R97: 0 | S97: 0 | T97: 0 | U97: 0 | V97: 0 | W97: 0 | X97: 0 | Y97: 0
A98: Ativos Intangíveis | B98: ='[4]BP-BACEN-2020'!$H$108 -> 145002 | C98: ='[5]BP-BACEN-2020'!$H$108 -> 151732 | D98: ='[6]BP-BACEN-2020'!$G$108 -> 164333 | E98: ='[7]BP-BACEN-2020'!$H$110 -> 171408 | F98: ='[1]BP-BACEN-2021'!$H$104 -> 176916 | G98: ='[2]BP-BACEN-2021'!$G$104 -> 179319 | H98: ='[3]BP-BACEN-2021'!$H$104 -> 197280 | I98: 0 | J98: 0 | K98: 0 | L98: 0 | M98: 0 | N98: 0 | O98: 0 | P98: 0 | Q98: 0 | R98: 0 | S98: 0 | T98: 0 | U98: 0 | V98: 0 | W98: 0 | X98: 0 | Y98: 0
A99: (Amortização Acumulada) | B99: ='[4]BP-BACEN-2020'!$H$109 -> -88317 | C99: ='[5]BP-BACEN-2020'!$H$109 -> -92827 | D99: ='[6]BP-BACEN-2020'!$G$109 -> -97438 | E99: ='[7]BP-BACEN-2020'!$H$111 -> -102146 | F99: ='[1]BP-BACEN-2021'!$H$105 -> -107125 | G99: ='[2]BP-BACEN-2021'!$G$105 -> -109653 | H99: ='[3]BP-BACEN-2021'!$H$105 -> -115095 | I99: 0 | J99: 0 | K99: 0 | L99: 0 | M99: 0 | N99: 0 | O99: 0 | P99: 0 | Q99: 0 | R99: 0 | S99: 0 | T99: 0 | U99: 0 | V99: 0 | W99: 0 | X99: 0 | Y99: 0
A101: TOTAL DO ATIVO | B101: =B12+B57 -> 10087527 | C101: 10747166 | D101: 10158015 | E101: 10718363 | F101: 10730786 | G101: 11530824 | H101: 11950964 | I101: 0 | J101: 0 | K101: 0 | L101: 0 | M101: 0 | N101: 0 | O101: 0 | P101: 0 | Q101: 0 | R101: 0 | S101: 0 | T101: 0 | U101: 0 | V101: 0 | W101: 0 | X101: 0 | Y101: 0
A103: PASSIVO E PATRIMÔNIO LÍQUIDO
A105: PASSIVO CIRCULANTE | B105: =B107+B130+B134 -> 3622088 | C105: 3711647 | D105: 2643392 | E105: 3018031 | F105: 2948779 | G105: 3586863 | H105: 4231781 | I105: 0 | J105: 0 | K105: 0 | L105: 0 | M105: 0 | N105: 0 | O105: 0 | P105: 0 | Q105: 0 | R105: 0 | S105: 0 | T105: 0 | U105: 0 | V105: 0 | W105: 0 | X105: 0 | Y105: 0
A107: DEPÓSITOS E DEMAIS INSTRUMENTOS FINANCEIROS | B107: =B108+B114+B116+B118+B122+B125+B126+B127+B128 -> 3160349 | C107: 3147531 | D107: 2163983 | E107: 2470207 | F107: 2400244 | G107: 2949677 | H107: 3614331 | I107: 0 | J107: 0 | K107: 0 | L107: 0 | M107: 0 | N107: 0 | O107: 0 | P107: 0 | Q107: 0 | R107: 0 | S107: 0 | T107: 0 | U107: 0 | V107: 0 | W107: 0 | X107: 0 | Y107: 0
A108: Depósitos | B108: =SUM(B109:B113) -> 1957938 | C108: =SUM(C109:C113) -> 2161206 | D108: 1925852 | E108: 2158634 | F108: 2067012 | G108: 2700987 | H108: 3368409 | I108: 0 | J108: 0 | K108: 0 | L108: 0 | M108: 0 | N108: 0 | O108: 0 | P108: 0 | Q108: 0 | R108: 0 | S108: 0 | T108: 0 | U108: 0 | V108: 0 | W108: 0 | X108: 0 | Y108: 0
A109: Depósitos à Vista | B109: ='[4]BP-BACEN-2020'!$P$14 -> 322715 | C109: ='[5]BP-BACEN-2020'!$P$14 -> 399125 | D109: ='[6]BP-BACEN-2020'!$O$14 -> 389805 | E109: ='[7]BP-BACEN-2020'!$P$15 -> 443055 | F109: ='[1]BP-BACEN-2021'!$P$14 -> 456121 | G109: ='[2]BP-BACEN-2021'!$O$14 -> 494062 | H109: ='[3]BP-BACEN-2021'!$Q$14 -> 444334 | I109: 0 | J109: 0 | K109: 0 | L109: 0 | M109: 0 | N109: 0 | O109: 0 | P109: 0 | Q109: 0 | R109: 0 | S109: 0 | T109: 0 | U109: 0 | V109: 0 | W109: 0 | X109: 0 | Y109: 0
A110: Depósitos de Poupança | B110: ='[4]BP-BACEN-2020'!$P$15 -> 201079 | C110: ='[5]BP-BACEN-2020'!$P$15 -> 222429 | D110: ='[6]BP-BACEN-2020'!$O$15 -> 233045 | E110: ='[7]BP-BACEN-2020'!$P$16 -> 232987 | F110: ='[1]BP-BACEN-2021'!$P$15 -> 231896 | G110: ='[2]BP-BACEN-2021'!$O$15 -> 238444 | H110: ='[3]BP-BACEN-2021'!$Q$15 -> 226583 | I110: 0 | J110: 0 | K110: 0 | L110: 0 | M110: 0 | N110: 0 | O110: 0 | P110: 0 | Q110: 0 | R110: 0 | S110: 0 | T110: 0 | U110: 0 | V110: 0 | W110: 0 | X110: 0 | Y110: 0
A111: Depósitos Interfinanceiros | B111: ='[4]BP-BACEN-2020'!$P$16 -> 96853 | C111: ='[5]BP-BACEN-2020'!$P$16 -> 116902 | D111: ='[6]BP-BACEN-2020'!$O$16 -> 20400 | E111: ='[7]BP-BACEN-2020'!$P$17 -> 20506 | F111: ='[1]BP-BACEN-2021'!$P$16 -> 20615 | G111: ='[2]BP-BACEN-2021'!$O$16 -> 70803 | H111: ='[3]BP-BACEN-2021'!$Q$16 -> 133571 | I111: 0 | J111: 0 | K111: 0 | L111: 0 | M111: 0 | N111: 0 | O111: 0 | P111: 0 | Q111: 0 | R111: 0 | S111: 0 | T111: 0 | U111: 0 | V111: 0 | W111: 0 | X111: 0 | Y111: 0
A112: Depósitos a Prazo | B112: ='[4]BP-BACEN-2020'!$P$17 -> 1337291 | C112: ='[5]BP-BACEN-2020'!$P$17 -> 1422750 | D112: ='[6]BP-BACEN-2020'!$O$17 -> 1282602 | E112: ='[7]BP-BACEN-2020'!$P$18 -> 1462086 | F112: ='[1]BP-BACEN-2021'!$P$17 -> 1353297 | G112: ='[2]BP-BACEN-2021'!$O$17 -> 1892311 | H112: ='[3]BP-BACEN-2021'!$Q$17 -> 2560790 | I112: 0 | J112: 0 | K112: 0 | L112: 0 | M112: 0 | N112: 0 | O112: 0 | P112: 0 | Q112: 0 | R112: 0 | S112: 0 | T112: 0 | U112: 0 | V112: 0 | W112: 0 | X112: 0 | Y112: 0
A113: Outros Depósitos | B113: 0 | C113: 0 | D113: 0 | E113: 0 | F113: ='[1]BP-BACEN-2021'!$P$18 -> 5083 | G113: ='[2]BP-BACEN-2021'!$O$18 -> 5367 | H113: ='[3]BP-BACEN-2021'!$Q$18 -> 3131
A114: Captações no Mercado Aberto | B114: =B115 -> 297751 | C114: 100903 | D114: 65902 | E114: 146853 | F114: 169896 | G114: 74108 | H114: 71416 | I114: 0 | J114: 0 | K114: 0 | L114: 0 | M114: 0 | N114: 0 | O114: 0 | P114: 0 | Q114: 0 | R114: 0 | S114: 0 | T114: 0 | U114: 0 | V114: 0 | W114: 0 | X114: 0 | Y114: 0
A115: Carteira de Terceiros | B115: ='[4]BP-BACEN-2020'!$P$19 -> 297751 | C115: ='[5]BP-BACEN-2020'!$P$19 -> 100903 | D115: ='[6]BP-BACEN-2020'!$O$19 -> 65902 | E115: ='[7]BP-BACEN-2020'!$P$20 -> 146853 | F115: ='[1]BP-BACEN-2021'!$P$20 -> 169896 | G115: ='[2]BP-BACEN-2021'!$O$20 -> 74108 | H115: ='[3]BP-BACEN-2021'!$Q$20 -> 71416
A116: Recursos de Aceites e Emissão de Títulos | B116: =B117 -> 145996 | C116: 103187 | D116: 82971 | E116: 85235 | F116: 81877 | G116: 76120 | H116: 73454 | I116: 0 | J116: 0 | K116: 0 | L116: 0 | M116: 0 | N116: 0 | O116: 0 | P116: 0 | Q116: 0 | R116: 0 | S116: 0 | T116: 0 | U116: 0 | V116: 0 | W116: 0 | X116: 0 | Y116: 0
A117: Recursos de Letras Imobiliárias, Hipotecárias, de Crédito e Similares | B117: ='[4]BP-BACEN-2020'!$P$21 -> 145996 | C117: ='[5]BP-BACEN-2020'!$P$21 -> 103187 | D117: ='[6]BP-BACEN-2020'!$O$21 -> 82971 | E117: ='[7]BP-BACEN-2020'!$P$22 -> 85235 | F117: ='[1]BP-BACEN-2021'!$P$22 -> 81877 | G117: ='[2]BP-BACEN-2021'!$O$22 -> 76120 | H117: ='[3]BP-BACEN-2021'!$Q$22 -> 73454
A118: Relações Interfinanceiras | B118: =B119+B120+B121 -> 11236 | C118: =C119+C120+C121 -> 15367 | D118: 56626 | E118: 56271 | F118: 70543 | G118: 84546 | H118: 87934 | I118: 0 | J118: 0 | K118: 0 | L118: 0 | M118: 0 | N118: 0 | O118: 0 | P118: 0 | Q118: 0 | R118: 0 | S118: 0 | T118: 0 | U118: 0 | V118: 0 | W118: 0 | X118: 0 | Y118: 0
A119: Recebimentos e Pagamentos a Liquidar | B119: ='[4]BP-BACEN-2020'!$P$23 -> 9325 | C119: ='[5]BP-BACEN-2020'!$P$23 -> 14200 | D119: ='[6]BP-BACEN-2020'!$O$23 -> 54084 | E119: ='[7]BP-BACEN-2020'!$P$24 -> 49304 | F119: ='[1]BP-BACEN-2021'!$P$24 -> 61587 | G119: ='[2]BP-BACEN-2021'!$O$24 -> 71736 | H119: ='[3]BP-BACEN-2021'!$Q$24 -> 76909
A120: Obrigações Vinculadas | B120: 0 | C120: 0 | D120: 0 | E120: ='[7]BP-BACEN-2020'!$P$25 -> 4003 | F120: ='[1]BP-BACEN-2021'!$P$25 -> 2143 | G120: ='[2]BP-BACEN-2021'!$O$25 -> 0 | H120: ='[3]BP-BACEN-2021'!$Q$25 -> 0
A121: Correspondentes | B121: ='[4]BP-BACEN-2020'!$P$24 -> 1911 | C121: ='[5]BP-BACEN-2020'!$P$24 -> 1167 | D121: ='[6]BP-BACEN-2020'!$O$24 -> 2542 | E121: ='[7]BP-BACEN-2020'!$P$26 -> 2964 | F121: ='[1]BP-BACEN-2021'!$P$26 -> 6813 | G121: ='[2]BP-BACEN-2021'!$O$26 -> 12810 | H121: ='[3]BP-BACEN-2021'!$Q$26 -> 11025
A122: Relações Interdependências | B122: =B123+B124 -> 4475 | C122: 5487 | D122: 15884 | E122: 16758 | F122: 3605 | G122: 6059 | H122: 3854 | I122: 0 | J122: 0 | K122: 0 | L122: 0 | M122: 0 | N122: 0 | O122: 0 | P122: 0 | Q122: 0 | R122: 0 | S122: 0 | T122: 0 | U122: 0 | V122: 0 | W122: 0 | X122: 0 | Y122: 0
A123: Recursos em Trânsito de Terceiros | B123: ='[4]BP-BACEN-2020'!$P$26 -> 4475 | C123: ='[5]BP-BACEN-2020'!$P$26 -> 5487 | D123: ='[6]BP-BACEN-2020'!$O$26 -> 15675 | E123: ='[7]BP-BACEN-2020'!$P$28 -> 16758 | F123: ='[1]BP-BACEN-2021'!$P$28 -> 3605 | G123: ='[2]BP-BACEN-2021'!$O$28 -> 6059 | H123: ='[3]BP-BACEN-2021'!$Q$28 -> 3854
A124: Transferências Internas de Recursos | B124: 0 | C124: 0 | D124: ='[6]BP-BACEN-2020'!$O$27 -> 209 | E124: 0 | F124: 0 | G124: 0
A125: Provisão para Garantias Financeiras Prestadas | B125: ='[4]BP-BACEN-2020'!$P$27 -> 2740 | C125: ='[5]BP-BACEN-2020'!$P$27 -> 2679 | D125: ='[6]BP-BACEN-2020'!$O$28 -> 2959 | E125: ='[7]BP-BACEN-2020'!$P$29 -> 2857 | F125: ='[1]BP-BACEN-2021'!$P$29 -> 3016 | G125: ='[2]BP-BACEN-2021'!$O$29 -> 3041 | H125: ='[3]BP-BACEN-2021'!$Q$29 -> 3047
A126: Obrigações por Operações Vinculadas a Cessão | B126: ='[4]BP-BACEN-2020'!$P$28 -> 16972 | C126: ='[5]BP-BACEN-2020'!$P$28 -> 12964 | D126: ='[6]BP-BACEN-2020'!$O$29 -> 8844 | E126: ='[7]BP-BACEN-2020'!$P$30 -> 0 | F126: 0 | G126: 0 | H126: 0
A127: Dívidas Subordinadas | B127: ='[4]BP-BACEN-2020'!$P$29 -> 716527 | C127: ='[5]BP-BACEN-2020'!$P$29 -> 741010 | D127: ='[6]BP-BACEN-2020'!$O$30 -> 0 | E127: ='[7]BP-BACEN-2020'!$P$31 -> 0 | F127: 0 | G127: 0 | H127: 0
A128: Instrumentos de Dívida Elegíveis a Capital | B128: ='[4]BP-BACEN-2020'!$P$30 -> 6714 | C128: ='[5]BP-BACEN-2020'!$P$30 -> 4728 | D128: ='[6]BP-BACEN-2020'!$O$31 -> 4945 | E128: ='[7]BP-BACEN-2020'!$P$32 -> 3599 | F128: ='[1]BP-BACEN-2021'!$P$30 -> 4295 | G128: ='[2]BP-BACEN-2021'!$O$30 -> 4816 | H128: ='[3]BP-BACEN-2021'!$Q$30 -> 6217
A130: PASSIVOS FISCAIS | B130: =B131+B132 -> 28712 | C130: 36703 | D130: 35180 | E130: 44002 | F130: 37908 | G130: 38465 | H130: =H131+H132 -> 49690 | I130: 0 | J130: 0 | K130: 0 | L130: 0 | M130: 0 | N130: 0 | O130: 0 | P130: 0 | Q130: 0 | R130: 0 | S130: 0 | T130: 0 | U130: 0 | V130: 0 | W130: 0 | X130: 0 | Y130: 0
A131: Passivos Fiscais Correntes | B131: ='[4]BP-BACEN-2020'!$P$36 -> 24947 | C131: ='[5]BP-BACEN-2020'!$P$36 -> 27779 | D131: ='[6]BP-BACEN-2020'!$O$36 -> 30874 | E131: ='[7]BP-BACEN-2020'!$P$37 -> 39391 | F131: ='[1]BP-BACEN-2021'!$P$35 -> 37280 | G131: ='[2]BP-BACEN-2021'!$O$35 -> 37837 | H131: ='[3]BP-BACEN-2021'!$Q$35 -> 46598 | I131: 0 | J131: 0 | K131: 0 | L131: 0 | M131: 0 | N131: 0 | O131: 0 | P131: 0 | Q131: 0 | R131: 0 | S131: 0 | T131: 0 | U131: 0 | V131: 0 | W131: 0 | X131: 0 | Y131: 0
A132: Passivos Fiscais Diferidos | B132: ='[4]BP-BACEN-2020'!$P$38 -> 3765 | C132: ='[5]BP-BACEN-2020'!$P$38 -> 8924 | D132: ='[6]BP-BACEN-2020'!$O$38 -> 4306 | E132: ='[7]BP-BACEN-2020'!$P$39 -> 4611 | F132: ='[1]BP-BACEN-2021'!$P$36 -> 628 | G132: ='[2]BP-BACEN-2021'!$O$36 -> 628 | H132: ='[3]BP-BACEN-2021'!$Q$36 -> 3092 | I132: 0 | J132: 0 | K132: 0 | L132: 0 | M132: 0 | N132: 0 | O132: 0 | P132: 0 | Q132: 0 | R132: 0 | S132: 0 | T132: 0 | U132: 0 | V132: 0 | W132: 0 | X132: 0 | Y132: 0
A134: OUTROS PASSIVOS | B134: =SUM(B135:B145) -> 433027 | C134: 527413 | D134: 444229 | E134: 503822 | F134: 510627 | G134: 598721 | H134: 567760 | I134: 0 | J134: 0 | K134: 0 | L134: 0 | M134: 0 | N134: 0 | O134: 0 | P134: 0 | Q134: 0 | R134: 0 | S134: 0 | T134: 0 | U134: 0 | V134: 0 | W134: 0 | X134: 0 | Y134: 0
A135: Cobrança e Arrecadação de Tributos e Assemelhados | B135: ='[4]BP-BACEN-2020'!$P$44 -> 8223 | C135: ='[5]BP-BACEN-2020'!$P$43 -> 35517 | D135: ='[6]BP-BACEN-2020'!$O$44 -> 10651 | E135: ='[7]BP-BACEN-2020'!$P$44 -> 430 | F135: ='[1]BP-BACEN-2021'!$P$42 -> 26071 | G135: ='[2]BP-BACEN-2021'!$O$42 -> 21873 | H135: ='[3]BP-BACEN-2021'!$Q$42 -> 34545 | I135: 0 | J135: 0 | K135: 0 | L135: 0 | M135: 0 | N135: 0 | O135: 0 | P135: 0 | Q135: 0 | R135: 0 | S135: 0 | T135: 0 | U135: 0 | V135: 0 | W135: 0 | X135: 0 | Y135: 0
A136: Câmbio Vendido a Liquidar | B136: 0 | C136: ='[5]BP-BACEN-2020'!$P$44 -> 548 | D136: 0 | E136: ='[7]BP-BACEN-2020'!$P$45 -> 415 | F136: ='[1]BP-BACEN-2021'!$P$43 -> 0 | G136: ='[2]BP-BACEN-2021'!$O$43 -> 1922 | H136: ='[3]BP-BACEN-2021'!$Q$43 -> 272
A137: Obrigações por Compra de Câmbio | B137: ='[4]BP-BACEN-2020'!$P$45 -> 55583 | C137: ='[5]BP-BACEN-2020'!$P$45 -> 55853 | D137: ='[6]BP-BACEN-2020'!$O$45 -> 55583 | E137: ='[7]BP-BACEN-2020'!$P$46 -> 55945 | F137: ='[1]BP-BACEN-2021'!$P$44 -> 55583 | G137: ='[2]BP-BACEN-2021'!$O$44 -> 57076 | H137: ='[3]BP-BACEN-2021'!$Q$44 -> 55852 | I137: 0 | J137: 0 | K137: 0 | L137: 0 | M137: 0 | N137: 0 | O137: 0 | P137: 0 | Q137: 0 | R137: 0 | S137: 0 | T137: 0 | U137: 0 | V137: 0 | W137: 0 | X137: 0 | Y137: 0
A138: (Adiantamentos sobre Contratos de Câmbio) | B138: ='[4]BP-BACEN-2020'!$P$46 -> -55583 | C138: ='[5]BP-BACEN-2020'!$P$46 -> -55583 | D138: ='[6]BP-BACEN-2020'!$O$46 -> -55583 | E138: ='[7]BP-BACEN-2020'!$P$47 -> -55583 | F138: ='[1]BP-BACEN-2021'!$P$45 -> -55583 | G138: ='[2]BP-BACEN-2021'!$O$45 -> -55583 | H138: ='[3]BP-BACEN-2021'!$Q$45 -> -55583 | I138: 0 | J138: 0 | K138: 0 | L138: 0 | M138: 0 | N138: 0 | O138: 0 | P138: 0 | Q138: 0 | R138: 0 | S138: 0 | T138: 0 | U138: 0 | V138: 0 | W138: 0 | X138: 0 | Y138: 0
A139: Sociais e Estatutárias | B139: ='[4]BP-BACEN-2020'!$P$47 -> 3148 | C139: ='[5]BP-BACEN-2020'!$P$47 -> 15507 | D139: ='[6]BP-BACEN-2020'!$O$47 -> 8227 | E139: ='[7]BP-BACEN-2020'!$P$48 -> 56201 | F139: ='[1]BP-BACEN-2021'!$P$46 -> 13365 | G139: ='[2]BP-BACEN-2021'!$O$46 -> 42130 | H139: ='[3]BP-BACEN-2021'!$Q$46 -> 14971 | I139: 0 | J139: 0 | K139: 0 | L139: 0 | M139: 0 | N139: 0 | O139: 0 | P139: 0 | Q139: 0 | R139: 0 | S139: 0 | T139: 0 | U139: 0 | V139: 0 | W139: 0 | X139: 0 | Y139: 0
A140: Negociação e Intermediação de Valores | B140: ='[4]BP-BACEN-2020'!$P$48 -> 8470 | C140: ='[5]BP-BACEN-2020'!$P$48 -> 17040 | D140: ='[6]BP-BACEN-2020'!$O$48 -> 14138 | E140: ='[7]BP-BACEN-2020'!$P$49 -> 7734 | F140: ='[1]BP-BACEN-2021'!$P$47 -> 1839 | G140: ='[2]BP-BACEN-2021'!$O$47 -> 2654 | H140: ='[3]BP-BACEN-2021'!$Q$47 -> 1116 | I140: 0 | J140: 0 | K140: 0 | L140: 0 | M140: 0 | N140: 0 | O140: 0 | P140: 0 | Q140: 0 | R140: 0 | S140: 0 | T140: 0 | U140: 0 | V140: 0 | W140: 0 | X140: 0 | Y140: 0
A141: Obrigações por Convênios Oficiais | B141: ='[4]BP-BACEN-2020'!$P$49 -> 157321 | C141: ='[5]BP-BACEN-2020'!$P$49 -> 214936 | D141: ='[6]BP-BACEN-2020'!$O$49 -> 191129 | E141: ='[7]BP-BACEN-2020'!$P$50 -> 186310 | F141: ='[1]BP-BACEN-2021'!$P$48 -> 200549 | G141: ='[2]BP-BACEN-2021'!$O$48 -> 229116 | H141: ='[3]BP-BACEN-2021'!$Q$48 -> 184333 | I141: 0 | J141: 0 | K141: 0 | L141: 0 | M141: 0 | N141: 0 | O141: 0 | P141: 0 | Q141: 0 | R141: 0 | S141: 0 | T141: 0 | U141: 0 | V141: 0 | W141: 0 | X141: 0 | Y141: 0
A142: Obrigações por Aquisição de Bens e Direitos | B142: ='[4]BP-BACEN-2020'!$P$50 -> 15104 | C142: ='[5]BP-BACEN-2020'!$P$50 -> 9420 | D142: ='[6]BP-BACEN-2020'!$O$50 -> 6742 | E142: ='[7]BP-BACEN-2020'!$P$51 -> 8683 | F142: ='[1]BP-BACEN-2021'!$P$49 -> 4307 | G142: ='[2]BP-BACEN-2021'!$O$49 -> 5012 | H142: ='[3]BP-BACEN-2021'!$Q$49 -> 9806 | I142: 0 | J142: 0 | K142: 0 | L142: 0 | M142: 0 | N142: 0 | O142: 0 | P142: 0 | Q142: 0 | R142: 0 | S142: 0 | T142: 0 | U142: 0 | V142: 0 | W142: 0 | X142: 0 | Y142: 0
A143: Provisão para Pagamentos a Efetuar | B143: ='[4]BP-BACEN-2020'!$P$51 -> 48601 | C143: ='[5]BP-BACEN-2020'!$P$51 -> 58928 | D143: ='[6]BP-BACEN-2020'!$O$51 -> 60558 | E143: ='[7]BP-BACEN-2020'!$P$52 -> 54030 | F143: ='[1]BP-BACEN-2021'!$P$50 -> 62693 | G143: ='[2]BP-BACEN-2021'!$O$50 -> 76075 | H143: ='[3]BP-BACEN-2021'!$Q$50 -> 85135 | I143: 0 | J143: 0 | K143: 0 | L143: 0 | M143: 0 | N143: 0 | O143: 0 | P143: 0 | Q143: 0 | R143: 0 | S143: 0 | T143: 0 | U143: 0 | V143: 0 | W143: 0 | X143: 0 | Y143: 0
A144: Credores Diversos - País | B144: ='[4]BP-BACEN-2020'!$P$52 -> 191057 | C144: ='[5]BP-BACEN-2020'!$P$52 -> 174402 | D144: ='[6]BP-BACEN-2020'!$O$52 -> 150982 | E144: ='[7]BP-BACEN-2020'!$P$53 -> 188028 | F144: ='[1]BP-BACEN-2021'!$P$51 -> 200923 | G144: ='[2]BP-BACEN-2021'!$O$51 -> 217390 | H144: ='[3]BP-BACEN-2021'!$Q$51 -> 236538 | I144: 0 | J144: 0 | K144: 0 | L144: 0 | M144: 0 | N144: 0 | O144: 0 | P144: 0 | Q144: 0 | R144: 0 | S144: 0 | T144: 0 | U144: 0 | V144: 0 | W144: 0 | X144: 0 | Y144: 0
A145: Outros | B145: ='[4]BP-BACEN-2020'!$P$53 -> 1103 | C145: ='[5]BP-BACEN-2020'!$P$53 -> 845 | D145: ='[6]BP-BACEN-2020'!$O$53 -> 1802 | E145: ='[7]BP-BACEN-2020'!$P$54 -> 1629 | F145: ='[1]BP-BACEN-2021'!$P$52 -> 880 | G145: ='[2]BP-BACEN-2021'!$O$52 -> 1056 | H145: ='[3]BP-BACEN-2021'!$Q$52 -> 775 | I145: 0 | J145: 0 | K145: 0 | L145: 0 | M145: 0 | N145: 0 | O145: 0 | P145: 0 | Q145: 0 | R145: 0 | S145: 0 | T145: 0 | U145: 0 | V145: 0 | W145: 0 | X145: 0 | Y145: 0
A147: PASSIVO NÃO CIRCULANTE | B147: =B149+B159+B162+B165+B169 -> 5485864 | C147: 6034792 | D147: 6488294 | E147: 6666425 | F147: 6697229 | G147: 6830919 | H147: 6560789 | I147: 0 | J147: 0 | K147: 0 | L147: 0 | M147: 0 | N147: 0 | O147: 0 | P147: 0 | Q147: 0 | R147: 0 | S147: 0 | T147: 0 | U147: 0 | V147: 0 | W147: 0 | X147: 0 | Y147: 0
A149: DEPÓSITOS E DEMAIS INSTRUMENTOS FINANCEIROS | B149: =B150+B153+B155+B156+B157 -> 5124711 | C149: 5658722 | D149: 6101770 | E149: 6293393 | F149: 6286066 | G149: 6409924 | H149: 6125811 | I149: 0 | J149: 0 | K149: 0 | L149: 0 | M149: 0 | N149: 0 | O149: 0 | P149: 0 | Q149: 0 | R149: 0 | S149: 0 | T149: 0 | U149: 0 | V149: 0 | W149: 0 | X149: 0 | Y149: 0
A150: Depósitos | B150: =B151+B152 -> 4716523 | C150: 5248029 | D150: 5685749 | E150: 5876369 | F150: 5866849 | G150: 5987239 | H150: 5701207 | I150: 0 | J150: 0 | K150: 0 | L150: 0 | M150: 0 | N150: 0 | O150: 0 | P150: 0 | Q150: 0 | R150: 0 | S150: 0 | T150: 0 | U150: 0 | V150: 0 | W150: 0 | X150: 0 | Y150: 0
A151: Depósitos Interfinanceiros | B151: ='[4]BP-BACEN-2020'!$P$70 -> 0 | C151: 0 | D151: ='[6]BP-BACEN-2020'!$O$70 -> 6074 | E151: ='[7]BP-BACEN-2020'!$P$71 -> 6247 | F151: ='[1]BP-BACEN-2021'!$P$69 -> 47225 | G151: ='[2]BP-BACEN-2021'!$O$69 -> 127825 | H151: ='[3]BP-BACEN-2021'!$Q$69 -> 96271
A152: Depósitos a Prazo | B152: ='[4]BP-BACEN-2020'!$P$71 -> 4716523 | C152: ='[5]BP-BACEN-2020'!$P$71 -> 5248029 | D152: ='[6]BP-BACEN-2020'!$O$71 -> 5679675 | E152: ='[7]BP-BACEN-2020'!$P$72 -> 5870122 | F152: ='[1]BP-BACEN-2021'!$P$70 -> 5819624 | G152: ='[2]BP-BACEN-2021'!$O$70 -> 5859414 | H152: ='[3]BP-BACEN-2021'!$Q$70 -> 5604936
A153: Recursos de Aceites e Emissão de Títulos | B153: =B154 -> 8514 | C153: 2378 | D153: 3835 | E153: 3260 | F153: 3105 | G153: 1740 | H153: 273 | I153: 0 | J153: 0 | K153: 0 | L153: 0 | M153: 0 | N153: 0 | O153: 0 | P153: 0 | Q153: 0 | R153: 0 | S153: 0 | T153: 0 | U153: 0 | V153: 0 | W153: 0 | X153: 0 | Y153: 0
A154: Recursos de Letras Imobiliárias, Hipotecárias, de Crédito e Similares | B154: ='[4]BP-BACEN-2020'!$P$73 -> 8514 | C154: ='[5]BP-BACEN-2020'!$P$73 -> 2378 | D154: ='[6]BP-BACEN-2020'!$O$73 -> 3835 | E154: ='[7]BP-BACEN-2020'!$P$74 -> 3260 | F154: ='[1]BP-BACEN-2021'!$P$72 -> 3105 | G154: ='[2]BP-BACEN-2021'!$O$72 -> 1740 | H154: ='[3]BP-BACEN-2021'!$Q$72 -> 273
A155: Provisão para Garantias Financeiras Prestadas | B155: ='[4]BP-BACEN-2020'!$P$74 -> 70 | C155: ='[5]BP-BACEN-2020'!$P$74 -> 21 | D155: ='[6]BP-BACEN-2020'!$O$74 -> 3 | E155: ='[7]BP-BACEN-2020'!$P$75 -> 107 | F155: ='[1]BP-BACEN-2021'!$P$73 -> 1 | G155: ='[2]BP-BACEN-2021'!$O$73 -> 1 | H155: ='[3]BP-BACEN-2021'!$Q$73 -> 0
A156: Obrigações por Operações Vinculadas a Cessão | B156: ='[4]BP-BACEN-2020'!$P$75 -> 2462 | C156: ='[5]BP-BACEN-2020'!$P$75 -> 1164 | D156: ='[6]BP-BACEN-2020'!$O$75 -> 247 | E156: ='[7]BP-BACEN-2020'!$P$76 -> 0 | F156: 0 | G156: 0 | H156: 0
A157: Instrumentos de Dívida Elegíveis a Capital | B157: ='[4]BP-BACEN-2020'!$P$76 -> 397142 | C157: ='[5]BP-BACEN-2020'!$P$76 -> 407130 | D157: ='[6]BP-BACEN-2020'!$O$76 -> 411936 | E157: ='[7]BP-BACEN-2020'!$P$77 -> 413657 | F157: ='[1]BP-BACEN-2021'!$P$74 -> 416111 | G157: ='[2]BP-BACEN-2021'!$O$74 -> 420944 | H157: ='[3]BP-BACEN-2021'!$Q$74 -> 424331
A159: PROVISÕES | B159: =SUM(B160:B161) -> 293697 | C159: 291135 | D159: 295411 | E159: 286050 | F159: 303097 | G159: 287811 | H159: 297135 | I159: 0 | J159: 0 | K159: 0 | L159: 0 | M159: 0 | N159: 0 | O159: 0 | P159: 0 | Q159: 0 | R159: 0 | S159: 0 | T159: 0 | U159: 0 | V159: 0 | W159: 0 | X159: 0 | Y159: 0
A160: Provisão para Outros Passivos | B160: ='[4]BP-BACEN-2020'!$P$81 -> 293697 | C160: ='[5]BP-BACEN-2020'!$P$81 -> 291135 | D160: ='[6]BP-BACEN-2020'!$O$80 -> 295411 | E160: ='[7]BP-BACEN-2020'!$P$81 -> 286050 | F160: ='[1]BP-BACEN-2021'!$P$78 -> 303097 | G160: ='[2]BP-BACEN-2021'!$O$78 -> 287811 | H160: ='[3]BP-BACEN-2021'!$Q$78 -> 297135 | I160: 0 | J160: 0 | K160: 0 | L160: 0 | M160: 0 | N160: 0 | O160: 0 | P160: 0 | Q160: 0 | R160: 0 | S160: 0 | T160: 0 | U160: 0 | V160: 0 | W160: 0 | X160: 0 | Y160: 0
A162: PASSIVOS FISCAIS | B162: =B163 -> 2239 | C162: 2718 | D162: 2403 | E162: 2726 | F162: 2511 | G162: 2562 | H162: 2353 | I162: 0 | J162: 0 | K162: 0 | L162: 0 | M162: 0 | N162: 0 | O162: 0 | P162: 0 | Q162: 0 | R162: 0 | S162: 0 | T162: 0 | U162: 0 | V162: 0 | W162: 0 | X162: 0 | Y162: 0
A163: Passivos Fiscais Diferidos | B163: ='[4]BP-BACEN-2020'!$P$86 -> 2239 | C163: ='[5]BP-BACEN-2020'!$P$86 -> 2718 | D163: ='[6]BP-BACEN-2020'!$O$85 -> 2403 | E163: ='[7]BP-BACEN-2020'!$P$86 -> 2726 | F163: ='[1]BP-BACEN-2021'!$P$82 -> 2511 | G163: ='[2]BP-BACEN-2021'!$O$82 -> 2562 | H163: ='[3]BP-BACEN-2021'!$Q$82 -> 2353 | I163: 0 | J163: 0 | K163: 0 | L163: 0 | M163: 0 | N163: 0 | O163: 0 | P163: 0 | Q163: 0 | R163: 0 | S163: 0 | T163: 0 | U163: 0 | V163: 0 | W163: 0 | X163: 0 | Y163: 0
A165: OUTROS PASSIVOS | B165: =SUM(B166:B167) -> 64899 | C165: 81959 | D165: 88407 | E165: 83944 | F165: 105267 | G165: 130372 | H165: 135217 | I165: 0 | J165: 0 | K165: 0 | L165: 0 | M165: 0 | N165: 0 | O165: 0 | P165: 0 | Q165: 0 | R165: 0 | S165: 0 | T165: 0 | U165: 0 | V165: 0 | W165: 0 | X165: 0 | Y165: 0
A166: Provisão para Pagamentos a Efetuar | B166: ='[4]BP-BACEN-2020'!$P$90 -> 32246 | C166: ='[5]BP-BACEN-2020'!$P$90 -> 40774 | D166: ='[6]BP-BACEN-2020'!$O$89 -> 48722 | E166: ='[7]BP-BACEN-2020'!$P$90 -> 61873 | F166: ='[1]BP-BACEN-2021'!$P$86 -> 83196 | G166: ='[2]BP-BACEN-2021'!$O$86 -> 110848 | H166: ='[3]BP-BACEN-2021'!$Q$86 -> 115693 | I166: 0 | J166: 0 | K166: 0 | L166: 0 | M166: 0 | N166: 0 | O166: 0 | P166: 0 | Q166: 0 | R166: 0 | S166: 0 | T166: 0 | U166: 0 | V166: 0 | W166: 0 | X166: 0 | Y166: 0
A167: Outros | B167: ='[4]BP-BACEN-2020'!$P$91 -> 32653 | C167: ='[5]BP-BACEN-2020'!$P$91 -> 41185 | D167: ='[6]BP-BACEN-2020'!$O$90 -> 39685 | E167: ='[7]BP-BACEN-2020'!$P$91 -> 22071 | F167: ='[1]BP-BACEN-2021'!$P$87 -> 22071 | G167: ='[2]BP-BACEN-2021'!$O$87 -> 19524 | H167: ='[3]BP-BACEN-2021'!$Q$87 -> 19524 | I167: 0 | J167: 0 | K167: 0 | L167: 0 | M167: 0 | N167: 0 | O167: 0 | P167: 0 | Q167: 0 | R167: 0 | S167: 0 | T167: 0 | U167: 0 | V167: 0 | W167: 0 | X167: 0 | Y167: 0
A169: RESULTADOS DE EXERCÍCIOS FUTUROS | B169: ='[4]BP-BACEN-2020'!$P$94 -> 318 | C169: ='[5]BP-BACEN-2020'!$P$94 -> 258 | D169: ='[6]BP-BACEN-2020'!$O$93 -> 303 | E169: ='[7]BP-BACEN-2020'!$P$94 -> 312 | F169: ='[1]BP-BACEN-2021'!$P$90 -> 288 | G169: ='[2]BP-BACEN-2021'!$O$90 -> 250 | H169: ='[3]BP-BACEN-2021'!$Q$90 -> 273 | I169: 0 | J169: 0 | K169: 0 | L169: 0 | M169: 0 | N169: 0 | O169: 0 | P169: 0 | Q169: 0 | R169: 0 | S169: 0 | T169: 0 | U169: 0 | V169: 0 | W169: 0 | X169: 0 | Y169: 0
A171: PATRIMÔNIO LÍQUIDO | B171: =B172+B173+B174+B175+B180+B182+B183 -> 979575 | C171: 1000727 | D171: 1026329 | E171: 1033907 | F171: 1084778 | G171: 1113042 | H171: 1158394 | I171: 0 | J171: 0 | K171: 0 | L171: 0 | M171: 0 | N171: 0 | O171: 0 | P171: 0 | Q171: 0 | R171: 0 | S171: 0 | T171: 0 | U171: 0 | V171: 0 | W171: 0 | X171: 0 | Y171: 0
A172: Capital Social | B172: ='[4]BP-BACEN-2020'!$P$98 -> 492708 | C172: ='[5]BP-BACEN-2020'!$P$99 -> 492708 | D172: ='[6]BP-BACEN-2020'!$O$98 -> 492708 | E172: ='[7]BP-BACEN-2020'!$P$101 -> 492708 | F172: ='[1]BP-BACEN-2021'!$P$94 -> 492708 | G172: ='[2]BP-BACEN-2021'!$O$95 -> 492708 | H172: ='[3]BP-BACEN-2021'!$Q$94 -> 492708 | I172: 0 | J172: 0 | K172: 0 | L172: 0 | M172: 0 | N172: 0 | O172: 0 | P172: 0 | Q172: 0 | R172: 0 | S172: 0 | T172: 0 | U172: 0 | V172: 0 | W172: 0 | X172: 0 | Y172: 0
A173: Reservas de Capital | B173: ='[4]BP-BACEN-2020'!$P$99 -> 43375 | C173: ='[5]BP-BACEN-2020'!$P$100 -> 43375 | D173: ='[6]BP-BACEN-2020'!$O$99 -> 43375 | E173: ='[7]BP-BACEN-2020'!$P$102 -> 43375 | F173: ='[1]BP-BACEN-2021'!$P$95 -> 43375 | G173: ='[2]BP-BACEN-2021'!$O$96 -> 43375 | H173: ='[3]BP-BACEN-2021'!$Q$95 -> 43375
A174: Reservas de Reavaliação | B174: ='[4]BP-BACEN-2020'!$P$100 -> 124 | C174: ='[5]BP-BACEN-2020'!$P$101 -> 122 | D174: ='[6]BP-BACEN-2020'!$O$100 -> 119 | E174: ='[7]BP-BACEN-2020'!$P$103 -> 117 | F174: ='[1]BP-BACEN-2021'!$P$96 -> 115 | G174: ='[2]BP-BACEN-2021'!$O$97 -> 113 | H174: ='[3]BP-BACEN-2021'!$Q$96 -> 111
A175: Reservas de Lucros | B175: =B176+B177 -> 365958 | C175: 438511 | D175: 438511 | E175: 463107 | F175: 463107 | G175: 541621 | H175: 541621 | I175: 0 | J175: 0 | K175: 0 | L175: 0 | M175: 0 | N175: 0 | O175: 0 | P175: 0 | Q175: 0 | R175: 0 | S175: 0 | T175: 0 | U175: 0 | V175: 0 | W175: 0 | X175: 0 | Y175: 0
A176: Reserva Legal | B176: ='[4]BP-BACEN-2020'!$P$102 -> 70911 | C176: ='[5]BP-BACEN-2020'!$P$103 -> 74538 | D176: ='[6]BP-BACEN-2020'!$O$102 -> 74538 | E176: ='[7]BP-BACEN-2020'!$P$105 -> 78463 | F176: ='[1]BP-BACEN-2021'!$P$98 -> 78463 | G176: ='[2]BP-BACEN-2021'!$O$99 -> 83490 | H176: ='[3]BP-BACEN-2021'!$Q$98 -> 83490 | I176: 0 | J176: 0 | K176: 0 | L176: 0 | M176: 0 | N176: 0 | O176: 0 | P176: 0 | Q176: 0 | R176: 0 | S176: 0 | T176: 0 | U176: 0 | V176: 0 | W176: 0 | X176: 0 | Y176: 0
A177: Reservas Estatutárias | B177: =SUM(B178:B179) -> 295047 | C177: 363973 | D177: 363973 | E177: 384644 | F177: 384644 | G177: 458131 | H177: 458131 | I177: 0 | J177: 0 | K177: 0 | L177: 0 | M177: 0 | N177: 0 | O177: 0 | P177: 0 | Q177: 0 | R177: 0 | S177: 0 | T177: 0 | U177: 0 | V177: 0 | W177: 0 | X177: 0 | Y177: 0
A178: Para Pagamento de Dividendos | B178: ='[4]BP-BACEN-2020'!$P$104 -> 14609 | C178: ='[5]BP-BACEN-2020'!$P$105 -> 21502 | D178: ='[6]BP-BACEN-2020'!$O$104 -> 21502 | E178: ='[7]BP-BACEN-2020'!$P$107 -> 23569 | F178: ='[1]BP-BACEN-2021'!$P$100 -> 23569 | G178: ='[2]BP-BACEN-2021'!$O$101 -> 30918 | H178: ='[3]BP-BACEN-2021'!$Q$100 -> 30918 | I178: 0 | J178: 0 | K178: 0 | L178: 0 | M178: 0 | N178: 0 | O178: 0 | P178: 0 | Q178: 0 | R178: 0 | S178: 0 | T178: 0 | U178: 0 | V178: 0 | W178: 0 | X178: 0 | Y178: 0
A179: Para Aumento de Capital | B179: ='[4]BP-BACEN-2020'!$P$105 -> 280438 | C179: ='[5]BP-BACEN-2020'!$P$106 -> 342471 | D179: ='[6]BP-BACEN-2020'!$O$105 -> 342471 | E179: ='[7]BP-BACEN-2020'!$P$108 -> 361075 | F179: ='[1]BP-BACEN-2021'!$P$101 -> 361075 | G179: ='[2]BP-BACEN-2021'!$O$102 -> 427213 | H179: ='[3]BP-BACEN-2021'!$Q$101 -> 427213 | I179: 0 | J179: 0 | K179: 0 | L179: 0 | M179: 0 | N179: 0 | O179: 0 | P179: 0 | Q179: 0 | R179: 0 | S179: 0 | T179: 0 | U179: 0 | V179: 0 | W179: 0 | X179: 0 | Y179: 0
A180: Outros Resultados Abrangentes | B180: =B181 -> -14820 | C180: -19695 | D180: -21615 | E180: -11339 | F180: -11602 | G180: -10339 | H180: -5109 | I180: 0 | J180: 0 | K180: 0 | L180: 0 | M180: 0 | N180: 0 | O180: 0 | P180: 0 | Q180: 0 | R180: 0 | S180: 0 | T180: 0 | U180: 0 | V180: 0 | W180: 0 | X180: 0 | Y180: 0
A181: Ajustes de Avaliação Patrimonial | B181: ='[4]BP-BACEN-2020'!$P$107 -> -14820 | C181: ='[5]BP-BACEN-2020'!$P$108 -> -19695 | D181: ='[6]BP-BACEN-2020'!$O$107 -> -21615 | E181: ='[7]BP-BACEN-2020'!$P$110 -> -11339 | F181: ='[1]BP-BACEN-2021'!$P$103 -> -11602 | G181: ='[2]BP-BACEN-2021'!$O$104 -> -10339 | H181: ='[3]BP-BACEN-2021'!$Q$103 -> -5109
A182: Lucros Acumulados | B182: ='[4]BP-BACEN-2020'!$P$108 -> 46934 | C182: 0 | D182: ='[6]BP-BACEN-2020'!$O$108 -> 27180 | E182: 0 | F182: ='[1]BP-BACEN-2021'!$P$104 -> 51243 | G182: 0 | H182: ='[3]BP-BACEN-2021'!$Q$104 -> 40130
A183: Participação dos Não Controladores | B183: ='[4]BP-BACEN-2020'!$P$109 -> 45296 | C183: ='[5]BP-BACEN-2020'!$P$109 -> 45706 | D183: ='[6]BP-BACEN-2020'!$O$109 -> 46051 | E183: ='[7]BP-BACEN-2020'!$P$111 -> 45939 | F183: ='[1]BP-BACEN-2021'!$P$105 -> 45832 | G183: ='[2]BP-BACEN-2021'!$O$105 -> 45564 | H183: ='[3]BP-BACEN-2021'!$Q$105 -> 45558
A185: TOTAL DO PASSIVO E PATRIMÔNIO LÍQUIDO | B185: =B105+B147+B171 -> 10087527 | C185: 10747166 | D185: 10158015 | E185: 10718363 | F185: 10730786 | G185: 11530824 | H185: 11950964 | I185: 0 | J185: 0 | K185: 0 | L185: 0 | M185: 0 | N185: 0 | O185: 0 | P185: 0 | Q185: 0 | R185: 0 | S185: 0 | T185: 0 | U185: 0 | V185: 0 | W185: 0 | X185: 0 | Y185: 0
B186: =B101-B185 -> 0 | C186: 0 | D186: 0 | E186: 0 | F186: 0 | G186: 0 | H186: 0 | I186: 0 | J186: 0 | K186: 0 | L186: 0 | M186: 0 | N186: 0 | O186: 0 | P186: 0 | Q186: 0 | R186: 0 | S186: 0 | T186: 0 | U186: 0 | V186: 0 | W186: 0 | X186: 0 | Y186: 0

Sheet DRE Trimestral
A2: Banco Mercantil do Brasil SA
A4: Planilha de Séries Históricas
B6: Índice | Q6: Índice
A7: DRE Contábil (Consolidado)
A8: (R$ mil)
B9: 1T20 | C9: 2T20 | D9: 3T20 | E9: 4T20 | F9: 1T21 | G9: 2T21 | H9: 3T21 | I9: 4T21 | J9: 1T22 | K9: 2T22 | L9: 3T22 | M9: 4T22 | N9: 1T23 | O9: 2T23 | P9: 3T23 | Q9: 4T23 | R9: 1T24 | S9: 2T24 | T9: 3T24 | U9: 4T24 | V9: 1T25 | W9: 2T25 | X9: 3T25 | Y9: 4T25
A10: RECEITAS DA INTERMEDIAÇÃO FINANCEIRA | B10: =SUM(B11:B16) -> 664161 | C10: 560821 | D10: 502116 | E10: 573627 | F10: 577886 | G10: 651547 | H10: 704008 | I10: 0 | J10: 0 | K10: 0 | L10: 0 | M10: 0 | N10: 0 | O10: 0 | P10: 0 | Q10: 0 | R10: 0 | S10: 0 | T10: 0 | U10: 0 | V10: 0 | W10: 0 | X10: 0 | Y10: 0
A11: Operações de Crédito | B11: ='[4]DRE-BACEN-2020'!$G$12 -> 459417 | C11: ='[5]DRE CONS. Reais'!$I$13 -> 472455 | D11: ='[6]DRE-BACEN-2020'!$J$12 -> 464980 | E11: ='[7]DRE-BACEN-2020'!$I$12-D11 -> 516950 | F11: ='[1]DRE-BACEN-2021'!$G$12 -> 490461 | G11: ='[2]DRE CONS. Reais'!$I$13 -> 561883 | H11: ='[3]DRE-BACEN-2021'!$K$12 -> 617284 | I11: 0 | J11: 0 | K11: 0 | L11: 0 | M11: 0 | N11: 0 | O11: 0 | P11: 0 | Q11: 0 | R11: 0 | S11: 0 | T11: 0 | U11: 0 | V11: 0 | W11: 0 | X11: 0 | Y11: 0
A12: Resultado de Operações com Títulos e Valores Mobiliários | B12: ='[4]DRE-BACEN-2020'!$G$13 -> 40172 | C12: ='[5]DRE CONS. Reais'!$I$15 -> 37389 | D12: ='[6]DRE-BACEN-2020'!$J$13 -> 16886 | E12: ='[7]DRE-BACEN-2020'!$I$13-D12 -> 14969 | F12: ='[1]DRE-BACEN-2021'!$G$13 -> 11928 | G12: ='[2]DRE CONS. Reais'!$I$15 -> 16192 | H12: ='[3]DRE-BACEN-2021'!$K$13 -> 28221 | I12: 0 | J12: 0 | K12: 0 | L12: 0 | M12: 0 | N12: 0 | O12: 0 | P12: 0 | Q12: 0 | R12: 0 | S12: 0 | T12: 0 | U12: 0 | V12: 0 | W12: 0 | X12: 0 | Y12: 0
A13: Resultado com Instrumentos Financeiros Derivativos | B13: ='[4]DRE-BACEN-2020'!$G$14 -> 118985 | C13: ='[5]DRE CONS. Reais'!$I$16 -> 14480 | D13: ='[6]DRE-BACEN-2020'!$J$14 -> -18166 | E13: ='[7]DRE-BACEN-2020'!$I$14-D13 -> 1741 | F13: ='[1]DRE-BACEN-2021'!$G$14 -> 12703 | G13: ='[2]DRE CONS. Reais'!$I$16 -> 17114 | H13: ='[3]DRE-BACEN-2021'!$K$14 -> 17820 | I13: 0 | J13: 0 | K13: 0 | L13: 0 | M13: 0 | N13: 0 | O13: 0 | P13: 0 | Q13: 0 | R13: 0 | S13: 0 | T13: 0 | U13: 0 | V13: 0 | W13: 0 | X13: 0 | Y13: 0
A14: Resultado de Operações de Câmbio | B14: ='[4]DRE-BACEN-2020'!$G$15 -> 25674 | C14: ='[5]DRE CONS. Reais'!$I$17 -> 8015 | D14: ='[6]DRE-BACEN-2020'!$J$15 -> 8268 | E14: ='[7]DRE-BACEN-2020'!$I$15-D14 -> -8229 | F14: ='[1]DRE-BACEN-2021'!$G$15 -> 11886 | G14: ='[2]DRE CONS. Reais'!$I$17 -> -13061 | H14: ='[3]DRE-BACEN-2021'!$K$15 -> 10709 | I14: 0 | J14: 0 | K14: 0 | L14: 0 | M14: 0 | N14: 0 | O14: 0 | P14: 0 | Q14: 0 | R14: 0 | S14: 0 | T14: 0 | U14: 0 | V14: 0 | W14: 0 | X14: 0 | Y14: 0
A15: Resultado das Aplicações Compulsórias | B15: ='[4]DRE-BACEN-2020'!$G$16 -> 699 | C15: ='[5]DRE CONS. Reais'!$I$18 -> 712 | D15: ='[6]DRE-BACEN-2020'!$J$16 -> 654 | E15: ='[7]DRE-BACEN-2020'!$I$16-D15 -> 532 | F15: ='[1]DRE-BACEN-2021'!$G$16 -> 530 | G15: ='[2]DRE CONS. Reais'!$I$18 -> 951 | H15: ='[3]DRE-BACEN-2021'!$K$16 -> 1027 | I15: 0 | J15: 0 | K15: 0 | L15: 0 | M15: 0 | N15: 0 | O15: 0 | P15: 0 | Q15: 0 | R15: 0 | S15: 0 | T15: 0 | U15: 0 | V15: 0 | W15: 0 | X15: 0 | Y15: 0
A16: Operações de Venda ou de Transferência de Ativos Financeiros | B16: ='[4]DRE-BACEN-2020'!$G$17 -> 19214 | C16: ='[5]DRE CONS. Reais'!$I$19 -> 27770 | D16: ='[6]DRE-BACEN-2020'!$J$17 -> 29494 | E16: ='[7]DRE-BACEN-2020'!$I$17-D16 -> 47664 | F16: ='[1]DRE-BACEN-2021'!$G$17 -> 50378 | G16: ='[2]DRE CONS. Reais'!$I$19 -> 68468 | H16: ='[3]DRE-BACEN-2021'!$K$17 -> 28947 | I16: 0 | J16: 0 | K16: 0 | L16: 0 | M16: 0 | N16: 0 | O16: 0 | P16: 0 | Q16: 0 | R16: 0 | S16: 0 | T16: 0 | U16: 0 | V16: 0 | W16: 0 | X16: 0 | Y16: 0
A18: DESPESAS DA INTERMEDIAÇÃO FINANCEIRA | B18: =SUM(B19:B21) -> -258258 | C18: -112004 | D18: -27619 | E18: -39482 | F18: -41563 | G18: -64192 | H18: -107555 | I18: 0 | J18: 0 | K18: 0 | L18: 0 | M18: 0 | N18: 0 | O18: 0 | P18: 0 | Q18: 0 | R18: 0 | S18: 0 | T18: 0 | U18: 0 | V18: 0 | W18: 0 | X18: 0 | Y18: 0
A19: Operações de Captação no Mercado | B19: ='[4]DRE-BACEN-2020'!$G$20 -> -249890 | C19: ='[5]DRE CONS. Reais'!$I$22 -> -109255 | D19: ='[6]DRE-BACEN-2020'!$J$20 -> -24002 | E19: ='[7]DRE-BACEN-2020'!$I$20-D19 -> -39357 | F19: ='[1]DRE-BACEN-2021'!$G$20 -> -41358 | G19: ='[2]DRE CONS. Reais'!$I$22 -> -64048 | H19: ='[3]DRE-BACEN-2021'!$K$20 -> -105245 | I19: 0 | J19: 0 | K19: 0 | L19: 0 | M19: 0 | N19: 0 | O19: 0 | P19: 0 | Q19: 0 | R19: 0 | S19: 0 | T19: 0 | U19: 0 | V19: 0 | W19: 0 | X19: 0 | Y19: 0
A20: Operações de Empréstimos, Cessões e Repasses | B20: ='[4]DRE-BACEN-2020'!$G$21 -> -7149 | C20: ='[5]DRE CONS. Reais'!$I$23 -> -1952 | D20: ='[6]DRE-BACEN-2020'!$J$21 -> -2860 | E20: ='[7]DRE-BACEN-2020'!$I$21-D20 -> 187 | F20: ='[1]DRE-BACEN-2021'!$G$21 -> -44 | G20: ='[2]DRE CONS. Reais'!$I$23 -> -58 | H20: ='[3]DRE-BACEN-2021'!$K$21 -> -130 | I20: 0 | J20: 0 | K20: 0 | L20: 0 | M20: 0 | N20: 0 | O20: 0 | P20: 0 | Q20: 0 | R20: 0 | S20: 0 | T20: 0 | U20: 0 | V20: 0 | W20: 0 | X20: 0 | Y20: 0
A21: Operações de Venda ou de Transferência de Ativos Financeiros | B21: ='[4]DRE-BACEN-2020'!$G$23 -> -1219 | C21: ='[5]DRE CONS. Reais'!$I$26 -> -797 | D21: ='[6]DRE-BACEN-2020'!$J$23 -> -757 | E21: ='[7]DRE-BACEN-2020'!$I$23-D21 -> -312 | F21: ='[1]DRE-BACEN-2021'!$G$23 -> -161 | G21: ='[2]DRE CONS. Reais'!$I$26 -> -86 | H21: ='[3]DRE-BACEN-2021'!$K$23 -> -2180 | I21: 0 | J21: 0 | K21: 0 | L21: 0 | M21: 0 | N21: 0 | O21: 0 | P21: 0 | Q21: 0 | R21: 0 | S21: 0 | T21: 0 | U21: 0 | V21: 0 | W21: 0 | X21: 0 | Y21: 0
A22: RESULTADO DA INTERMEDIAÇÃO FINANCEIRA | B22: =B10+B18 -> 405903 | C22: 448817 | D22: 474497 | E22: 534145 | F22: 536323 | G22: 587355 | H22: 596453 | I22: 0 | J22: 0 | K22: 0 | L22: 0 | M22: 0 | N22: 0 | O22: 0 | P22: 0 | Q22: 0 | R22: 0 | S22: 0 | T22: 0 | U22: 0 | V22: 0 | W22: 0 | X22: 0 | Y22: 0
A24: PROVISÃO PARA CRÉDITOS DE LIQUIDAÇÃO DUVIDOSA | B24: ='[4]DRE-BACEN-2020'!$G$26 -> -75839 | C24: ='[5]DRE CONS. Reais'!$I$27 -> -88546 | D24: ='[6]DRE-BACEN-2020'!$J$26 -> -88904 | E24: ='[7]DRE-BACEN-2020'!$I$27-D24 -> -73021 | F24: ='[1]DRE-BACEN-2021'!$G$26 -> -57795 | G24: ='[2]DRE CONS. Reais'!$I$27 -> -86835 | H24: ='[3]DRE-BACEN-2021'!$K$26 -> -81340 | I24: 0 | J24: 0 | K24: 0 | L24: 0 | M24: 0 | N24: 0 | O24: 0 | P24: 0 | Q24: 0 | R24: 0 | S24: 0 | T24: 0 | U24: 0 | V24: 0 | W24: 0 | X24: 0 | Y24: 0
A26: RESULTADO BRUTO DA INTERMEDIAÇÃO FINANCEIRA | B26: =B22+B24 -> 330064 | C26: 360271 | D26: 385593 | E26: 461124 | F26: 478528 | G26: 500520 | H26: 515113 | I26: 0 | J26: 0 | K26: 0 | L26: 0 | M26: 0 | N26: 0 | O26: 0 | P26: 0 | Q26: 0 | R26: 0 | S26: 0 | T26: 0 | U26: 0 | V26: 0 | W26: 0 | X26: 0 | Y26: 0
A28: OUTRAS RECEITAS / (DESPESAS) OPERACIONAIS | B28: =B29+B32+B33+B34+B35+B36 -> -260104 | C28: -298221 | D28: -334680 | E28: =E29+E32+E33+E34+E35+E36 -> -398836 | F28: -387955 | G28: -431839 | H28: -446080 | I28: 0 | J28: 0 | K28: 0 | L28: 0 | M28: 0 | N28: 0 | O28: 0 | P28: 0 | Q28: 0 | R28: 0 | S28: 0 | T28: 0 | U28: 0 | V28: 0 | W28: 0 | X28: 0 | Y28: 0
A29: Receitas de Prestação de Serviços | B29: =B30+B31 -> 78741 | C29: 83367 | D29: 76934 | E29: 79357 | F29: 79982 | G29: 87400 | H29: 88981 | I29: 0 | J29: 0 | K29: 0 | L29: 0 | M29: 0 | N29: 0 | O29: 0 | P29: 0 | Q29: 0 | R29: 0 | S29: 0 | T29: 0 | U29: 0 | V29: 0 | W29: 0 | X29: 0 | Y29: 0
A30: Receitas de Prestações de Serviços - Diversas | B30: ='[4]DRE-BACEN-2020'!$G$32 -> 18741 | C30: ='[5]DRE CONS. Reais'!$I$33 -> 20425 | D30: ='[6]DRE-BACEN-2020'!$J$32 -> 24362 | E30: ='[7]DRE-BACEN-2020'!$I$33-D30 -> 32994 | F30: ='[1]DRE-BACEN-2021'!$G$32 -> 33347 | G30: ='[2]DRE CONS. Reais'!$I$33 -> 40403 | H30: ='[3]DRE-BACEN-2021'!$K$32 -> 42225 | I30: 0 | J30: 0 | K30: 0 | L30: 0 | M30: 0 | N30: 0 | O30: 0 | P30: 0 | Q30: 0 | R30: 0 | S30: 0 | T30: 0 | U30: 0 | V30: 0 | W30: 0 | X30: 0 | Y30: 0
A31: Rendas de Tarifas Bancárias | B31: ='[4]DRE-BACEN-2020'!$G$33 -> 60000 | C31: ='[5]DRE CONS. Reais'!$I$34 -> 62942 | D31: ='[6]DRE-BACEN-2020'!$J$33 -> 52572 | E31: ='[7]DRE-BACEN-2020'!$I$34-D31 -> 46363 | F31: ='[1]DRE-BACEN-2021'!$G$33 -> 46635 | G31: ='[2]DRE CONS. Reais'!$I$34 -> 46997 | H31: ='[3]DRE-BACEN-2021'!$K$33 -> 46756 | I31: 0 | J31: 0 | K31: 0 | L31: 0 | M31: 0 | N31: 0 | O31: 0 | P31: 0 | Q31: 0 | R31: 0 | S31: 0 | T31: 0 | U31: 0 | V31: 0 | W31: 0 | X31: 0 | Y31: 0
A32: Despesas de Pessoal | B32: ='[4]DRE-BACEN-2020'!$G$37 -> -106348 | C32: ='[5]DRE CONS. Reais'!$I$35 -> -110204 | D32: ='[6]DRE-BACEN-2020'!$J$37 -> -121257 | E32: ='[7]DRE-BACEN-2020'!$I$38-D32 -> -121045 | F32: ='[1]DRE-BACEN-2021'!$G$37 -> -120294 | G32: ='[2]DRE CONS. Reais'!$I$35 -> -114924 | H32: ='[3]DRE-BACEN-2021'!$K$37 -> -134677 | I32: 0 | J32: 0 | K32: 0 | L32: 0 | M32: 0 | N32: 0 | O32: 0 | P32: 0 | Q32: 0 | R32: 0 | S32: 0 | T32: 0 | U32: 0 | V32: 0 | W32: 0 | X32: 0 | Y32: 0
A33: Outras Despesas Administrativas | B33: ='[4]DRE-BACEN-2020'!$G$38 -> -157063 | C33: ='[5]DRE CONS. Reais'!$I$36 -> -165828 | D33: ='[6]DRE-BACEN-2020'!$J$38 -> -164697 | E33: ='[7]DRE-BACEN-2020'!$I$39-D33 -> -196265 | F33: ='[1]DRE-BACEN-2021'!$G$38 -> -192282 | G33: ='[2]DRE CONS. Reais'!$I$36 -> -248088 | H33: ='[3]DRE-BACEN-2021'!$K$38 -> -207116 | I33: 0 | J33: 0 | K33: 0 | L33: 0 | M33: 0 | N33: 0 | O33: 0 | P33: 0 | Q33: 0 | R33: 0 | S33: 0 | T33: 0 | U33: 0 | V33: 0 | W33: 0 | X33: 0 | Y33: 0
A34: Despesas Tributárias | B34: ='[4]DRE-BACEN-2020'!$G$39 -> -26342 | C34: ='[5]DRE CONS. Reais'!$I$37 -> -28803 | D34: ='[6]DRE-BACEN-2020'!$J$39 -> -30227 | E34: ='[7]DRE-BACEN-2020'!$I$40-D34 -> -32434 | F34: ='[1]DRE-BACEN-2021'!$G$39 -> -33872 | G34: ='[2]DRE CONS. Reais'!$I$37 -> -40744 | H34: ='[3]DRE-BACEN-2021'!$K$39 -> -36252 | I34: 0 | J34: 0 | K34: 0 | L34: 0 | M34: 0 | N34: 0 | O34: 0 | P34: 0 | Q34: 0 | R34: 0 | S34: 0 | T34: 0 | U34: 0 | V34: 0 | W34: 0 | X34: 0 | Y34: 0
A35: Outras Receitas Operacionais | B35: ='[4]DRE-BACEN-2020'!$G$40 -> 30427 | C35: ='[5]DRE CONS. Reais'!$I$44 -> 5822 | D35: ='[6]DRE-BACEN-2020'!$J$40 -> 11400 | E35: ='[7]DRE-BACEN-2020'!$I$41-D35 -> 4589 | F35: ='[1]DRE-BACEN-2021'!$G$40 -> 7199 | G35: ='[2]DRE CONS. Reais'!$I$44 -> 26843 | H35: ='[3]DRE-BACEN-2021'!$K$40 -> 18494 | I35: 0 | J35: 0 | K35: 0 | L35: 0 | M35: 0 | N35: 0 | O35: 0 | P35: 0 | Q35: 0 | R35: 0 | S35: 0 | T35: 0 | U35: 0 | V35: 0 | W35: 0 | X35: 0 | Y35: 0
A36: Outras Despesas Operacionais | B36: ='[4]DRE-BACEN-2020'!$G$45 -> -79519 | C36: ='[5]DRE CONS. Reais'!$I$51 -> -82575 | D36: ='[6]DRE-BACEN-2020'!$J$45 -> -106833 | E36: ='[7]DRE-BACEN-2020'!$I$46-D36 -> -133038 | F36: ='[1]DRE-BACEN-2021'!$G$45 -> -128688 | G36: ='[2]DRE CONS. Reais'!$I$51 -> -142326 | H36: ='[3]DRE-BACEN-2021'!$K$45 -> -175510 | I36: 0 | J36: 0 | K36: 0 | L36: 0 | M36: 0 | N36: 0 | O36: 0 | P36: 0 | Q36: 0 | R36: 0 | S36: 0 | T36: 0 | U36: 0 | V36: 0 | W36: 0 | X36: 0 | Y36: 0
A38: RESULTADO OPERACIONAL | B38: =B26+B28 -> 69960 | C38: 62050 | D38: 50913 | E38: =E26+E28 -> 62288 | F38: 90573 | G38: 68681 | H38: 69033 | I38: 0 | J38: 0 | K38: 0 | L38: 0 | M38: 0 | N38: 0 | O38: 0 | P38: 0 | Q38: 0 | R38: 0 | S38: 0 | T38: 0 | U38: 0 | V38: 0 | W38: 0 | X38: 0 | Y38: 0
A40: RESULTADO NÃO OPERACIONAL | B40: =B41+B42 -> -6430 | C40: -6393 | D40: -1001 | E40: -2207 | F40: -7040 | G40: 3639 | H40: 13624 | I40: 0 | J40: 0 | K40: 0 | L40: 0 | M40: 0 | N40: 0 | O40: 0 | P40: 0 | Q40: 0 | R40: 0 | S40: 0 | T40: 0 | U40: 0 | V40: 0 | W40: 0 | X40: 0 | Y40: 0
A41: Receitas | B41: ='[4]DRE-BACEN-2020'!$G$58 -> 24068 | C41: ='[5]DRE CONS. Reais'!$I$63 -> 6789 | D41: ='[6]DRE-BACEN-2020'!$J$58 -> 17738 | E41: ='[7]DRE-BACEN-2020'!$I$59-D41 -> 8058 | F41: ='[1]DRE-BACEN-2021'!$G$58 -> 2261 | G41: ='[2]DRE CONS. Reais'!$I$63 -> 4791 | H41: ='[3]DRE-BACEN-2021'!$K$58 -> 14119 | I41: 0 | J41: 0 | K41: 0 | L41: 0 | M41: 0 | N41: 0 | O41: 0 | P41: 0 | Q41: 0 | R41: 0 | S41: 0 | T41: 0 | U41: 0 | V41: 0 | W41: 0 | X41: 0 | Y41: 0
A42: Despesas | B42: ='[4]DRE-BACEN-2020'!$G$59 -> -30498 | C42: ='[5]DRE CONS. Reais'!$I$64 -> -13182 | D42: ='[6]DRE-BACEN-2020'!$J$59 -> -18739 | E42: ='[7]DRE-BACEN-2020'!$I$60-D42 -> -10265 | F42: ='[1]DRE-BACEN-2021'!$G$59 -> -9301 | G42: ='[2]DRE CONS. Reais'!$I$64 -> -1152 | H42: ='[3]DRE-BACEN-2021'!$K$59 -> -495 | I42: 0 | J42: 0 | K42: 0 | L42: 0 | M42: 0 | N42: 0 | O42: 0 | P42: 0 | Q42: 0 | R42: 0 | S42: 0 | T42: 0 | U42: 0 | V42: 0 | W42: 0 | X42: 0 | Y42: 0
A44: RESULTADO ANTES DA TRIBUTAÇÃO SOBRE O LUCRO E PARTICIPAÇÕES | B44: =B38+B40 -> 63530 | C44: 55657 | D44: 49912 | E44: 60081 | F44: 83533 | G44: 72320 | H44: 82657 | I44: 0 | J44: 0 | K44: 0 | L44: 0 | M44: 0 | N44: 0 | O44: 0 | P44: 0 | Q44: 0 | R44: 0 | S44: 0 | T44: 0 | U44: 0 | V44: 0 | W44: 0 | X44: 0 | Y44: 0
A46: IMPOSTO DE RENDA E CONTRIBUIÇÃO SOCIAL | B46: =SUM(B47:B49) -> -16338 | C46: -16255 | D46: -17161 | E46: -633 | F46: -23540 | G46: -12799 | H46: -34357 | I46: 0 | J46: 0 | K46: 0 | L46: 0 | M46: 0 | N46: 0 | O46: 0 | P46: 0 | Q46: 0 | R46: 0 | S46: 0 | T46: 0 | U46: 0 | V46: 0 | W46: 0 | X46: 0 | Y46: 0
A47: Provisão para Imposto de Renda | B47: ='[4]DRE-BACEN-2020'!$G$64 -> -3197 | C47: ='[5]DRE CONS. Reais'!$I$70 -> -4889 | D47: ='[6]DRE-BACEN-2020'!$J$64 -> 472 | E47: ='[7]DRE-BACEN-2020'!$I$65-D47 -> -2354 | F47: ='[1]DRE-BACEN-2021'!$G$64 -> -11499 | G47: ='[2]DRE CONS. Reais'!$I$70 -> -3372 | H47: ='[3]DRE-BACEN-2021'!$K$64 -> -14485 | I47: 0 | J47: 0 | K47: 0 | L47: 0 | M47: 0 | N47: 0 | O47: 0 | P47: 0 | Q47: 0 | R47: 0 | S47: 0 | T47: 0 | U47: 0 | V47: 0 | W47: 0 | X47: 0 | Y47: 0
A48: Provisão para Contribuição Social | B48: ='[4]DRE-BACEN-2020'!$G$65 -> -2069 | C48: ='[5]DRE CONS. Reais'!$I$71 -> -3204 | D48: ='[6]DRE-BACEN-2020'!$J$65 -> 1114 | E48: ='[7]DRE-BACEN-2020'!$I$66-D48 -> -967 | F48: ='[1]DRE-BACEN-2021'!$G$65 -> -8137 | G48: ='[2]DRE CONS. Reais'!$I$71 -> -1354 | H48: ='[3]DRE-BACEN-2021'!$K$65 -> -12611 | I48: 0 | J48: 0 | K48: 0 | L48: 0 | M48: 0 | N48: 0 | O48: 0 | P48: 0 | Q48: 0 | R48: 0 | S48: 0 | T48: 0 | U48: 0 | V48: 0 | W48: 0 | X48: 0 | Y48: 0
A49: Ativo Fiscal Diferido | B49: ='[4]DRE-BACEN-2020'!$G$66 -> -11072 | C49: ='[5]DRE CONS. Reais'!$I$72 -> -8162 | D49: ='[6]DRE-BACEN-2020'!$J$66 -> -18747 | E49: ='[7]DRE-BACEN-2020'!$I$67-D49 -> 2688 | F49: ='[1]DRE-BACEN-2021'!$G$66 -> -3904 | G49: ='[2]DRE CONS. Reais'!$I$72 -> -8073 | H49: ='[3]DRE-BACEN-2021'!$K$66 -> -7261 | I49: 0 | J49: 0 | K49: 0 | L49: 0 | M49: 0 | N49: 0 | O49: 0 | P49: 0 | Q49: 0 | R49: 0 | S49: 0 | T49: 0 | U49: 0 | V49: 0 | W49: 0 | X49: 0 | Y49: 0
A51: PARTICIPAÇÕES ESTATUTÁRIAS NO LUCRO | B51: =B52+B53 -> -11 | C51: -12388 | D51: -4370 | E51: -8669 | F51: -8556 | G51: -10044 | H51: -8157 | I51: 0 | J51: 0 | K51: 0 | L51: 0 | M51: 0 | N51: 0 | O51: 0 | P51: 0 | Q51: 0 | R51: 0 | S51: 0 | T51: 0 | U51: 0 | V51: 0 | W51: 0 | X51: 0 | Y51: 0
A52: Administradores | B52: 0 | C52: ='[5]DRE CONS. Reais'!$I$75 -> -750 | D52: 0 | E52: ='[7]DRE-BACEN-2020'!$I$70-D52 -> -1540 | F52: ='[1]DRE-BACEN-2021'!$G$69 -> -1689 | G52: ='[2]DRE CONS. Reais'!$I$75 -> -1527 | H52: ='[3]DRE-BACEN-2021'!$K$69 -> -1680 | I52: 0 | J52: 0 | K52: 0 | L52: 0 | M52: 0 | N52: 0 | O52: 0 | P52: 0 | Q52: 0 | R52: 0 | S52: 0 | T52: 0 | U52: 0 | V52: 0 | W52: 0 | X52: 0 | Y52: 0
A53: Empregados | B53: ='[4]DRE-BACEN-2020'!$G$70 -> -11 | C53: ='[5]DRE CONS. Reais'!$I$76 -> -11638 | D53: ='[6]DRE-BACEN-2020'!$J$70 -> -4370 | E53: ='[7]DRE-BACEN-2020'!$I$71-D53 -> -7129 | F53: ='[1]DRE-BACEN-2021'!$G$70 -> -6867 | G53: ='[2]DRE CONS. Reais'!$I$76 -> -8517 | H53: ='[3]DRE-BACEN-2021'!$K$70 -> -6477 | I53: 0 | J53: 0 | K53: 0 | L53: 0 | M53: 0 | N53: 0 | O53: 0 | P53: 0 | Q53: 0 | R53: 0 | S53: 0 | T53: 0 | U53: 0 | V53: 0 | W53: 0 | X53: 0 | Y53: 0
A55: PARTICIPAÇÃO DOS NÃO CONTROLADORES | B55: ='[4]DRE-BACEN-2020'!$G$72 -> -249 | C55: ='[5]DRE CONS. Reais'!$I$78 -> -360 | D55: ='[6]DRE-BACEN-2020'!$J$72 -> -379 | E55: ='[7]DRE-BACEN-2020'!$I$73-D55 -> -1319 | F55: ='[1]DRE-BACEN-2021'!$G$72 -> -196 | G55: ='[2]DRE CONS. Reais'!$I$78 -> -179 | H55: ='[3]DRE-BACEN-2021'!$K$72 -> -15 | I55: 0 | J55: 0 | K55: 0 | L55: 0 | M55: 0 | N55: 0 | O55: 0 | P55: 0 | Q55: 0 | R55: 0 | S55: 0 | T55: 0 | U55: 0 | V55: 0 | W55: 0 | X55: 0 | Y55: 0
A57: LUCRO LÍQUIDO | B57: =B44+B46+B51+B55 -> 46932 | C57: 26654 | D57: 28002 | E57: 49460 | F57: 51241 | G57: 49298 | H57: 40128 | I57: 0 | J57: 0 | K57: 0 | L57: 0 | M57: 0 | N57: 0 | O57: 0 | P57: 0 | Q57: 0 | R57: 0 | S57: 0 | T57: 0 | U57: 0 | V57: 0 | W57: 0 | X57: 0 | Y57: 0
E59: =E57+D57+C57+B57-'DRE Anual'!B57 -> 0 | H59: =F57+G57+H57-'DRE Anual'!C57 -> 0

Sheet DRE Anual
A2: Banco Mercantil do Brasil SA
A4: Planilha de Séries Históricas
B6: Índice
A7: DRE Contábil (Consolidado)
A8: (R$ Mil)
B9: 2020 | C9: 2021 | D9: 2022 | E9: 2023 | F9: 2024 | G9: 2025
A10: RECEITAS DA INTERMEDIAÇÃO FINANCEIRA | B10: =SUM(B11:B16) -> 2300725 | C10: 1933441 | D10: 0 | E10: 0 | F10: 0 | G10: 0
A11: Operações de Crédito | B11: ='[7]DRE-BACEN-2020'!$K$12 -> 1913802 | C11: ='[3]DRE-BACEN-2021'!$L$12 -> 1669628
A12: Resultado de Operações com Títulos e Valores Mobiliários | B12: ='[7]DRE-BACEN-2020'!$K$13 -> 109416 | C12: ='[3]DRE-BACEN-2021'!$L$13 -> 56341
A13: Resultado com Instrumentos Financeiros Derivativos | B13: ='[7]DRE-BACEN-2020'!$K$14 -> 117040 | C13: ='[3]DRE-BACEN-2021'!$L$14 -> 47637
A14: Resultado de Operações de Câmbio | B14: ='[7]DRE-BACEN-2020'!$K$15 -> 33728 | C14: ='[3]DRE-BACEN-2021'!$L$15 -> 9534
A15: Resultado das Aplicações Compulsórias | B15: ='[7]DRE-BACEN-2020'!$K$16 -> 2597 | C15: ='[3]DRE-BACEN-2021'!$L$16 -> 2508
A16: Operações de Venda ou de Transferência de Ativos Financeiros | B16: ='[7]DRE-BACEN-2020'!$K$17 -> 124142 | C16: ='[3]DRE-BACEN-2021'!$L$17 -> 147793
A18: DESPESAS DA INTERMEDIAÇÃO FINANCEIRA | B18: =SUM(B19:B21) -> -437363 | C18: -213310 | D18: 0 | E18: 0 | F18: 0 | G18: 0
A19: Operações de Captação no Mercado | B19: ='[7]DRE-BACEN-2020'!$K$20 -> -422504 | C19: ='[3]DRE-BACEN-2021'!$L$20 -> -210651
A20: Operações de Empréstimos, Cessões e Repasses | B20: ='[7]DRE-BACEN-2020'!$K$21 -> -11774 | C20: ='[3]DRE-BACEN-2021'!$L$21 -> -232
A21: Operações de Venda ou de Transferência de Ativos Financeiros | B21: ='[7]DRE-BACEN-2020'!$K$23 -> -3085 | C21: ='[3]DRE-BACEN-2021'!$L$23 -> -2427
A22: RESULTADO DA INTERMEDIAÇÃO FINANCEIRA | B22: =B10+B18 -> 1863362 | C22: 1720131 | D22: 0 | E22: 0 | F22: 0 | G22: 0
A24: PROVISÃO PARA CRÉDITOS DE LIQUIDAÇÃO DUVIDOSA | B24: ='[7]DRE-BACEN-2020'!$K$27 -> -326310 | C24: ='[3]DRE-BACEN-2021'!$L$26 -> -225970
A26: RESULTADO BRUTO DA INTERMEDIAÇÃO FINANCEIRA | B26: =B22+B24 -> 1537052 | C26: 1494161 | D26: 0 | E26: 0 | F26: 0 | G26: 0
A28: OUTRAS RECEITAS / (DESPESAS) OPERACIONAIS | B28: =B29+B32+B33+B34+B35+B36 -> -1291841 | C28: -1265874 | D28: 0 | E28: 0 | F28: 0 | G28: 0
A29: Receitas de Prestação de Serviços | B29: =B30+B31 -> 318399 | C29: 256363 | D29: 0 | E29: 0 | F29: 0 | G29: 0
A30: Receitas de Prestações de Serviços - Diversas | B30: ='[7]DRE-BACEN-2020'!$K$33 -> 96522 | C30: ='[3]DRE-BACEN-2021'!$L$32 -> 115975
A31: Rendas de Tarifas Bancárias | B31: ='[7]DRE-BACEN-2020'!$K$34 -> 221877 | C31: ='[3]DRE-BACEN-2021'!$L$33 -> 140388
A32: Despesas de Pessoal | B32: ='[7]DRE-BACEN-2020'!$K$38 -> -458854 | C32: ='[3]DRE-BACEN-2021'!$L$37 -> -369895
A33: Outras Despesas Administrativas | B33: ='[7]DRE-BACEN-2020'!$K$39 -> -683853 | C33: ='[3]DRE-BACEN-2021'!$L$38 -> -647486
A34: Despesas Tributárias | B34: ='[7]DRE-BACEN-2020'!$K$40 -> -117806 | C34: ='[3]DRE-BACEN-2021'!$L$39 -> -110868
A35: Outras Receitas Operacionais | B35: ='[7]DRE-BACEN-2020'!$K$41 -> 52238 | C35: ='[3]DRE-BACEN-2021'!$L$40 -> 52536
A36: Outras Despesas Operacionais | B36: ='[7]DRE-BACEN-2020'!$K$46 -> -401965 | C36: ='[3]DRE-BACEN-2021'!$L$45 -> -446524
A38: RESULTADO OPERACIONAL | B38: =B26+B28 -> 245211 | C38: 228287 | D38: 0 | E38: 0 | F38: 0 | G38: 0
A40: RESULTADO NÃO OPERACIONAL | B40: =B41+B42 -> -16031 | C40: 10223 | D40: 0 | E40: 0 | F40: 0 | G40: 0
A41: Receitas | B41: ='[7]DRE-BACEN-2020'!$K$59 -> 56653 | C41: ='[3]DRE-BACEN-2021'!$L$58 -> 21171
A42: Despesas | B42: ='[7]DRE-BACEN-2020'!$K$60 -> -72684 | C42: ='[3]DRE-BACEN-2021'!$L$59 -> -10948
A44: RESULTADO ANTES DA TRIBUTAÇÃO SOBRE O LUCRO E PARTICIPAÇÕES | B44: =B38+B40 -> 229180 | C44: 238510 | D44: 0 | E44: 0 | F44: 0 | G44: 0
A46: IMPOSTO DE RENDA E CONTRIBUIÇÃO SOCIAL | B46: =SUM(B47:B49) -> -50387 | C46: =SUM(C47:C49) -> -70696 | D46: =SUM(D47:D49) -> 0 | E46: =SUM(E47:E49) -> 0 | F46: =SUM(F47:F49) -> 0 | G46: =SUM(G47:G49) -> 0
A47: Provisão para Imposto de Renda | B47: ='[7]DRE-BACEN-2020'!$K$65 -> -9968 | C47: ='[3]DRE-BACEN-2021'!$L$64 -> -29356
A48: Provisão para Contribuição Social | B48: ='[7]DRE-BACEN-2020'!$K$66 -> -5126 | C48: ='[3]DRE-BACEN-2021'!$L$65 -> -22102
A49: Ativo Fiscal Diferido | B49: ='[7]DRE-BACEN-2020'!$K$67 -> -35293 | C49: ='[3]DRE-BACEN-2021'!$L$66 -> -19238
A51: PARTICIPAÇÕES ESTATUTÁRIAS NO LUCRO | B51: =B52+B53 -> -25438 | C51: =C52+C53 -> -26757 | D51: =D52+D53 -> 0 | E51: =E52+E53 -> 0 | F51: =F52+F53 -> 0 | G51: =G52+G53 -> 0
A52: Administradores | B52: ='[7]DRE-BACEN-2020'!$K$70 -> -2290 | C52: ='[3]DRE-BACEN-2021'!$L$69 -> -4896
A53: Empregados | B53: ='[7]DRE-BACEN-2020'!$K$71 -> -23148 | C53: ='[3]DRE-BACEN-2021'!$L$70 -> -21861
A55: PARTICIPAÇÃO DOS NÃO CONTROLADORES | B55: ='[7]DRE-BACEN-2020'!$K$73 -> -2307 | C55: ='[3]DRE-BACEN-2021'!$L$72 -> -390
A57: LUCRO LÍQUIDO | B57: =B44+B46+B51+B55 -> 151048 | C57: 140667 | D57: 0 | E57: 0 | F57: 0 | G57: 0
C58: *Até Setembro/2021

Sheet DRE Gerencial (Trimestral) (hidden)
A2: Banco ABC Brasil S.A.
A4: Planilha de Séries Históricas
B6: Índice | AT6: Índice
A7: DRE Gerencial
A8: (R$ milhões)
B9: 1T08 | C9: 2T08 | D9: 3T08 | E9: 4T08 | F9: 1T09 | G9: 2T09 | H9: 3T09 | I9: 4T09 | J9: 1T10 | K9: 2T10 | L9: 3T10 | M9: 4T10 | N9: 1T11 | O9: 2T11 | P9: 3T11 | Q9: 4T11 | R9: 1T12 | S9: 2T12 | T9: 3T12 | U9: 4T12 | V9: 1T13 | W9: 2T13 | X9: 3T13 | Y9: 4T13 | Z9: 1T14 | AA9: 2T14 | AB9: 3T14 | AC9: 4T14 | AD9: 1T15 | AE9: 2T15 | AF9: 3T15 | AG9: 4T15 | AH9: 1T16 | AI9: 2T16 | AJ9: 3T16 | AK9: 4T16 | AL9: 1T17 | AM9: 2T17 | AN9: 3T17 | AO9: 4T17 | AP9: 1T18 | AQ9: 2T18 | AR9: 3T18 | AS9: 4T18 | AT9: 1T19
A10: DEMONSTRAÇÃO DO RESULTADO GERENCIAL
A11: Margem Financeira Gerencial antes PDD | B11: 86.9 | C11: 96.2 | D11: 104.5 | E11: 103 | F11: 88.9 | G11: 94.5 | H11: 93.8 | I11: 98.7 | J11: 108.5 | K11: 113.3 | L11: 116.9 | M11: 126.4 | N11: 135.4 | O11: 133.5 | P11: 146.8 | Q11: 143.8 | R11: 140.9 | S11: 144.4 | T11: 147.6 | U11: 148.1 | V11: 147.1 | W11: 145.3 | X11: 160.4 | Y11: 189.3 | Z11: 168.5 | AA11: 177.7 | AB11: 188.7 | AC11: 213.3 | AD11: 220.4 | AE11: 225.8 | AF11: 259.4 | AG11: 273 | AH11: 226.1 | AI11: 250.8 | AJ11: 256.3 | AK11: 283.3 | AL11: 265.8 | AM11: 275.824 | AN11: 260.15 | AO11: 276.5575252 | AP11: 233.5194492 | AQ11: 257.131 | AR11: 239.256 | AS11: 245.646 | AT11: 245.646
A12: Margem Financeira com Clientes | B12: 75 | C12: 86.4 | D12: 100.1 | E12: 95.5 | F12: 88.7 | G12: 85.7 | H12: 86 | I12: 87.9 | J12: 93.8 | K12: 104.7 | L12: 109.7 | M12: 113.3 | N12: 121.8 | O12: 118.7 | P12: 137.2 | Q12: 131.1 | R12: 121.6 | S12: 121.6 | T12: 126.4 | U12: 125.4 | V12: 123.5 | W12: 128.4 | X12: 130.8 | Y12: 172.9 | Z12: 147.4 | AA12: 153.1 | AB12: 161.9 | AC12: 177.3 | AD12: 186.9 | AE12: 186.4 | AF12: 204.6 | AG12: 204.8 | AH12: 205.5 | AI12: 199 | AJ12: 210.8 | AK12: 232 | AL12: 220.5 | AM12: 219.4 | AN12: 209.5659336 | AO12: 203.0517464 | AP12: 183 | AQ12: 189.851 | AR12: 188.661918 | AS12: 205.462 | AT12: 192.703
A13: Margem Financeira com Mercado | B13: 11.9 | C13: 9.8 | D13: 4.5 | E13: 2.8 | F13: 0.2 | G13: 8.9 | H13: 7.8 | I13: 10.8 | J13: 14.7 | K13: 8.6 | L13: 7.2 | M13: 13.1 | N13: 13.5 | O13: 14.9 | P13: 9.6 | Q13: 12.7 | R13: 19.3 | S13: 22.7 | T13: 21.1 | U13: 22.7 | V13: 23.6 | W13: 16.9 | X13: 29.6 | Y13: 16.5 | Z13: 21.1 | AA13: 24.6 | AB13: 26.8 | AC13: 36.1 | AD13: 33.4 | AE13: 39.4 | AF13: 54.8 | AG13: 68.2 | AH13: 20.5 | AI13: 51.7 | AJ13: 45.5 | AK13: 51.2 | AL13: 45.3 | AM13: 56.46034919 | AN13: 50.58406635 | AO13: 73.50577873 | AP13: 50.52644709 | AQ13: 67.28 | AR13: 50.58687036 | AS13: 40.184 | AT13: 48.024
A14: Provisão para Devedores Duvidosos (PDD) | B14: -7.9 | C14: -6.5 | D14: -11.3 | E14: -54.1 | F14: -25.6 | G14: -14.9 | H14: -8.6 | I14: -4.1 | J14: -13.8 | K14: -9 | L14: -8.9 | M14: -12.7 | N14: -12.3 | O14: -5.7 | P14: -21.9 | Q14: -13.8 | R14: -23.7 | S14: -28.7 | T14: -32.8 | U14: -25.6 | V14: -16.9 | W14: -31.3 | X14: -18.6 | Y14: -26 | Z14: -25.5 | AA14: -14.9 | AB14: -16.8 | AC14: -43.6 | AD14: -43.3 | AE14: -36.4 | AF14: -90.4 | AG14: -48.6 | AH14: -48.9 | AI14: -54.1 | AJ14: -50.2 | AK14: -55.3 | AL14: -57.948 | AM14: -56.614 | AN14: -54.866 | AO14: -50.79521386 | AP14: -22.463 | AQ14: -33.128 | AR14: -33.129 | AS14: -29.491 | AT14: -29.877
A15: Margem Gerencial após PDD | B15: 78.9 | C15: 89.7 | D15: 93.2 | E15: 49 | F15: 63.3 | G15: 79.7 | H15: 85.2 | I15: 94.6 | J15: 94.7 | K15: 104.3 | L15: 108 | M15: 113.7 | N15: 123 | O15: 127.8 | P15: 124.9 | Q15: 130 | R15: 117.2 | S15: 115.7 | T15: 114.7 | U15: 122.5 | V15: 130.3 | W15: 113.9 | X15: 141.8 | Y15: 163.3 | Z15: 143 | AA15: 162.8 | AB15: 171.9 | AC15: 169.7 | AD15: 177.1 | AE15: 189.4 | AF15: 168.9 | AG15: 224.4 | AH15: 177.2 | AI15: 196.7 | AJ15: 206.1 | AK15: 227.9 | AL15: 207.9 | AM15: 219.21 | AN15: 205.284 | AO15: 225.7623113 | AP15: 211.0564492 | AQ15: 224.003 | AR15: 206.127 | AS15: 216.155 | AT15: 210.85
A16: Receitas de Prestação de Serviços | B16: 9.1 | C16: 10.8 | D16: 12.1 | E16: 11.2 | F16: 10.3 | G16: 13.4 | H16: 16.1 | I16: 19.8 | J16: 24.4 | K16: 26.2 | L16: 22.8 | M16: 34.7 | N16: 29.6 | O16: 30.9 | P16: 30 | Q16: 34.8 | R16: 29.3 | S16: 32.1 | T16: 35.2 | U16: 40.8 | V16: 33 | W16: 44.5 | X16: 37.2 | Y16: 42.3 | Z16: 41 | AA16: 41.9 | AB16: 44.7 | AC16: 44.7 | AD16: 45.3 | AE16: 50.5 | AF16: 45.1 | AG16: 58.2 | AH16: 56.1 | AI16: 64.9 | AJ16: 66 | AK16: 69.5 | AL16: 76.3 | AM16: 75.695 | AN16: 71.181 | AO16: 83.697 | AP16: 77.62 | AQ16: 91.467 | AR16: 95.998 | AS16: 94.371 | AT16: 77.721
A17: Despesas | B17: -23.8 | C17: -26.8 | D17: -29.7 | E17: -34.6 | F17: -32.9 | G17: -30.5 | H17: -33.2 | I17: -35.8 | J17: -34.8 | K17: -35.1 | L17: -36.8 | M17: -50.7 | N17: -51.5 | O17: -44.3 | P17: -44.8 | Q17: -48.3 | R17: -46.8 | S17: -51.8 | T17: -48.7 | U17: -54.7 | V17: -50.3 | W17: -53.1 | X17: -53.4 | Y17: -62.5 | Z17: -56.4 | AA17: -57 | AB17: -59.7 | AC17: -65.6 | AD17: -63.5 | AE17: -65.1 | AF17: -69.9 | AG17: -70.1 | AH17: -69.3 | AI17: -69.6 | AJ17: -71.3 | AK17: -78.3 | AL17: -74.3 | AM17: -77.937 | AN17: -74.511 | AO17: -81.988 | AP17: -73.821 | AQ17: -76.926 | AR17: -77.3591 | AS17: -80.137 | AT17: -81.175
A18: Despesas de Pessoal & Outras Administrativas (publicada) | B18: -23.9 | C18: -26.9 | D18: -29.9 | E18: -47.2 | F18: -33 | G18: -30.7 | H18: -33.6 | I18: -35.9 | J18: -35.3 | K18: -35.9 | L18: -36.8 | M18: -50.7 | N18: -51.5 | O18: -44.3 | P18: -44.8 | Q18: -48.3 | R18: -46.8 | S18: -51.8 | T18: -48.7 | U18: -54.7 | V18: -50.3 | W18: -53.1 | X18: -53.4 | Y18: -62.5 | Z18: -56.4 | AA18: -57 | AB18: -59.7 | AC18: -65.6 | AD18: -63.5 | AE18: -65.1 | AF18: -69.9 | AG18: -70.1 | AH18: -69.3 | AI18: -69.6 | AJ18: -71.3 | AK18: -78.3 | AL18: =AL17 -> -74.3 | AM18: -77.937 | AN18: -74.511 | AO18: =AO17 -> -81.988 | AP18: =AP17 -> -73.821 | AQ18: -76.926 | AR18: -77.3591 | AS18: -80.137 | AT18: -81.175
A19: Cessão do consignado | B19: - | C19: - | D19: - | E19: 11.9 | F19: - | G19: - | H19: - | I19: - | J19: - | K19: - | L19: - | M19: - | N19: - | O19: - | P19: - | Q19: - | R19: - | S19: - | T19: - | U19: - | V19: - | W19: - | X19: - | Y19: - | Z19: - | AA19: - | AB19: - | AC19: - | AD19: - | AE19: - | AF19: - | AG19: - | AH19: - | AI19: 0 | AJ19: 0 | AK19: 0 | AL19: 0 | AM19: 0 | AN19: 0 | AO19: 0 | AP19: 0 | AQ19: 0 | AR19: 0 | AS19: - | AT19: -
A20: Efeito de Contribuições Incentivadas | B20: 0 | C20: 0.1 | D20: 0.2 | E20: 0.7 | F20: 0 | G20: 0.1 | H20: 0.4 | I20: 0.1 | J20: 0.5 | K20: 0.8 | L20: - | M20: - | N20: - | O20: - | P20: - | Q20: - | R20: - | S20: - | T20: - | U20: - | V20: - | W20: - | X20: - | Y20: - | Z20: - | AA20: - | AB20: - | AC20: - | AD20: - | AE20: - | AF20: - | AG20: - | AH20: - | AI20: 0 | AJ20: 0 | AK20: 0 | AL20: 0 | AM20: 0 | AN20: 0 | AO20: 0 | AP20: 0 | AQ20: 0 | AR20: 0 | AS20: - | AT20: -
A21: Despesas Tributárias | B21: -0.8 | C21: -0.7 | D21: -0.8 | E21: -0.6 | F21: -0.5 | G21: -0.5 | H21: -0.6 | I21: -3.5 | J21: -8.3 | K21: -8.3 | L21: -8.7 | M21: -8.9 | N21: -10 | O21: -10.5 | P21: -8.9 | Q21: -1.1 | R21: -10.1 | S21: -8.3 | T21: -10 | U21: -10.1 | V21: -10.1 | W21: -8.5 | X21: -10.5 | Y21: -12.3 | Z21: -11.3 | AA21: -11.1 | AB21: -8.6 | AC21: -9 | AD21: -15.9 | AE21: -11 | AF21: -20.4 | AG21: -10.2 | AH21: 2.1 | AI21: -4.2 | AJ21: -13 | AK21: -22.2 | AL21: -15.2 | AM21: -17.45641929 | AN21: -16.67986947 | AO21: -20.17771882 | AP21: -13.88992041 | AQ21: -28.904 | AR21: -20.13 | AS21: -15.445 | AT21: -11.473
A22: Outras Receitas (Despesas) Operacionais Ajustada | B22: -5 | C22: -5.3 | D22: -5.6 | E22: -6.6 | F22: -3.9 | G22: -6.8 | H22: -5.3 | I22: -24 | J22: -3.6 | K22: -7.5 | L22: -6.3 | M22: -0.8 | N22: -2.2 | O22: 0.4 | P22: -2 | Q22: 3.5 | R22: 2.5 | S22: 4 | T22: 0.1 | U22: -0.6 | V22: -1.7 | W22: 12.6 | X22: -1.3 | Y22: -10.3 | Z22: 4.4 | AA22: 1.7 | AB22: -10.1 | AC22: -6.7 | AD22: -4.4 | AE22: -6.2 | AF22: -1.8 | AG22: -16.5 | AH22: 7.3 | AI22: -6.5 | AJ22: -9.7 | AK22: -5.6 | AL22: 5.6 | AM22: -1.853 | AN22: 2.924 | AO22: -3.949 | AP22: -0.567 | AQ22: -0.775 | AR22: -0.5149 | AS22: 2.424 | AT22: 4.713
A23: Resultado não Operacional Gerencial | B23: - | C23: 0 | D23: 1.2 | E23: 0 | F23: -1.7 | G23: -1 | H23: -0.2 | I23: -0.3 | J23: -0.3 | K23: -1.9 | L23: 0.3 | M23: -0.5 | N23: -0.4 | O23: -4 | P23: 2.7 | Q23: -4.2 | R23: -0.9 | S23: -3.8 | T23: -1.4 | U23: -0.4 | V23: 0.1 | W23: -0.6 | X23: -1.1 | Y23: -0.1 | Z23: -0.3 | AA23: -2 | AB23: 0.5 | AC23: -0.5 | AD23: -0.8 | AE23: -2.8 | AF23: -2.9 | AG23: 0.2 | AH23: -7.9 | AI23: -0.3 | AJ23: -1.5 | AK23: -2.5 | AL23: -7.694 | AM23: -10.493 | AN23: -10.582 | AO23: -8.127 | AP23: -9.935 | AQ23: -10.349 | AR23: -0.057 | AS23: -1.07 | AT23: -0.715
A24: Res. antes da Tributação sobre o Lucro e Participações | B24: 59.3 | C24: 68.4 | D24: 71.2 | E24: 19 | F24: 35 | G24: 54.7 | H24: 62.6 | I24: 54.4 | J24: 80.4 | K24: 86.1 | L24: 87.9 | M24: 96.3 | N24: 98.5 | O24: 104.3 | P24: 99.3 | Q24: 104.9 | R24: 91.2 | S24: 87.9 | T24: 89.9 | U24: 97.5 | V24: 101.3 | W24: 108.8 | X24: 112.5 | Y24: 120.5 | Z24: 120.4 | AA24: 136.2 | AB24: 138.6 | AC24: 137.5 | AD24: 137.8 | AE24: 154.7 | AF24: 119 | AG24: 186 | AH24: 165.4 | AI24: 181.1 | AJ24: 176.6 | AK24: 188.8 | AL24: 192.6 | AM24: 187.1655807 | AN24: 177.6161305 | AO24: 195.2175925 | AP24: 190.4635288 | AQ24: 198.516 | AR24: 204.064 | AS24: 216.298 | AT24: 199.921
A25: Imposto de Renda e Contribuição Social Ajustado | B25: -10 | C25: -13.6 | D25: -6 | E25: 16.2 | F25: -2.4 | G25: -17.9 | H25: -15.7 | I25: 14.8 | J25: -16 | K25: -18.3 | L25: -21.5 | M25: -22.9 | N25: -25.8 | O25: -27.3 | P25: -23.8 | Q25: -26.3 | R25: -24.3 | S25: -19.7 | T25: -20.7 | U25: -22.6 | V25: -23.8 | W25: -24.6 | X25: -26.9 | Y25: -22.3 | Z25: -30.1 | AA25: -32.7 | AB25: -37.5 | AC25: -30.8 | AD25: -34.6 | AE25: -39 | AF25: -0.4 | AG25: -51.5 | AH25: -44.4 | AI25: -50.3 | AJ25: -48.8 | AK25: -50 | AL25: -51.4 | AM25: -50.55258071 | AN25: -41.01213053 | AO25: -51.768 | AP25: -41.82352878 | AQ25: -47.642 | AR25: -48.719 | AS25: -54.793 | AT25: -39.554
A26: Participação nos Lucros | B26: -14.5 | C26: -11.9 | D26: -14 | E26: -4.8 | F26: -7.5 | G26: -9.2 | H26: -11.8 | I26: -13.5 | J26: -15.4 | K26: -15.4 | L26: -15 | M26: -19.2 | N26: -17.6 | O26: -16.8 | P26: -17 | Q26: -18 | R26: -10 | S26: -13.1 | T26: -14 | U26: -15.3 | V26: -18.6 | W26: -20.6 | X26: -19.5 | Y26: -23.3 | Z26: -19.6 | AA26: -23.8 | AB26: -23.1 | AC26: -24.5 | AD26: -23 | AE26: -25.6 | AF26: -23.6 | AG26: -29 | AH26: -25.5 | AI26: -26.7 | AJ26: -25 | AK26: -30.3 | AL26: -30.1 | AM26: -29.474 | AN26: -32.47 | AO26: -32.845 | AP26: -40.092 | AQ26: -39.221 | AR26: -39.233 | AS26: -40.061 | AT26: -39.192
A27: Lucro Líquido Recorrente | B27: 34.7 | C27: 42.8 | D27: 44.4 | E27: 15.9 | F27: 24 | G27: 35.4 | H27: 38.1 | I27: 53.7 | J27: 46.9 | K27: 50.2 | L27: 51.1 | M27: 54 | N27: 56.7 | O27: 60.2 | P27: 58.5 | Q27: 60.6 | R27: 56.9 | S27: 55 | T27: 55.1 | U27: 59.6 | V27: 58.9 | W27: 63.5 | X27: 66.1 | Y27: 74.9 | Z27: 70.7 | AA27: 79.8 | AB27: 77.9 | AC27: 82.2 | AD27: 80.3 | AE27: 90.1 | AF27: 95 | AG27: 105.5 | AH27: 95.5 | AI27: 104.1 | AJ27: 102.8 | AK27: 108.5 | AL27: 111.166 | AM27: 107.139 | AN27: 104.134 | AO27: 110.605 | AP27: 108.548 | AQ27: 111.653 | AR27: 116.112 | AS27: 121.444 | AT27: 121.175
A28: Efeitos líquidos de Imposto de Renda | B28: -9.2 | C28: -9.2 | D28: - | E28: - | F28: - | G28: - | H28: - | I28: - | J28: - | K28: - | L28: - | M28: - | N28: - | O28: - | P28: - | Q28: - | R28: - | S28: - | T28: - | U28: - | V28: - | W28: - | X28: - | Y28: - | Z28: - | AA28: - | AB28: - | AC28: - | AD28: - | AE28: - | AF28: - | AG28: - | AH28: - | AI28: 0 | AJ28: 0 | AK28: 0 | AL28: 0 | AM28: 0 | AN28: 0 | AO28: 0 | AP28: 0 | AQ28: 0 | AS28: 0 | AT28: 0
A29: Venda de participação na CETIP | B29: -5.1 | C29: -5.1 | D29: - | E29: - | F29: - | G29: - | H29: - | I29: - | J29: - | K29: - | L29: - | M29: - | N29: - | O29: - | P29: - | Q29: - | R29: - | S29: - | T29: - | U29: - | V29: - | W29: - | X29: - | Y29: - | Z29: - | AA29: - | AB29: - | AC29: - | AD29: - | AE29: - | AF29: - | AG29: - | AH29: - | AI29: 0 | AJ29: 0 | AK29: 0 | AL29: 0 | AM29: 0 | AN29: 0 | AO29: 0 | AP29: 0 | AQ29: 0 | AS29: 0 | AT29: 0
A30: Adesão à anistia fiscal | B30: -4.1 | C30: -4.1 | D30: - | E30: - | F30: - | G30: - | H30: - | I30: - | J30: - | K30: - | L30: - | M30: - | N30: - | O30: - | P30: - | Q30: - | R30: - | S30: - | T30: - | U30: - | V30: - | W30: - | X30: - | Y30: - | Z30: - | AA30: - | AB30: - | AC30: - | AD30: - | AE30: - | AF30: - | AG30: - | AH30: - | AI30: 0 | AJ30: 0 | AK30: 0 | AL30: 0 | AM30: 0 | AN30: 0 | AO30: 0 | AP30: 0 | AQ30: 0 | AS30: 0 | AT30: 0
A31: Eventos não recorrentes | B31: 0 | C31: 0 | D31: 0 | E31: 0 | F31: 0 | G31: 0 | H31: 0 | I31: 0 | J31: 0 | K31: 0 | L31: 0 | M31: 0 | N31: 0 | O31: 0 | P31: 0 | Q31: 0 | R31: 0 | S31: 0 | T31: 0 | U31: 0 | V31: 0 | W31: 0 | X31: 0 | Y31: 0 | Z31: 0 | AA31: 0 | AB31: 0 | AC31: 0 | AD31: 0 | AE31: 0 | AF31: 0 | AG31: 0 | AH31: -4.4 | AI31: 0 | AJ31: 0 | AK31: 0 | AL31: -14.3 | AM31: 0 | AN31: 0 | AO31: 0 | AP31: 0 | AQ31: 0 | AS31: -39.671 | AT31: -1.621
A32: Lucro Líquido Contábil | B32: 34.7 | C32: 42.8 | D32: 44.4 | E32: 15.9 | F32: 24 | G32: 35.4 | H32: 38.1 | I32: 44.5 | J32: 46.9 | K32: 50.2 | L32: 51.1 | M32: 54 | N32: 56.7 | O32: 60.2 | P32: 58.5 | Q32: 60.6 | R32: 56.9 | S32: 55 | T32: 55 | U32: 59.6 | V32: 58.9 | W32: 63.5 | X32: 66.1 | Y32: 74.9 | Z32: 70.7 | AA32: 79.8 | AB32: 84.1 | AC32: 82.2 | AD32: 80.3 | AE32: 90.1 | AF32: 95.9 | AG32: 105.5 | AH32: 91149 | AI32: 104.1 | AJ32: 102.8 | AK32: 108.5 | AL32: 96.866 | AM32: 107.139 | AN32: 104.134 | AO32: 110.605 | AP32: 108.548 | AQ32: 111.653 | AR32: 116.112 | AS32: 81.773 | AT32: 119.554
A35: Receitas de Prestação de Serviços
A36: Garantias Prestadas | B36: 4.4 | C36: 5.3 | D36: 5.7 | E36: 6.6 | F36: 7.4 | G36: 9.9 | H36: 12.4 | I36: 14.1 | J36: 14.9 | K36: 16.5 | L36: 17.4 | M36: 19.6 | N36: 20.8 | O36: 22.6 | P36: 23.5 | Q36: 24.2 | R36: 24.2 | S36: 26 | T36: 27.4 | U36: 26.6 | V36: 27.2 | W36: 30.2 | X36: 31.2 | Y36: 29.9 | Z36: 29.9 | AA36: 32.8 | AB36: 33.9 | AC36: 34.3 | AD36: 35.2 | AE36: 37.2 | AF36: 36.6 | AG36: 58.2 | AH36: 45.3 | AI36: 48.5 | AJ36: 52.2 | AK36: 53 | AL36: 54 | AM36: 54.085 | AN36: 51.791 | AO36: 52.515 | AP36: 54.776 | AQ36: 56.431 | AR36: 57.091 | AS36: 55.019 | AT36: 50.299
A37: Fees Mercado de Capitais e M&A | B37: - | C37: 1.3 | D37: 2.3 | E37: 0.8 | F37: 0.3 | G37: 0.5 | H37: 0 | I37: 0.6 | J37: 2.4 | K37: 1.6 | L37: 0.5 | M37: 8.2 | N37: 2 | O37: 2.8 | P37: 2.4 | Q37: 1.9 | R37: 1.9 | S37: 2 | T37: 3.1 | U37: 7.9 | V37: 1 | W37: 6.4 | X37: 0.8 | Y37: 6.3 | Z37: 4.9 | AA37: 3.3 | AB37: 4.8 | AC37: 7.2 | AD37: 4.5 | AE37: 7.1 | AF37: 1.2 | AG37: 8.5 | AH37: 2.4 | AI37: 6.7 | AJ37: 5.9 | AK37: 7 | AL37: 15.7 | AM37: 11.425 | AN37: 8.992 | AO37: 20.744 | AP37: 13.467 | AQ37: 21.353 | AR37: 27.505 | AS37: 27.828 | AT37: 15.999
A38: Tarifas | B38: 4.7 | C38: 4.2 | D38: 4.1 | E38: 3.8 | F38: 2.6 | G38: 3.1 | H38: 3.7 | I38: 5.1 | J38: 7.1 | K38: 8.1 | L38: 4.8 | M38: 6.9 | N38: 6.8 | O38: 5.4 | P38: 4.2 | Q38: 3.3 | R38: 3.3 | S38: 4.1 | T38: 4.6 | U38: 6.3 | V38: 4.8 | W38: 7.9 | X38: 5.2 | Y38: 6.2 | Z38: 6.1 | AA38: 5.8 | AB38: 5.9 | AC38: 8 | AD38: 5.7 | AE38: 6.2 | AF38: 7.3 | AG38: 8.1 | AH38: 8.4 | AI38: 9.6 | AJ38: 7.9 | AK38: 9.5 | AL38: 6.7 | AM38: 10.185 | AN38: 10.398 | AO38: 10.438 | AP38: 9.377 | AQ38: 13.683 | AR38: 11.402 | AS38: 11.524 | AT38: 11.423
A39: Total | B39: 9.1 | C39: 10.8 | D39: 12.1 | E39: 11.2 | F39: 10.3 | G39: 13.4 | H39: 16.1 | I39: 19.8 | J39: 24.4 | K39: 26.2 | L39: 22.7 | M39: 34.7 | N39: 29.6 | O39: 30.9 | P39: 30 | Q39: 29.3 | R39: 29.3 | S39: 32.1 | T39: 35.2 | U39: 35.2 | V39: 33 | W39: 44.5 | X39: 37.2 | Y39: 42.3 | Z39: 41 | AA39: 41.9 | AB39: 44.7 | AC39: 49.6 | AD39: 45.3 | AE39: 50.5 | AF39: 45.1 | AG39: 41.6 | AH39: 56.1 | AI39: 64.9 | AJ39: 66 | AK39: 69.5 | AL39: 76.3 | AM39: 75.695 | AN39: 71.181 | AO39: 83.697 | AP39: 77.62 | AQ39: 91.467 | AR39: 95.998 | AS39: 94.371 | AT39: 77.721
A42: Despesas
A43: Pessoal | B43: -14.2 | C43: -16 | D43: -17.6 | E43: -20.7 | F43: -20.6 | G43: -17.5 | H43: -19.5 | I43: -20.3 | J43: -20.9 | K43: -22.4 | L43: -23.1 | M43: -25.7 | N43: -26.2 | O43: -27.4 | P43: -28.2 | Q43: -28.2 | R43: -31.1 | S43: -32.2 | T43: -31 | U43: -36.3 | V43: -32.7 | W43: -34.7 | X43: -34.7 | Y43: -38.9 | Z43: -35.8 | AA43: -37.4 | AB43: -37.4 | AC43: -41.4 | AD43: -40.3 | AE43: -42.4 | AF43: -46.7 | AG43: -45.5 | AH43: -42.94 | AI43: -42.49 | AJ43: -42.76 | AK43: -45.47 | AL43: -43.076 | AM43: -47.42 | AN43: -44.94 | AO43: -49.44 | AP43: -47.756 | AQ43: -47.741 | AR43: -48.606 | AS43: -51.232 | AT43: -49.175
A44: Outras Despesas Administrativas | B44: -9.7 | C44: -10.9 | D44: -12.3 | E44: -14.5 | F44: -12.3 | G44: -13.2 | H44: -14.1 | I44: -15.7 | J44: -14.3 | K44: -12.7 | L44: -13.7 | M44: -16.1 | N44: -15.4 | O44: -16.9 | P44: -16.6 | Q44: -16.6 | R44: -15.7 | S44: -19.6 | T44: -17.7 | U44: -18.5 | V44: -17.6 | W44: -18.5 | X44: -18.7 | Y44: -23.6 | Z44: -20.6 | AA44: -19.6 | AB44: -22.2 | AC44: -24.2 | AD44: -23.2 | AE44: -22.6 | AF44: -23.2 | AG44: -24.6 | AH44: -23.8 | AI44: -25.4 | AJ44: -25.9 | AK44: -28.672 | AL44: -25.877 | AM44: -26.452 | AN44: -25.691 | AO44: -27.404 | AP44: -26.065 | AQ44: -29.185 | AR44: -28.7531 | AS44: -28.905 | AT44: -32
A45: Participação nos Lucros | B45: -14.5 | C45: -11.9 | D45: -14 | E45: -4.8 | F45: -7.5 | G45: -9.2 | H45: -11.8 | I45: -13.5 | J45: -15.4 | K45: -15.4 | L45: -15 | M45: -19.2 | N45: -17.6 | O45: -16.8 | P45: -17 | Q45: -17 | R45: -10 | S45: -13.1 | T45: -14 | U45: -15.3 | V45: -18.6 | W45: -20.6 | X45: -19.5 | Y45: -23.3 | Z45: -19.6 | AA45: -23.8 | AB45: -23.1 | AC45: -24.5 | AD45: -23 | AE45: -25.6 | AF45: -23.6 | AG45: -29 | AH45: -27.86 | AI45: -28.31 | AJ45: -27.54 | AK45: -34.03 | AL45: -35.411 | AM45: -33.264 | AN45: -36.35 | AO45: -36.893 | AP45: -40.092 | AQ45: -39.221 | AR45: -39.233 | AS45: -40.061 | AT45: -39.192
A46: Despesas Tributárias | B46: -0.8 | C46: -0.7 | D46: -0.8 | E46: -0.6 | F46: -0.5 | G46: -0.5 | H46: -0.6 | I46: -3.5 | J46: -8.3 | K46: -8.3 | L46: -8.7 | M46: -8.9 | N46: -10 | O46: -10.5 | P46: -8.9 | Q46: -1.1 | R46: -10.1 | S46: -8.3 | T46: -10 | U46: -10.1 | V46: -10.1 | W46: -8.5 | X46: -10.5 | Y46: -12.3 | Z46: -11.3 | AA46: -11.1 | AB46: -8.6 | AC46: -9 | AD46: -15.9 | AE46: -11 | AF46: -20.4 | AG46: -10.2 | AH46: 1.8 | AI46: -4.275 | AJ46: -13 | AK46: -22.628 | AL46: -15.2 | AM46: -17.73141929 | AN46: -16.67986947 | AO46: -20.72571882 | AP46: -13.88992041 | AQ46: -28.904 | AR46: -20.13 | AS46: -15.445 | AT46: -11.473
A47: Total | B47: -39.2 | C47: -39.5 | D47: -44.7 | E47: -40.7 | F47: -41 | G47: -40.4 | H47: -46 | I47: -53 | J47: -59 | K47: -58.8 | L47: -60.5 | M47: -69.9 | N47: -69.1 | O47: -71.6 | P47: -70.7 | Q47: -62.9 | R47: -66.9 | S47: -73.3 | T47: -72.7 | U47: -80.1 | V47: -78.9 | W47: -82.3 | X47: -83.5 | Y47: -98 | Z47: -87.3 | AA47: -91.9 | AB47: -91.4 | AC47: -99.1 | AD47: -102.4 | AE47: -101.7 | AF47: -113.9 | AG47: -109.3 | AH47: -92.8 | AI47: -100.475 | AJ47: -109.2 | AK47: -130.8 | AL47: -119.564 | AM47: -124.8674193 | AN47: -123.6608695 | AO47: -134.4627188 | AP47: -127.8029204 | AQ47: -145.051 | AR47: =SUM(AR43:AR46) -> -136.7221 | AS47: =SUM(AS43:AS46) -> -135.643 | AT47: =SUM(AT43:AT46) -> -131.84
A50: Resultado Operacional Gerencial
A51: Margem Financeira Gerencial antes da PDD | B51: 86.9 | C51: 96.2 | D51: 104.5 | E51: 103 | F51: 88.9 | G51: 94.5 | H51: 93.8 | I51: 98.7 | J51: 108.5 | K51: 113.3 | L51: 116.9 | M51: 126.4 | N51: 135.4 | O51: 133.5 | P51: 146.8 | Q51: 143.8 | R51: 140.9 | S51: 144.4 | T51: 147.6 | U51: 148.1 | V51: 147.1 | W51: 145.3 | X51: 160.4 | Y51: 189.3 | Z51: 168.5 | AA51: 177.7 | AB51: 188.7 | AC51: 213.3 | AD51: 218.9 | AE51: 225.8 | AF51: 259.4 | AG51: 273 | AH51: 226.1 | AI51: 250.8 | AJ51: 256.3 | AK51: 283.3 | AL51: 265.8 | AM51: 275.824 | AN51: 260.15 | AO51: 276.5575252 | AP51: 233.5194492 | AQ51: 257.131 | AR51: 239.256 | AS51: 245.646 | AT51: 240.727
A52: Provisão para Devedores Duvidosos (PDD) | B52: -7.9 | C52: -6.5 | D52: -11.3 | E52: -54.1 | F52: -25.6 | G52: -14.9 | H52: -8.6 | I52: -4.1 | J52: -13.8 | K52: -9 | L52: -8.9 | M52: -12.7 | N52: -12.3 | O52: -5.7 | P52: -21.9 | Q52: -13.8 | R52: -23.7 | S52: -28.7 | T52: -32.8 | U52: -25.6 | V52: -16.9 | W52: -31.3 | X52: -18.6 | Y52: -26 | Z52: -25.5 | AA52: -14.9 | AB52: -16.8 | AC52: -43.6 | AD52: -43.3 | AE52: -36.4 | AF52: -90.4 | AG52: -48.6 | AH52: -48.9 | AI52: -54.1 | AJ52: -50.2 | AK52: -55.3 | AL52: -57.9 | AM52: -56.614 | AN52: -54.866 | AO52: -50.79521386 | AP52: -22.463 | AQ52: -33.128 | AR52: -33.129 | AS52: -29.491 | AT52: -29.491
A53: Margem Financeira Gerencial após PDD | B53: 78.9 | C53: 89.7 | D53: 93.2 | E53: 49 | F53: 63.3 | G53: 79.7 | H53: 85.2 | I53: 94.6 | J53: 94.7 | K53: 104.3 | L53: 108 | M53: 113.7 | N53: 123 | O53: 127.8 | P53: 124.9 | Q53: 130 | R53: 117.2 | S53: 115.7 | T53: 114.7 | U53: 122.5 | V53: 130.3 | W53: 113.9 | X53: 141.8 | Y53: 163.3 | Z53: 143 | AA53: 162.8 | AB53: 171.9 | AC53: 169.7 | AD53: 175.6 | AE53: 189.4 | AF53: 168.9 | AG53: 224.4 | AH53: 177.2 | AI53: 196.7 | AJ53: 206.1 | AK53: 227.9 | AL53: 207.9 | AM53: 219.21 | AN53: 205.284 | AO53: 225.7623113 | AP53: 211.0564492 | AQ53: 224.003 | AR53: 206.127 | AS53: 216.155 | AT53: 216.155
A54: Receitas de Prestação de Serviços | B54: 9.1 | C54: 10.8 | D54: 12.1 | E54: 11.2 | F54: 10.3 | G54: 13.4 | H54: 16.1 | I54: 19.8 | J54: 24.4 | K54: 26.2 | L54: 22.8 | M54: 34.7 | N54: 29.6 | O54: 30.9 | P54: 30 | Q54: 34.8 | R54: 29.3 | S54: 32.1 | T54: 35.2 | U54: 40.8 | V54: 33 | W54: 44.5 | X54: 37.2 | Y54: 42.3 | Z54: 41 | AA54: 41.9 | AB54: 44.7 | AC54: 49.6 | AD54: 41 | AE54: 50.5 | AF54: 45.1 | AG54: 58.2 | AH54: 56.1 | AI54: 64.9 | AJ54: 66 | AK54: 69.5 | AL54: 76.3 | AM54: 75.695 | AN54: 71.181 | AO54: 83.697 | AP54: 77.62 | AQ54: 91.467 | AR54: 95.998 | AS54: 94.371 | AT54: 77.721
A55: Despesas Pessoal & Outras Administrativas | B55: -23.8 | C55: -26.8 | D55: -29.7 | E55: -34.6 | F55: -32.9 | G55: -30.5 | H55: -33.2 | I55: -35.8 | J55: -34.8 | K55: -35.1 | L55: -36.8 | M55: -50.7 | N55: -51.5 | O55: -44.3 | P55: -44.8 | Q55: -48.3 | R55: -46.8 | S55: -51.8 | T55: -48.7 | U55: -54.7 | V55: -50.3 | W55: -53.1 | X55: -53.4 | Y55: -62.5 | Z55: -56.4 | AA55: -57 | AB55: -59.7 | AC55: -65.6 | AD55: -63.5 | AE55: -65.1 | AF55: -69.9 | AG55: -70.1 | AH55: -66.74 | AI55: -67.89 | AJ55: -68.66 | AK55: -74.142 | AL55: -68.953 | AM55: -73.872 | AN55: -70.631 | AO55: -76.844 | AP55: -73.821 | AQ55: -76.926 | AR55: -77.3591 | AS55: -80.137 | AT55: -81.175
A56: Despesas Tributárias | B56: -0.8 | C56: -0.7 | D56: -0.8 | E56: -0.6 | F56: -0.5 | G56: -0.5 | H56: -0.6 | I56: -3.5 | J56: -8.3 | K56: -8.3 | L56: -8.7 | M56: -8.9 | N56: -10 | O56: -10.5 | P56: -8.9 | Q56: -1.1 | R56: -10.1 | S56: -8.3 | T56: -10 | U56: -10.1 | V56: -10.1 | W56: -8.5 | X56: -10.5 | Y56: -12.3 | Z56: -11.3 | AA56: -11.1 | AB56: -8.5 | AC56: -9 | AD56: -15.9 | AE56: -17.2 | AF56: -22.2 | AG56: -10.2 | AH56: 1.8 | AI56: -4.275 | AJ56: -13 | AK56: -22.628 | AL56: -15.2 | AM56: -17.73141929 | AN56: -16.67986947 | AO56: -20.72571882 | AP56: -13.88992041 | AQ56: -29.679 | AR56: -20.6449 | AS56: -15.445 | AT56: -11.473
A57: Outras Receitas (Despesas) Operacionais Ajustada | B57: -5 | C57: -5.3 | D57: -5.6 | E57: -6.6 | F57: -3.9 | G57: -6.8 | H57: -5.3 | I57: -24 | J57: -3.6 | K57: -7.5 | L57: -6.3 | M57: -0.8 | N57: -2.2 | O57: 0.4 | P57: -2 | Q57: 3.5 | R57: 2.5 | S57: 4 | T57: 0.1 | U57: -0.6 | V57: -1.7 | W57: 12.6 | X57: -1.3 | Y57: -10.3 | Z57: 4.4 | AA57: 1.7 | AB57: -10.1 | AC57: -6.7 | AD57: -2.9 | AE57: -6.2 | AF57: -6.2 | AG57: -16.5 | AH57: 7.3 | AI57: -6.5 | AJ57: -9.7 | AK57: -5.6 | AL57: 5.629 | AM57: -1.853 | AN57: 2.924 | AO57: -3.949 | AP57: -0.567 | AQ57: -0.775 | AR57: -0.5149 | AS57: 2.424 | AT57: 4.713
A58: Resultado não Operacional Gerencial | B58: - | C58: 0 | D58: 1.2 | E58: 0 | F58: -1.7 | G58: -1 | H58: -0.2 | I58: -0.3 | J58: -0.3 | K58: -1.9 | L58: 0.3 | M58: -0.5 | N58: -0.4 | O58: -4 | P58: 2.7 | Q58: -4.2 | R58: -0.9 | S58: -3.8 | T58: -1.4 | U58: -0.4 | V58: 0.1 | W58: -0.6 | X58: -1.1 | Y58: -0.1 | Z58: -0.3 | AA58: -2 | AB58: 0.5 | AC58: -0.5 | AD58: -0.8 | AE58: -2.8 | AF58: -2.9 | AG58: 0.2 | AH58: -7.9 | AI58: -0.3 | AJ58: -1.5 | AK58: -2.5 | AL58: -7.694 | AM58: -10.493 | AN58: -10.582 | AO58: -8.127 | AP58: -9.935 | AQ58: -10.349 | AR58: -0.057 | AS58: -1.07 | AT58: -0.715
A59: Resultado Operacional | B59: =SUM(B51,B52,B54,B55,B56,B57,B58) -> 58.5 | C59: 67.7 | D59: 70.4 | E59: 18.3 | F59: 34.6 | G59: 54.2 | H59: 62 | I59: 50.8 | J59: 72.1 | K59: 77.7 | L59: 79.3 | M59: 87.5 | N59: 88.6 | O59: 100.3 | P59: 101.9 | Q59: 114.7 | R59: 91.2 | S59: 87.9 | T59: 90 | U59: 97.5 | V59: 101.2 | W59: 108.9 | X59: 112.7 | Y59: 120.4 | Z59: 120.4 | AA59: 136.3 | AB59: 138.8 | AC59: 137.5 | AD59: 133.5 | AE59: 148.6 | AF59: 112.9 | AG59: 186 | AH59: 167.76 | AI59: 182.635 | AJ59: 179.24 | AK59: 192.63 | AL59: 197.982 | AM59: 190.9555807 | AN59: 181.4961305 | AO59: 199.8135925 | AP59: 190.4635288 | AQ59: 197.741 | AR59: 203.5491 | AS59: 216.298 | AT59: =SUM(AT51,AT52,AT54,AT55,AT56,AT57,AT58) -> 200.307
A61: A partir do primeiro trimestre de 2018, foram feitas as seguintes reclassificações: (i) a porção das despesas de INSS referente à remuneração variável passou da linha “Despesa de Pessoal” para “Participação nos Lucros (PLR)”, onde a remuneração variável é contabilizada; e (ii) a porção das despesas que geram incentivos fiscais (Lei Rouanet, Lei do Incentivo ao Esporte e FUMCAD) passou da linha “Despesas Administrativas” para “Imposto de Renda e Contribuição Social”. Essa alteração foi aplicada para os dados desde o 1T16.

Sheet DRE Gerencial (Anual) (hidden)
A2: Banco ABC Brasil S.A.
A4: Planilha de Séries Históricas
B6: Índice | L6: Índice
A7: DRE Gerencial
A8: (R$ milhões)
B9: 2008 | C9: 2009 | D9: 2010 | E9: 2011 | F9: 2012 | G9: 2013 | H9: 2014 | I9: 2015 | J9: 2016 | K9: 2017 | L9: 2018
A10: DEMONSTRAÇÃO DO RESULTADO GERENCIAL
A11: Margem Financeira Publicada antes da PDD | B11: 351.8 | C11: 410.3 | D11: 466.8 | E11: 533.2 | F11: 516.6 | G11: 519.1 | H11: 564.8 | I11: 307.4 | J11: 1237.9 | K11: - | L11: -
A12: Efeito do hedge de investimentos no exterior | B12: 30.3 | C12: -26 | D12: -5.1 | E12: 18.7 | F12: 38.2 | G12: 66.8 | H12: 82.2 | I12: 326.9 | J12: -189.3 | K12: - | L12: -
A13: Efeito fiscal do hedge de investimentos no exterior + outros | B13: 20.5 | C13: -8.4 | D13: 3.4 | E13: 7.6 | F13: 25.2 | G13: 56.3 | H13: 101.2 | I13: 344.1 | J13: -31.9 | K13: - | L13: -
A14: Margem Financeira Gerencial antes PDD | B14: 390.6 | C14: 376 | D14: 465.1 | E14: 559.5 | F14: 580.1 | G14: 642.1 | H14: 748.2 | I14: 978.5 | J14: 1016.6 | K14: 1069.206525 | L14: 977.861
A15: Margem Financeira com Clientes | B15: 356.9 | C15: 348.3 | D15: 421.5 | E15: 508.8 | F15: 494.2 | G15: 555.6 | H15: 639.7 | I15: 782.7 | J15: 847.6 | K15: 843.4396719 | L15: 768.677
A16: Margem Financeira com Mercado | B16: 29 | C16: 27.7 | D16: 43.6 | E16: 50.7 | F16: 85.9 | G16: 86.6 | H16: 108.5 | I16: 195.8 | J16: 169.1 | K16: 225.7668532 | L16: 209.184
A17: Provisão para Devedores Duvidosos (PDD) | B17: -79.8 | C17: -53.1 | D17: -44.4 | E17: -53.8 | F17: -110.8 | G17: -92.8 | H17: -100.8 | I17: -218.7 | J17: -208.6 | K17: -220.2232139 | L17: -118.211
A18: Margem Gerencial após PDD | B18: 310.8 | C18: 322.8 | D18: 420.6 | E18: 505.7 | F18: 469.2 | G18: 549.3 | H18: 647.4 | I18: 759.8 | J18: 808 | K18: 848.9833113 | L18: 859.65
A19: Receitas de Prestação de Serviços | B19: 43.1 | C19: 59.7 | D19: 108.1 | E19: 125.4 | F19: 137.4 | G19: 156.9 | H19: 177 | I19: 199.1 | J19: 256.6 | K19: 306.873 | L19: 361.072
A20: Despesas | B20: -114.9 | C20: -132.5 | D20: -183.9 | E20: -188.9 | F20: -202.1 | G20: -219.3 | H20: -238.7 | I20: -268.5 | J20: -288.467 | K20: -308.736 | L20: -308.244
A21: Despesas de Pessoal & Outras Administrativas (publicada) | B21: -127.8 | C21: -133.1 | D21: -183.9 | E21: -188.9 | F21: -202.1 | G21: -219.3 | H21: -238.7 | I21: -268.5 | J21: -288.467 | K21: -308.736 | L21: -308.244
A22: Cessão do consignado | B22: 11.9 | C22: - | D22: - | E22: - | F22: - | G22: - | H22: - | I22: - | J22: 0 | K22: 0 | L22: 0
A23: Efeito de Contribuições Incentivadas | B23: 1.1 | C23: 0.7 | D23: - | E23: - | F23: - | G23: - | H23: - | I23: - | J23: 0 | K23: 0 | L23: 0
A24: Despesas Tributárias | B24: -2.9 | C24: -5.2 | D24: -34.2 | E24: -30.5 | F24: -30.5 | G24: -41.4 | H24: -40.1 | I24: -57.5 | J24: -37.3 | K24: -69.51400759 | L24: -78.37
A25: Outras Receitas (Despesas) Operacionais Ajustada | B25: -22.5 | C25: -40 | D25: 7 | E25: -0.4 | F25: 6 | G25: -0.7 | H25: -10.7 | I25: -29 | J25: -14.5 | K25: 13.647 | L25: -3.358
A26: Outras Receitas (Despesas) Operacionais Publicada | B26: 7.8 | C26: -46.6 | D26: 1.9 | E26: 18.3 | F26: 44.3 | G26: 66.1 | H26: 71.6 | I26: 297.9 | J26: -203.8 | K26: 13.647 | L26: -3.358
A27: Efeito do hedge de investimentos no exterior | B27: -30.3 | C27: 26 | D27: 5.1 | E27: -18.7 | F27: -38.2 | G27: -66.8 | H27: -82.2 | I27: -326.9 | J27: 189.3 | K27: 0 | L27: 0
A28: Efeito Anistia/Cetip | B28: - | C28: - | D28: - | K28: 0 | L28: 0
A29: Resultado não Operacional Gerencial | B29: 1.2 | C29: -3.3 | D29: -2.4 | E29: -5.9 | F29: -6.6 | G29: -1.8 | H29: -2.3 | I29: -6.2 | J29: -12.2 | K29: -36.896 | L29: -21.411
A30: Res. antes da Tributação sobre o Lucro e Participações | B30: 217.8 | C30: 206.7 | D30: 349.4 | E30: 407 | F30: 365.5 | G30: 443.1 | H30: 532.7 | I30: 597.6 | J30: 712.1018716 | K30: 754.4543037 | L30: 809.339
A31: Imposto de Renda e Contribuição Social Ajustado | B31: -13.4 | C31: -21.2 | D31: -78.7 | E31: -103.1 | F31: -86.4 | G31: -97.6 | H31: -131.1 | I31: -125.5 | J31: -193.7128716 | K31: -196.5113037 | L31: -192.975
A32: Imposto de Renda e Contribuição Social Publicado | B32: -1.1 | C32: -0.7 | D32: -3.4 | E32: -26.3 | F32: -27.5 | G32: -41.3 | H32: -29.9 | I32: 199.1 | J32: -200 | K32: -17.97 | L32: 0
A33: Efeito fiscal do hedge de investimentos no exterior + outros | B33: -20.5 | C33: 8.4 | D33: - | E33: -7.6 | F33: -25.2 | G33: -56.3 | H33: -101.2 | I33: -324.6 | J33: 6.5 | K33: -176.6983037 | L33: 0
A34: Efeito Fiscal da Anistia/Cetip | B34: - | C34: -9.2 | D34: - | E34: - | F34: - | G34: - | H34: - | I34: - | J34: 0 | K34: 0 | L34: 0
A35: Participação nos Lucros | B35: -45.1 | C35: -42.1 | D35: -65.1 | E35: -69.4 | F35: -52.5 | G35: -82.1 | H35: -91 | I35: -101.2 | J35: -107.4 | K35: -124.889 | L35: -158.607
A36: Lucro Líquido Recorrente | B36: 137.8 | C36: 151.2 | D36: 202.2 | E36: 236 | F36: 226.6 | G36: 263.4 | H36: 310.6 | I36: 370.9 | J36: 411 | K36: 433.044 | L36: 457.757
A37: Efeitos líquidos de Imposto de Renda | B37: - | C37: - | D37: - | E37: - | F37: - | G37: - | H37: - | I37: - | J37: 0 | K37: 0
A38: Venda de participação na CETIP | B38: - | C38: - | D38: - | E38: - | F38: - | G38: - | H38: - | I38: - | J38: 0 | K38: 0
A39: Adesão à anistia fiscal | B39: - | C39: - | D39: - | E39: - | F39: - | G39: - | H39: - | I39: - | J39: 0 | K39: 0
A40: Eventos não recorrentes | B40: 0 | C40: 0 | D40: 0 | E40: 0 | F40: 0 | G40: 0 | H40: 0 | I40: 0 | J40: -4.4 | K40: -14.3 | L40: -39.671
A41: Lucro Líquido Contábil | B41: 137.8 | C41: 142 | D41: 202.2 | E41: 236 | F41: 226.6 | G41: 263.4 | H41: 310.6 | I41: 371.8 | J41: 406.6 | K41: 418.744 | L41: 418.086
A44: Receitas de Prestação de Serviços
A45: Garantias Prestadas | B45: 22 | C45: 43.7 | D45: 69.8 | E45: 91 | F45: 104.2 | G45: 118.5 | H45: 130.9 | I45: 199.1 | J45: 199 | K45: 212.354 | L45: 224.932
A46: Fees Mercado de Capitais e M&A | B46: 4.4 | C46: 1.5 | D46: 12.7 | E46: 9.1 | F46: 15 | G46: 14.5 | H46: 20.3 | I46: 21.3 | J46: 22.1 | K46: 56.82 | L46: 90.153
A47: Tarifas | B47: 16.7 | C47: 14.5 | D47: 25.6 | E47: 19.8 | F47: 18.3 | G47: 24 | H47: 25.9 | I47: 27.3 | J47: 35.4 | K47: 37.732 | L47: 45.987
A48: Total | B48: 43.1 | C48: 59.7 | D48: 108.1 | E48: 119.9 | F48: 137.4 | G48: 156.9 | H48: 177 | I48: 150.5 | J48: 256.6 | K48: 306.906 | L48: 361.072
A51: Despesas
A52: Pessoal | B52: -68.5 | C52: -77.9 | D52: -92.1 | E52: -109.9 | F52: -130.6 | G52: -140.9 | H52: -152 | I52: -174.8 | J52: -191.9 | K52: -201.867 | L52: -195.335
A53: Outras Despesas Administrativas | B53: -47.4 | C53: -55.2 | D53: -57.7 | E53: -65.5 | F53: -71.5 | G53: -78.4 | H53: -86.7 | I53: -93.7 | J53: -104.6 | K53: -106.76 | L53: -112.909
A54: Participação nos Lucros | B54: -45.1 | C54: -42.1 | D54: -65.1 | E54: -68.3 | F54: -52.5 | G54: -82.1 | H54: -91 | I54: -101.2 | J54: -107.4 | K54: -124.899 | L54: -158.607
A55: Despesas Tributárias | B55: -2.9 | C55: -5.2 | D55: -34.2 | E55: -30.5 | F55: -38.5 | G55: -41.4 | H55: -40.1 | I55: -57.5 | J55: -37.3 | K55: -69.55900759 | L55: -78.37
A56: Total | B56: -163.9 | C56: -180.4 | D56: -249.1 | E56: -274.2 | F56: -293 | G56: -342.7 | H56: -369.8 | I56: -427.2 | J56: -441.2 | K56: -503.0850076 | L56: =SUM(L52:L55) -> -545.221
A59: Resultado Operacional Gerencial
A60: Margem Financeira Gerencial antes da PDD | B60: 390.6 | C60: 376 | D60: 465.1 | E60: 559.5 | F60: 580.1 | G60: 642.1 | H60: 748.2 | I60: 978.5 | J60: 1016.6 | K60: 1069.206525 | L60: 977.861
A61: Provisão para Devedores Duvidosos (PDD) | B61: -79.8 | C61: -53.1 | D61: -44.4 | E61: -53.8 | F61: -110.8 | G61: -92.8 | H61: -100.8 | I61: -218.7 | J61: -208.6 | K61: -220.2232139 | L61: -118.211
A62: Margem Financeira Gerencial após PDD | B62: 310.8 | C62: 322.8 | D62: 420.6 | E62: 505.7 | F62: 469.2 | G62: 549.3 | H62: 647.4 | I62: 759.8 | J62: 808 | K62: 848.9833113 | L62: 859.65
A63: Receitas de Prestação de Serviços | B63: 43.1 | C63: 59.7 | D63: 108.1 | E63: 125.4 | F63: 137.4 | G63: 156.9 | H63: 177 | I63: 199.1 | J63: 256.6 | K63: 306.906 | L63: 361.072
A64: Despesas Pessoal & Outras Administrativas | B64: -114.9 | C64: -132.5 | D64: -183.9 | E64: -188.9 | F64: -202.1 | G64: -219.3 | H64: -238.7 | I64: -268.5 | J64: -296.5 | K64: -308.627 | L64: -308.244
A65: Despesas Tributárias & Outras Operacionais | B65: -2.9 | C65: -5.2 | D65: -34.2 | E65: -30.5 | F65: -30.5 | G65: -41.4 | H65: -40.1 | I65: -57.5 | J65: -37.3 | K65: -69.55900759 | L65: -78.37
A66: Outras Receitas (Despesas) Operacionais Ajustada | B66: -22.5 | C66: -40 | D66: 7 | E66: -0.4 | F66: 6 | G66: -0.7 | H66: -10.7 | I66: -29 | J66: -14.5 | K66: 13.647 | L66: -3.358
A67: Resultado não Operacional Gerencial | B67: 1.2 | C67: -3.3 | D67: -2.4 | E67: -5.9 | F67: -6.6 | G67: -1.8 | H67: -2.3 | I67: -6.2 | J67: -12.2 | K67: -36.896 | L67: -21.411
A68: Resultado Operacional | B68: 217.8 | C68: 206.7 | D68: 349.4 | E68: 407 | F68: 365.5 | G68: 443.1 | H68: 532.7 | I68: 597.6 | J68: 704.1 | K68: 754.4543037 | L68: =SUM(L60:L61,L63:L65,L65) -> 755.738

Sheet Captação
A2: Banco Mercantil do Brasil S.A.
A4: Planilha de Séries Históricas
B6: Índice | Q6: Índice
A7: Captação (Consolidado)
A8: (R$ Milhões)
B9: 2020-03-01 | C9: =EDATE(B9,3) -> 2020-06-01 | D9: =EDATE(C9,3) -> 2020-09-01 | E9: 2020-12-01 | F9: 2021-03-01 | G9: 2021-06-01 | H9: 2021-09-01 | I9: 2021-12-01 | J9: 2022-03-01 | K9: 2022-06-01 | L9: 2022-09-01 | M9: 2022-12-01 | N9: 2023-03-01 | O9: 2023-06-01 | P9: 2023-09-01 | Q9: 2023-12-01 | R9: 2024-03-01 | S9: 2024-06-01 | T9: 2024-09-01 | U9: 2024-12-01 | V9: 2025-03-01 | W9: 2025-06-01 | X9: 2025-09-01 | Y9: 2025-12-01
A10: CAPTAÇÃO
A11: Captações (Depósitos, Cessões de Crédito, Cap. Externas, LCA, LF, LFS, Mercado Aberto)
A12: Depósitos
A13: - Depósito à Vista | B13: 322715 | C13: 399125 | D13: 389805 | E13: 443055 | F13: 456121 | G13: 494062 | H13: 444334
A14: - Poupança | B14: 201079 | C14: 222429 | D14: 233045 | E14: 232987 | F14: 231896 | G14: 238444 | H14: 226583
A15: - Depósito a prazo | B15: =1337291+4716523 -> 6053814 | C15: 6670779 | D15: 6962277 | E15: 7332208 | F15: 7172921 | G15: 7751725 | H15: 8165726
A16: - CDB | B16: 5781631 | C16: 6299816 | D16: 6377163 | E16: 6592087 | F16: 6517439 | G16: 6699458 | H16: 6918139
A17: - DPGE I e II | B17: =260979+10002 -> 270981 | C17: =246873+122876 -> 369749 | D17: =48265+535623 -> 583888 | E17: 738884 | F17: 654866 | G17: 1051642 | H17: 1246953
A18: - DEPOSITOS JUDICIAIS COM REMUNERACAO | B18: 1202 | C18: 1214 | D18: 1226 | E18: 1237 | F18: 616 | G18: 625 | H18: 634
A19: - CDB Subordinado | B19: 0 | C19: 0 | D19: 0 | E19: 0 | F19: 0 | G19: 0
A20: - Depósito Interfinanceiro | B20: 96853 | C20: 116902 | D20: 26474 | E20: 26753 | F20: 67840 | G20: 198628 | H20: 229842
A21: - Outros Depósitos | B21: 0 | C21: 0 | D21: 0 | E21: 0 | F21: 5083 | G21: 5367 | H21: 3131
A22: Cessões de Crédito
A23: - Cessão c/ coobrigação antes da 3.533 | B23: 0 | C23: 0 | D23: 0 | E23: 0 | F23: 0 | G23: 0 | H23: 0
A24: - Cessão c/ coobrigação após à 3.533 | B24: 19434 | C24: 14128 | D24: 9091 | E24: 0 | F24: 0 | G24: 0 | H24: 0
A25: - FIDC após à 3.533 | B25: 0 | C25: 0 | D25: 0 | E25: 0 | F25: 0 | G25: 0 | H25: 0
A26: - FIDC antes da 3.533 | B26: 0 | C26: 0 | D26: 0 | E26: 0 | F26: 0 | G26: 0 | H26: 0
A27: Captação Externa
A28: - Dívida Subordinada | B28: 716527 | C28: 741010 | D28: 0 | E28: 0 | F28: 0 | G28: 0 | H28: 0
A29: - Certificate of Deposit - CD (TVME) | B29: 0
A30: - TVME
A31: LCA | B31: 134716 | C31: 87456 | D31: 76329 | E31: 84374 | F31: 75350 | G31: 58480 | H31: 66776
A32: LF | B32: 16118 | C32: 15165 | D32: 10477 | E32: 4121 | F32: 4145 | G32: 4183 | H32: 4243
A33: LFS | B33: 403856 | C33: 411858 | D33: 416881 | E33: 417256 | F33: 420406 | G33: 425760 | H33: 430548
A34: LCI | B34: 3676 | C34: 2944 | D34: 0 | E34: 0 | F34: 5487 | G34: 15197 | H34: 2708
A35: Captação no Mercado Aberto | B35: 297751 | C35: 100903 | D35: 65902 | E35: 146853 | F35: 169896 | G35: 74108 | H35: 71416
A36: Total
A38: Concentração de Maiores Depositantes
A39: Maior Depositante | B39: 115167.6117 | C39: 116092.3465 | D39: 121031.5629 | E39: 88706.36918 | F39: 86037.612 | G39: 79467.42747 | H39: 124346.0998
A40: 10 Maiores Depositantes | B40: 488004.1089 | C40: 532378.9014 | D40: 588955.2414 | E40: 559368.2995 | F40: 493001.9634 | G40: 508407.5984 | H40: 555584.507
A41: 20 Maiores Depositantes | B41: 703739.6527 | C41: 763711.8261 | D41: 846067.2882 | E41: 836918.6412 | F41: 759942.3064 | G41: 826832.0294 | H41: 873110.7417
A42: 50 Maiores Depositantes | B42: 1101189.465 | C42: 1192149.385 | D42: 1354650.302 | E42: 1424540.379 | F42: 1346015.634 | G42: 1525066.689 | H42: 1605320.256
A43: 100 Maiores Depositantes | B43: 1523389.287 | C43: 1634790.347 | D43: 1868557.278 | E43: 2001169.964 | F43: 1918073.526 | G43: 2186973.17 | H43: 2322053.799
A44: Demais Depositantes | B44: 4530424.713 | C44: 5035988.653 | D44: 5093719.722 | E44: 5331038.036 | F44: 5254847.474 | G44: 5564751.83 | H44: 6747562.201
A45: Total Depósito a Prazo | B45: =SUM(B43:B44) -> 6053814 | C45: 6670779 | D45: 6962277 | E45: 7332208 | F45: 7172921 | G45: 7751725 | H45: 9069616

Sheet Gerenciamento_Capital
A2: Banco Mercantil do Brasil S.A.
A4: Planilha de Séries Históricas
B6: Índice | Q6: Índice
A7: Adequação de Capital
A8: (R$ Milhões)
B9: 2020-03-01 | C9: =EDATE(B9,3) -> 2020-06-01 | D9: =EDATE(C9,3) -> 2020-09-01 | E9: 2020-12-01 | F9: 2021-03-01 | G9: 2021-06-01 | H9: 2021-09-01 | I9: 2021-12-01 | J9: 2022-03-01 | K9: 2022-06-01 | L9: 2022-09-01 | M9: 2022-12-01 | N9: 2023-03-01 | O9: 2023-06-01 | P9: 2023-09-01 | Q9: 2023-12-01 | R9: 2024-03-01 | S9: 2024-06-01 | T9: 2024-09-01 | U9: 2024-12-01 | V9: 2025-03-01 | W9: 2025-06-01 | X9: 2025-09-01 | Y9: 2025-12-01
A10: ADEQUAÇÃO DE CAPITAL
A11: a) Patrimônio de Referência - PR (a = b + c) | B11: =B12+B17 -> 1028813.7 | C11: =C12+C17 -> 1047665 | D11: 1066869 | E11: 1034558 | F11: 1083545 | G11: 1119377 | H11: 1158437 | I11: 0 | J11: 0 | K11: 0 | L11: 0 | M11: 0 | N11: 0 | O11: 0 | P11: 0 | Q11: 0 | R11: 0 | S11: 0 | T11: 0 | U11: 0 | V11: 0 | W11: 0 | X11: 0 | Y11: 0
A12: b) Patrimônio de Referência Nível I | B12: =B13+B14 -> 751833.7 | C12: =C13+C14 -> 764579 | D12: 791534 | E12: 781972 | F12: 838864 | G12: 883344 | H12: 931772 | I12: 0 | J12: 0 | K12: 0 | L12: 0 | M12: 0 | N12: 0 | O12: 0 | P12: 0 | Q12: 0 | R12: 0 | S12: 0 | T12: 0 | U12: 0 | V12: 0 | W12: 0 | X12: 0 | Y12: 0
A13: b.1) Capital Principal – CP | B13: 709237.8 | C13: 717073 | D13: 743918 | E13: 734772 | F13: 791668 | G13: 835983 | H13: 884560
A14: b.2) Capital Complementar - CC | B14: =B15+B16 -> 42595.9 | C14: =C15+C16 -> 47506 | D14: =D15+D16 -> 47616 | E14: 47200 | F14: 47196 | G14: 47361 | H14: 47212 | I14: 0 | J14: 0 | K14: 0 | L14: 0 | M14: 0 | N14: 0 | O14: 0 | P14: 0 | Q14: 0 | R14: 0 | S14: 0 | T14: 0 | U14: 0 | V14: 0 | W14: 0 | X14: 0 | Y14: 0
A15: - LFs Subordinadas | B15: 41652.9 | C15: 46549 | D15: 46777 | E15: 46384 | F15: 46444 | G15: 46529 | H15: 46359
A16: - Ajuste Participações de não controladores Nível I | B16: 943 | C16: 957 | D16: 839 | E16: 816 | F16: 752 | G16: 832 | H16: 853
A17: c) Patrimônio de Referência Nível II | B17: =B18+B19-1 -> 276980 | C17: =C18+C19 -> 283086 | D17: =D18+D19 -> 275335 | E17: 252586 | F17: 244681 | G17: 236033 | H17: 226665 | I17: 0 | J17: 0 | K17: 0 | L17: 0 | M17: 0 | N17: 0 | O17: 0 | P17: 0 | Q17: 0 | R17: 0 | S17: 0 | T17: 0 | U17: 0 | V17: 0 | W17: 0 | X17: 0 | Y17: 0
A18: c.1) Dívidas Subordinadas/LFs Subordinadas | B18: 275723 | C18: 281810 | D18: 274216 | E18: 251498 | F18: 243678 | G18: 234923 | H18: 225528
A19: c.2) Ajuste Participações de não controladores do Nível II | B19: 1258 | C19: 1276 | D19: 1119 | E19: 1088 | F19: 1003 | G19: 1110 | H19: 1137
A20: d) Ativos Ponderados por Risco (RWA) | B20: =SUM(B21:B23) -> 5865092.5 | C20: =SUM(C21:C23) -> 5795471.3 | D20: 5812313 | E20: 6232703 | F20: 6463065 | G20: 6812512 | H20: 7259895 | I20: 0 | J20: 0 | K20: 0 | L20: 0 | M20: 0 | N20: 0 | O20: 0 | P20: 0 | Q20: 0 | R20: 0 | S20: 0 | T20: 0 | U20: 0 | V20: 0 | W20: 0 | X20: 0 | Y20: 0
A21: d.1) RWA Para Risco de Crédito por Abordagem Padronizada - RWAcpad | B21: 4704783.6 | C21: 4751364 | D21: 4864786 | E21: 5290346 | F21: 5578645 | G21: 5925333 | H21: 6180609
A22: d.2) RWA Para Risco de Mercado - RWAmpad | B22: 118077.6 | C22: 1876 | D22: 7891 | E22: 2721 | F22: 4176 | G22: 6935 | H22: 5158
A23: d.3) RWA Para Risco Operacional Por Abordagem Padronizada - RWAopad | B23: 1042231.3 | C23: 1042231.3 | D23: 939636 | E23: 939636 | F23: 880244 | G23: 880244 | H23: 1074128
A24: e) Patrimônio de Referência Mínimo Requerido para o RWA (e = d x fator "F" de cada período) | B24: =B20*8% -> 469207.4 | C24: =C20*8% -> 463637.704 | D24: 464985.04 | E24: 498616.24 | F24: 517045.2 | G24: 545000.96 | H24: 580791.6 | I24: 0 | J24: 0 | K24: 0 | L24: 0 | M24: 0 | N24: 0 | O24: 0 | P24: 0 | Q24: 0 | R24: 0 | S24: 0 | T24: 0 | U24: 0 | V24: 0 | W24: 0 | X24: 0 | Y24: 0
A25: f) Margem Sobre o Patrimônio de Referência Requerido (f = a - e) | B25: =B11-B24+1 -> 559607.3 | C25: =C11-C24 -> 584027.296 | D25: =D11-D24 -> 601883.96 | E25: 535941.76 | F25: 566499.8 | G25: 574376 | H25: 577645.4 | I25: 0 | J25: 0 | K25: 0 | L25: 0 | M25: 0 | N25: 0 | O25: 0 | P25: 0 | Q25: 0 | R25: 0 | S25: 0 | T25: 0 | U25: 0 | V25: 0 | W25: 0 | X25: 0 | Y25: 0
A26: g) Patrimônio de Referência Nível I Mínimo Requerido para o RWA (g = d x 6,0% desde janeiro de 2015) | B26: =B20*6% -> 351905.55 | C26: =C20*6% -> 347728.278 | D26: 348738.78 | E26: 373962.18 | F26: 387783.9 | G26: 408750.72 | H26: 435593.7 | I26: 0 | J26: 0 | K26: 0 | L26: 0 | M26: 0 | N26: 0 | O26: 0 | P26: 0 | Q26: 0 | R26: 0 | S26: 0 | T26: 0 | U26: 0 | V26: 0 | W26: 0 | X26: 0 | Y26: 0
A27: h) Margem sobre o Patrimônio de Referência Nível I Requerido (h = b - g) | B27: =B12-B26 -> 399928.15 | C27: =C12-C26 -> 416850.722 | D27: 442795.22 | E27: 408009.82 | F27: 451080.1 | G27: 474593.28 | H27: 496178.3 | I27: 0 | J27: 0 | K27: 0 | L27: 0 | M27: 0 | N27: 0 | O27: 0 | P27: 0 | Q27: 0 | R27: 0 | S27: 0 | T27: 0 | U27: 0 | V27: 0 | W27: 0 | X27: 0 | Y27: 0
A28: i) Capital Principal Mínimo Requerido para o Rwa (i = d x 4,5%) | B28: =B20*4.5% -> 263929.1625 | C28: =C20*4.5% -> 260796.2085 | D28: 261554.085 | E28: 280471.635 | F28: 290837.925 | G28: 306563.04 | H28: 326695.275 | I28: 0 | J28: 0 | K28: 0 | L28: 0 | M28: 0 | N28: 0 | O28: 0 | P28: 0 | Q28: 0 | R28: 0 | S28: 0 | T28: 0 | U28: 0 | V28: 0 | W28: 0 | X28: 0 | Y28: 0
A29: j) Margem sobre o Capital Principal Requerido (j = b.1 - i) | B29: =B13-B28 -> 445308.6375 | C29: =C13-C28 -> 456276.7915 | D29: 482363.915 | E29: 454300.365 | F29: 500830.075 | G29: 529419.96 | H29: 557864.725 | I29: 0 | J29: 0 | K29: 0 | L29: 0 | M29: 0 | N29: 0 | O29: 0 | P29: 0 | Q29: 0 | R29: 0 | S29: 0 | T29: 0 | U29: 0 | V29: 0 | W29: 0 | X29: 0 | Y29: 0
A30: k) Valor Correspondente ao Rban | B30: 53486 | C30: 60619 | D30: 87562 | E30: 112732 | F30: 119634 | G30: 108983 | H30: 132049
A31: l) Patrimônio de Referência Mínimo Requerido para o Rwa e para Rban (l = e + k) | B31: =B24+B30 -> 522693.4 | C31: =C24+C30 -> 524256.704 | D31: 552547.04 | E31: 611348.24 | F31: 636679.2 | G31: 653983.96 | H31: 712840.6 | I31: 0 | J31: 0 | K31: 0 | L31: 0 | M31: 0 | N31: 0 | O31: 0 | P31: 0 | Q31: 0 | R31: 0 | S31: 0 | T31: 0 | U31: 0 | V31: 0 | W31: 0 | X31: 0 | Y31: 0
A32: m) Margem sobre o PR Considerando a Rban (m = a - l) | B32: =B11-B31+1 -> 506121.3 | C32: =C11-C31 -> 523408.296 | D32: =D11-D31 -> 514321.96 | E32: 423209.76 | F32: 446865.8 | G32: 465393.04 | H32: 445596.4 | I32: 0 | J32: 0 | K32: 0 | L32: 0 | M32: 0 | N32: 0 | O32: 0 | P32: 0 | Q32: 0 | R32: 0 | S32: 0 | T32: 0 | U32: 0 | V32: 0 | W32: 0 | X32: 0 | Y32: 0
A33: n) Valor requerido de adicional de capital principal (n = d x fator "F" de cada período) | B33: =B20*2.5% -> 146627.3125 | C33: =C20*1.25% -> 72443.39125 | D33: =D20*1.25% -> 72653.9125 | E33: =E20*1.25% -> 77908.7875 | F33: 80788.3125 | G33: =G20*1.625% -> 110703.32 | H33: =H20*1.625% -> 117973.2937 | I33: 0 | J33: 0 | K33: 0 | L33: 0 | M33: 0 | N33: 0 | O33: 0 | P33: 0 | Q33: 0 | R33: 0 | S33: 0 | T33: 0 | U33: 0 | V33: 0 | W33: 0 | X33: 0 | Y33: 0
A34: o) Índice de Basileia (o = a/d x 100) | B34: =B11/B20 -> 0.1754130391 | C34: =C11/C20 -> 0.180773046 | D34: 0.1835532601 | E34: 0.1659886569 | F34: 0.1676518803 | G34: 0.1643119308 | H34: 0.1595666329
A35: p) Capital de Nível I (p = b/d x 100) | B35: =B12/B20 -> 0.1281878675 | C35: =C12/C20 -> 0.1319269755 | D35: 0.1361822737 | E35: 0.1254627406 | F35: 0.1297935268 | G35: 0.1296649459 | H35: 0.1283451069
A36: q) Capital Principal (q = b1/d x 100) | B36: =B13/B20 -> 0.1209252539 | C36: =C13/C20 -> 0.1237298854 | D36: 0.1279900102 | E36: 0.1178897823 | F36: 0.1224911091 | G36: 0.1227128848 | H36: 0.1218419826

Sheet Dividendos e JCP
A2: Banco Mercantil do Brasil S.A.
A4: Planilha de Séries Históricas
C6: Índice | S6: Índice
A7: Dividendos e JCP
B9: 2020-03-01 | C9: =EDATE(B9,3) -> 2020-06-01 | D9: =EDATE(C9,3) -> 2020-09-01 | E9: =EDATE(D9,3) -> 2020-12-01 | F9: =EDATE(E9,3) -> 2021-03-01 | G9: 2021-06-01 | H9: 2021-09-01 | I9: 2021-12-01 | J9: 2022-03-01 | K9: 2022-06-01 | L9: 2022-09-01 | M9: 2022-12-01 | N9: 2023-03-01 | O9: 2023-06-01 | P9: 2023-09-01 | Q9: 2023-12-01 | R9: 2024-03-01 | S9: 2024-06-01 | T9: 2024-09-01 | U9: 2024-12-01 | V9: 2025-03-01 | W9: 2025-06-01 | X9: 2025-09-01 | Y9: 2025-12-01
A10: DIVIDENDOS E JCP
A11: Total de JCP distribuído - Valor Bruto (R$ Milhões) | B11: 0 | C11: 0 | D11: 0 | E11: 42220 | F11: 0 | G11: 22029 | H11: 0
A12: JCP distribuído por ação ON (R$) | B12: 0 | C12: 0 | D12: 0 | E12: 0.776108 | F12: 0 | G12: 0.404949 | H12: 0
A13: JCP distribuído por ação PN (R$) | B13: 0 | C13: 0 | D13: 0 | E13: 0.853719 | F13: 0 | G13: 0.445445 | H13: 0
A15: Total de JCP distribuído - Valor Líquido (R$ Milhões) | B15: 0 | C15: 0 | D15: 0 | E15: 35887 | F15: 0 | G15: 18725 | H15: 0
A16: JCP distribuído por ação ON (R$) | B16: 0 | C16: 0 | D16: 0 | E16: 0.659692 | F16: 0 | G16: 0.344207 | H16: 0
A17: JCP distribuído por ação PN (R$) | B17: 0 | C17: 0 | D17: 0 | E17: 0.72566 | F17: 0 | G17: 0.378628 | H17: 0

Sheet Notas Explicativas
A2: Banco Mercantil do Brasil S.A.
A4: Planilha de Séries Históricas
B6: Índice | Q6: Índice
B9: 2020-03-01 | C9: =EDATE(B9,3) -> 2020-06-01 | D9: =EDATE(C9,3) -> 2020-09-01 | E9: 2020-12-01 | F9: 2021-03-01 | G9: 2021-06-01 | H9: 2021-09-01 | I9: 2021-12-01 | J9: 2022-03-01 | K9: 2022-06-01 | L9: 2022-09-01 | M9: 2022-12-01 | N9: 2023-03-01 | O9: 2023-06-01 | P9: 2023-09-01 | Q9: 2023-12-01 | R9: 2024-03-01 | S9: 2024-06-01 | T9: 2024-09-01 | U9: 2024-12-01 | V9: 2025-03-01 | W9: 2025-06-01 | X9: 2025-09-01 | Y9: 2025-12-01
A10: Setor Econômico - Consolidado
A11: Pessoa Física | B11: 3923367 | C11: 4069539 | D11: 4475362 | E11: 5368816 | F11: 5845938 | G11: 6516503 | H11: 7186850
A12: Pessoa Jurídica | B12: =SUM(B13:B23) -> 1191481 | C12: 1120953 | D12: 1064595 | E12: 1065997 | F12: 1011114 | G12: 996315 | H12: =SUM(H13:H23) -> 927107
A13: CONSTRUCAO CIVIL | B13: 249297 | C13: 218157 | D13: 204701 | E13: 180531 | F13: 172633 | G13: 162116 | H13: 152433
A14: TRANSPORTE DE PASSAGEIROS, EXCETO AVIACAO CIVIL | B14: 134319 | C14: 151077 | D14: 145688 | E14: 133959 | F14: 123190 | G14: 94717 | H14: 74963
A15: BIOCOMBUSTIVEIS E ACUCAR | B15: 118291 | C15: 109261 | D15: 104049 | E15: 100240 | F15: 117266 | G15: 89440 | H15: 58864
A16: PRESTACAO DE SERVICOS | B16: 77876 | C16: 84911 | D16: 103599 | E16: 111080 | F16: 103375 | G16: 100220 | H16: 129731
A17: ATIVIDADES FINANCEIRAS, DE SEGUROS E SERVICOS RELACIONADO | B17: 112004 | C17: 108730 | D17: 91321 | E17: 117522 | F17: 91729 | G17: 138785 | H17: 113437
A18: SIDERURGIA | B18: 88044 | C18: 87328 | D18: 89872 | E18: 89953 | F18: 81658 | G18: 81295 | H18: 83341
A19: MATERIAIS DE CONSTRUCAO | B19: 64296 | C19: 63392 | D19: 39795 | E19: 0 | F19: 0 | G19: 0 | H19: 0
A20: SOJA | B20: 0 | C20: 0 | D20: 0 | E20: 0 | F20: 0 | G20: 0 | H20: 0
A21: TRANSPORTE DE CARGAS E LOGISTICA | B21: 33659 | C21: 29743 | D21: 34620 | E21: 25889 | F21: 0 | G21: 24502 | H21: 22829
A22: ALIMENTOS | B22: 0 | C22: 0 | D22: 0 | E22: 39780 | F22: 55558 | G22: 56004 | H22: 55387
A23: OUTROS | B23: =247391+33697+32607 -> 313695 | C23: 268354 | D23: 250950 | E23: 267043 | F23: 265705 | G23: 249236 | H23: 236122
A24: TOTAL | B24: =B11+B12 -> 5114848 | C24: 5190492 | D24: 5539957 | E24: 6434813 | F24: 6857052 | G24: 7512818 | H24: =H11+H12 -> 8113957
A26: Produtos - Consolidado
A27: Crédito Consignado INSS | B27: 1401118 | C27: 1612131 | D27: 2023403 | E27: 2906158 | F27: 3262116 | G27: 3875894 | H27: 4459758
A28: CP INSS Débito em Conta | B28: 1386162 | C28: 1367923 | D28: 1368576 | E28: 1362349 | F28: 1454982 | G28: 1460767 | H28: 1508412
A29: Capital de Giro | B29: 549534 | C29: 577812 | D29: 580577 | E29: 603126 | F29: 593317 | G29: 583066 | H29: 594653
A30: Renegociação | B30: 302468 | C30: 261383 | D30: 258646 | E30: 249893 | F30: 220221 | G30: 200222 | H30: 171181
A31: Crédito Rural | B31: 221329 | C31: 156558 | D31: 132169 | E31: 136092 | F31: 128758 | G31: 133358 | H31: 70342
A32: Crédito Consignado Público | B32: 383730 | C32: 384225 | D32: 404265 | E32: 423775 | F32: 437427 | G32: 490808 | H32: 536021
A33: Cartão de Crédito Consignado | B33: 250744 | C33: 232994 | D33: 224064 | E33: 225789 | F33: 235540 | G33: 245100 | H33: 252426
A34: Crédito Pessoal | B34: 182749 | C34: 197958 | D34: 201432 | E34: 194607 | F34: 190797 | G34: 193561 | H34: 178860
A35: Crédito Imobiliário | B35: 76394 | C35: 74785 | D35: 65846 | E35: 66649 | F35: 55084 | G35: 50580 | H35: 47917
A36: Câmbio | B36: 92823 | C36: 96512 | D36: 72577 | E36: 72615 | F36: 75731 | G36: 74582 | H36: 77683
A37: Cheque Especial | B37: 61975 | C37: 42063 | D37: 45169 | E37: 43672 | F37: 49326 | G37: 48039 | H37: 58281
A38: Conta Garantida | B38: 43974 | C38: 41628 | D38: 27068 | E38: 23614 | F38: 26586 | G38: 25865 | H38: 21215
A39: Cartão de Crédito | B39: 57210 | C39: 54948 | D39: 59868 | E39: 64580 | F39: 61626 | G39: 66620 | H39: 72296
A40: Cheque Empresa | B40: 32949 | C40: 16972 | D40: 11607 | E40: 10755 | F40: 14862 | G40: 14218 | H40: 13205
A41: Financiamento Veículos - CDC | B41: 8592 | C41: 6293 | D41: 5996 | E41: 5478 | F41: 5357 | G41: 4762 | H41: 3909
A42: Outros | B42: 63097 | C42: 66307 | D42: 58694 | E42: 45661 | F42: 45322 | G42: 45376 | H42: 47798
A43: Total Geral | B43: =SUM(B27:B42) -> 5114848 | C43: 5190492 | D43: 5539957 | E43: 6434813 | F43: 6857052 | G43: 7512818 | H43: =SUM(H27:H42) -> 8113957
